{"text_format":"3","workbook":"xlsx","n_sheets":6,"sheets":["How to use","Risk Level Scores","Mapping Tool Search","Mapping Tool Data","Mapping Tool Data High Level","Factors & Assumptions"],"not_rendered":{"images":5,"defined_names":1},"read":"whole","date_system":"1900"}

{"sheet":"How to use","index":0,"n_rows":27,"n_cols":3,"rows_kept":27,"merged":[[1,1,1,3],[3,2,3,3],[4,2,4,3],[5,2,5,3],[6,1,6,3],[7,1,8,1],[7,2,7,3],[9,1,12,1],[9,2,9,3],[13,2,13,3],[14,1,15,1],[14,2,14,3],[16,1,22,1],[16,2,16,3],[23,2,23,3],[24,1,24,3],[25,1,26,1],[25,2,25,3],[26,2,26,3]]}
[]
[null," UKUPC Responsible Procurement Commodity Mapping Tool"]
[]
[null,"Overview","The UKUPC Responsible Procurement Commodity Mapping Tool is used to identify thematic areas which should be considered in procurement of the category in question. It has been developed by members of the EAUC & HEPA Responsible Procurement Group (RPG) & UKUPC Responsible Procurement Network.\n\nThe sustainability themes mapped align to the themes set out in the Sustain Supply Chain Code of Conduct (2021b)\n\nNote: The information contained in the tool is an indicative assessment of risks at ProcHE level 2 and may not capture the complexities of certain risks specific to your requirements.  As such users should apply their knowledge and experience when interpreting the allocated scores in the specific context of the procurement, supported by dialogue with internal stakeholders and the market to identify how to manage the specific risks and maximise opportunities. Specific attention needs to be given to issues presenting as N/A where risk is unknown."]
[null,"Contact","For further details on this mapping tool, please contact:                                                                "]
[null,"Version","This is version 1.0, released in August 2025.\n\nThe mapping tool will be reviewed in line with updates to the Sustain Supply Chain Code of Conduct."]
[null,"Using the Tool"]
[null,"Input","Select the PROC-HE2 commodity code / description within the \"Mapping Tool Search\" Tab (cells E6 OR E9). "]
[]
[null,"Establishing PROC-HE2 Code","Hints & Tips: One method for establishing the PROC-HE2 code is through Hunter."]
[]
[]
[]
[null,"How the Outputs have been developed","These scores have been developed by RPG representatives, or colleagues from RPG institutions who have specific expertise in these themes. Additional details on the assumptions made are available on the \"Factors & Assumptions \"tab."]
[null,"Outputs","Once a specific PROC-HE2 code or description is selected, the output table on the right hand side of the \"Mapping Tool Search\" will populate with the associated risk or opportunity level.\n"]
[]
[null,"Risk Score","The output table provides a risk and opportunity level for each of the themes outlined. Scores of 3 are considered a higher risk / opportunity."]
[]
[]
[]
[]
[]
[]
[null,"How to use the outputs","A holistic view should be taken of identified risks which should be proportionally considered throughout the procurement process. Risks can be understood and managed through market research, discussions with key stakeholders, or experts in the specific theme noted. At a minimum, mitigation strategies should be implemented for themes that score high. It may be suitable to include the output from this mapping tool into procurement project strategies or other documentation."]
[null,"Additional Functionality"]
[null,"Advanced Use: Institution specific risk scores","The Tool also enables you to focus on the level of risk across the commodity as a whole by using the Commodity Risk/Opportunity Classification Table. Cell N13 provides a total score for the commodity (out of a maximum 48) by totalling together the score (out of 3) for each theme. The Commodity Risk / Opportunity Classification (Very high, High, Medium, Low) auto-populates in cell T13 in line with the risk levels in the following table:\n\n"]
[null,null,"\n\n\n\n\n\n\n\n\n\n\nInstitutions can set their own risk levels by editing cells S19 to S22, highlighted in red, on the \"Mapping Tool Search\" tab. \nSpecific attention needs to be given to issues presenting as N/A where risk is unknown as these are not included in the total score for the commodity."]

{"sheet":"Risk Level Scores","index":1,"n_rows":310,"n_cols":10,"rows_kept":310,"hidden":true,"merged":[[12,1,15,1]]}
[{"$nulls":8},1,2]
[{"$nulls":8},"Com Code","Commodity Code Description"]
[{"$nulls":8},"AA","Audio Visual Equipment, incl video conferencing, Televisions, Videos, sound recorders"]
[null,null,"Min Score","Max Score",{"$nulls":4},"AC","Audio Visual Learning and Training  Packs and Pre-recorded  Media"]
[null,"Low",{"$f":"'Mapping Tool Search'!S18","v":{"v":0.1,"d":"0"}},{"$f":"'Mapping Tool Search'!T18","v":{"v":15.99999999,"d":"16"}},"Low",{"$nulls":3},"AD","Musical Instruments, Purchase, Maintenance and Hire"]
[null,"Medium",{"$f":"'Mapping Tool Search'!S19","v":16},{"$f":"'Mapping Tool Search'!T19","v":{"v":27.99999999,"d":"28"}},"Medium",{"$nulls":3},"AE","Photographic Equipment Supplies and Services"]
[null,"High",{"$f":"'Mapping Tool Search'!S20","v":28},{"$f":"'Mapping Tool Search'!T20","v":{"v":34.99999999,"d":"35"}},"High",{"$nulls":3},"AF","Studio Hire and Running  Costs"]
[null,"Very high",{"$f":"'Mapping Tool Search'!S21","v":35},{"$f":"'Mapping Tool Search'!T21","v":48},"Very high",{"$nulls":3},"AG","Theatre Production Costs (scenery, lighting, props, costumes)"]
[{"$nulls":8},"AH","Video Equipment Purchase hire and Maintenance and repair "]
[null,"Notes",{"$nulls":6},"AJ","Audio Visual Consumables,  Accessories, Cassettes  etc"]
[null,"Only change cells coloured GREEN",{"$nulls":6},"AL","Digital Imaging Equipment  Purchase, Maintenance,  Repair and Consumables"]
[null,"Do not edit cells coloured RED",{"$nulls":6},"AT","Audio-Visual Equipment Hire"]
[null,"These are reflected in the Cell \"Commodity Risk / Opportunity Classification\" in the Risk and Opportunity Search\" Function",{"$nulls":6},"AU","Audio Visual Equipment Maintenance and Services"]
[{"$nulls":8},"AZ","Other and General Audio-Visual  Aids"]
[{"$nulls":8},"BA","Book Binding Services"]
[{"$nulls":8},"BB","Books Hardcopy"]
[{"$nulls":8},"BC","Inter-Library Loans"]
[{"$nulls":8},"BD","Journals Hardcopy"]
[{"$nulls":8},"BE","Library Subscriptions"]
[{"$nulls":8},"BF","Manuscripts Hardcopy"]
[{"$nulls":8},"BG","Newspapers and Periodicals Hardcopy"]
[{"$nulls":8},"BI","Manuscripts Electronic"]
[{"$nulls":8},"BJ","Archiving Equipment  and Consumables  (Microfiche etc)"]
[{"$nulls":8},"BK","Electronic Publications, Media and Music"]
[{"$nulls":8},"BL","Manuals; Computer,  Workshop, Training"]
[{"$nulls":8},"BM","Tickets and Tokens (including electronic tickets and book tokens)"]
[{"$nulls":8},"BN","Library Equipment and Services (e.g. book tagging) including maintenance, repair and hire"]
[{"$nulls":8},"BP","Books Electronic"]
[{"$nulls":8},"BQ","Journals Electronic"]
[{"$nulls":8},"BR","Newspapers and Periodicals Electronic"]
[{"$nulls":8},"BS","Library Licences and Royalties"]
[{"$nulls":8},"BT","Library Materials Restoration"]
[{"$nulls":8},"BV","Maps Electronic or Hardcopy"]
[{"$nulls":8},"BW","Sheet Music "]
[{"$nulls":8},"BZ","Other and General Library"]
[{"$nulls":8},"CA","Beers, Wines, Spirits  and Alcoholic drinks"]
[{"$nulls":8},"CB","Bakery Products"]
[{"$nulls":8},"CC","Dairy Produce"]
[{"$nulls":8},"CD","Frozen Foods"]
[{"$nulls":8},"CE","Groceries"]
[{"$nulls":8},"CF","Catering, Bar Equipment and Accessories Purchases"]
[{"$nulls":8},"CG","Catering Equipment Maintenance and Repair"]
[{"$nulls":8},"CH","Meat, Poultry, Offal"]
[{"$nulls":8},"CJ","Soft Drinks, Hot Drinks and Non-alcoholic Drinks"]
[{"$nulls":8},"CK","Tableware, Crockery, Cutlery, Table Coverings etc inc Disposables"]
[{"$nulls":8},"CL","Vending Equipment, Consumables and Charges"]
[{"$nulls":8},"CM","Fruit and Vegetables, Frozen, Fresh, Dried, Tinned"]
[{"$nulls":8},"CN","Table and Room Decorations"]
[{"$nulls":8},"CP","Fish and Seafood"]
[{"$nulls":8},"CQ","Confectionery, Sweet and Savoury"]
[{"$nulls":8},"CS","Catering Entertainments"]
[{"$nulls":8},"CU","Catering Hospitality Services"]
[{"$nulls":8},"CV","Liquor Licences"]
[{"$nulls":8},"CY","Tobacco"]
[{"$nulls":8},"CZ","Other and General Catering"]
[{"$nulls":8},"DA","Medical, Surgical, Nursing Supplies & Services Capital Equipment >£10k"]
[{"$nulls":8},"DB","Medical, Surgical, Nursing Supplies & Services Small Apparatus, Equipment  and Instruments"]
[{"$nulls":8},"DC","Medical, Surgical, Nursing Supplies & Services Consumables and Disposables"]
[{"$nulls":8},"DE","Medical, Surgical, Nursing Supplies & Services, Specialist Clothing"]
[{"$nulls":8},"DF","Medical, Surgical, Nursing Equipment Maintenance and Repair"]
[{"$nulls":8},"DH","Medical, Surgical, Nursing Diagnostic Services and Clinical Trials"]
[{"$nulls":8},"DJ","Medical, Surgical, Nursing Teaching materials and aids"]
[{"$nulls":8},"DL","Medicinal Drugs - Non Veterinary"]
[{"$nulls":8},"DZ","Medical, Surgical, Nursing Supplies & Services  Other and General"]
[{"$nulls":8},"EA","Livestock and Animal Purchases, Services and Supplies"]
[{"$nulls":8},"EB","Livestock, Animal and Farm Feeds"]
[{"$nulls":8},"EC","Agricultural, Fisheries, Forestry, Oceanographic Capital Equipment >£10k "]
[{"$nulls":8},"ED","Agricultural, Fisheries, Forestry, Oceanographic, Small Equipment and Tools"]
[{"$nulls":8},"EF","Agricultural Equipment Maintenance and Repair"]
[{"$nulls":8},"EG","Agricultural Equipment Hire"]
[{"$nulls":8},"EH","Purchase of Plants, Crops, Trees etc"]
[{"$nulls":8},"EJ","Animal Welfare Supplies and Services"]
[{"$nulls":8},"EK","Fertilisers, Pesticides, Composts, Soils etc"]
[{"$nulls":8},"EL","Agricultural Fencing Supplies and Associated Services"]
[{"$nulls":8},"EM","Horticultural Consumables  (Pots, Seed Trays  etc)"]
[{"$nulls":8},"EN","Oceanographic Supplies and Services"]
[{"$nulls":8},"EP","Housing - Kennels, Catteries, Stabling, bedding and tackle Supplies and Services"]
[{"$nulls":8},"ES","Pasturage, purchase, lease and maintenance"]
[{"$nulls":8},"ET","Medicinal Products - Drugs Veterinary"]
[{"$nulls":8},"EZ","Other and General"]
[{"$nulls":8},"FA","Electrical White Goods and Domestic Kitchen Equipment"]
[{"$nulls":8},"FB","Laboratory Furniture - Fixed and Free-standing"]
[{"$nulls":8},"FC","Furniture - Office"]
[{"$nulls":8},"FD","Floor Coverings"]
[{"$nulls":8},"FE","Textiles, Fabrics, Soft and Loose Furnishings"]
[{"$nulls":8},"FF","Furniture - Residential"]
[{"$nulls":8},"FG","Window Coverings"]
[{"$nulls":8},"FK","Furniture - Repairs"]
[{"$nulls":8},"FL","Furniture - Classroom and Lecture Theatre"]
[{"$nulls":8},"FN","General Storage, Racking,  Shelving (incl.  Library)"]
[{"$nulls":8},"FP","Security Furniture Inc Safes"]
[{"$nulls":8},"FT","Outdoor Furniture"]
[{"$nulls":8},"FU","Furniture and Furnishing Purchase - Specialist"]
[{"$nulls":8},"FZ","Other and General Furniture,  Furnishings and  Textiles"]
[{"$nulls":8},"GA","Sports,  Recreational Equipment"]
[{"$nulls":8},"GB","Sports Capital Purchases"]
[{"$nulls":8},"GC","Sports Equipment - Maintenance & Repair"]
[{"$nulls":8},"GD","Sports Equipment - Hire & Lease"]
[{"$nulls":8},"GE","Sports Equipment - Consumables"]
[{"$nulls":8},"GF","Sports Clothing"]
[{"$nulls":8},"GG","Sports Services (incl: coaching)"]
[{"$nulls":8},"GH","Sports Science Equipment Hire maintenance and Service"]
[{"$nulls":8},"GZ","Other Sports Science and Recreation"]
[{"$nulls":8},"HB","Cleaning Machines and Maintenance "]
[{"$nulls":8},"HD","Personal Hygiene, Washroom Services and Vending Supplies and Services"]
[{"$nulls":8},"HG","Laundry and Dry Cleaning  Services and Equipment"]
[{"$nulls":8},"HH","Washroom and Cleaning Consumables"]
[{"$nulls":8},"HR","Janitoral Clothing (Uniforms, Corporate, Security, Academic Gowns), Tailoring Supplies and Services"]
[{"$nulls":8},"HZ","Other and General Cleaning  and Janitorial"]
[{"$nulls":8},"JA","Electricity Supply and Services"]
[{"$nulls":8},"JB","Mains Gas Supply and Services"]
[{"$nulls":8},"JC","Oil Supply and Services"]
[{"$nulls":8},"JD","Solid Fuel, Supplies and Services"]
[{"$nulls":8},"JE","Water and Sewerage Services"]
[{"$nulls":8},"JF","Steam Trading"]
[{"$nulls":8},"JG","Carbon Emissions Trading"]
[{"$nulls":8},"JH","CHP Plant Maintenance"]
[{"$nulls":8},"JJ","Renewable Energy (Fit,Rhi) Equipment"]
[{"$nulls":8},"JZ","Other/General Utilities"]
[{"$nulls":8},"KE","IT Software inc Bespoke Licences Maintenance"]
[{"$nulls":8},"KG","Server, Storage and Networking Equipment Purchase"]
[{"$nulls":8},"KH","Desktop, Laptop, Tablet, Computer Purchase inc Apple"]
[{"$nulls":8},"KI","EPOS and PDQ Machines"]
[{"$nulls":8},"KJ","Server and Networking Equipment Installation and Maintenance"]
[{"$nulls":8},"KM","Computer Consumables, Peripherals, Upgrades and Add-ons"]
[{"$nulls":8},"KN","Software-as-a-service inc Cloud Hosting"]
[{"$nulls":8},"KO","Website Design and Services"]
[{"$nulls":8},"KS","IT Managed Services"]
[{"$nulls":8},"KT","IT Hardware support & maintenance"]
[{"$nulls":8},"KU","IT Hire & Rental"]
[{"$nulls":8},"KV","Scanning Equipment"]
[{"$nulls":8},"KW","Bespoke IT Solutions"]
[{"$nulls":8},"KZ","Other and General Computer"]
[{"$nulls":8},"LA","Lab Support Equipment,  Accommodation and Accessories"]
[{"$nulls":8},"LB","Laboratory Animals"]
[{"$nulls":8},"LC","Laboratory Small Apparatus and Equipment Purchase and Hire"]
[{"$nulls":8},"LE","Laboratory Blood Products Human Organs, Tissue, Body Parts and Cadavers"]
[{"$nulls":8},"LF","Laboratory Bonded Alcohol"]
[{"$nulls":8},"LG","Laboratory, Capital Equipment "]
[{"$nulls":8},"LH","Laboratory Chemicals "]
[{"$nulls":8},"LI","Research Services"]
[{"$nulls":8},"LJ","Laboratory Clothing"]
[{"$nulls":8},"LK","Laboratory Consumables and Sundries, incl. Disposables"]
[{"$nulls":8},"LL","Laboratory Diagnostic Testing and Analysis Services"]
[{"$nulls":8},"LM","Laboratory Equipment Maintenance and  Repair"]
[{"$nulls":8},"LN","Laboratory Gases Purchase and Associated Rentals"]
[{"$nulls":8},"LP","Laboratory Glassware"]
[{"$nulls":8},"LQ","Pharmaceuticals - Non-veterinary"]
[{"$nulls":8},"LR","Pharmaceuticals, Veterinary"]
[{"$nulls":8},"LS","Laboratory Plasticware"]
[{"$nulls":8},"LT","Laboratory Controlled Chemicals & Drugs"]
[{"$nulls":8},"LX","Tissue Culture, Bacteriological Media and Insects"]
[{"$nulls":8},"LZ","Other and General Laboratory"]
[{"$nulls":8},"MB","Electrical Sundries and Components"]
[{"$nulls":8},"ME","Handling and Storage Equipment, Purchase, Maintenance, Repair and Hire"]
[{"$nulls":8},"MF","Hand & Power Tools and Accessories"]
[{"$nulls":8},"MG","Workshop Equipment and Tool Maintenance"]
[{"$nulls":8},"MH","Mechanical Components and Spare Parts"]
[{"$nulls":8},"MJ","Workshop Metals"]
[{"$nulls":8},"MK","Raw Materials inc Lubricants and Road Salt"]
[{"$nulls":8},"ML","Workshop Plastics, Glass and Ceramics"]
[{"$nulls":8},"MM","Workshop Wood"]
[{"$nulls":8},"MN","Electronic Components and Test Equipment, Purchase, Maintenance, Repair and Hire"]
[{"$nulls":8},"MP","Workshop Plumbing Sundries"]
[{"$nulls":8},"MQ","Workshop Ironmongery, Door Furniture,  Locksmiths Supplies  and Services"]
[{"$nulls":8},"MS","Workshop Consumables, Rags, Cleansers etc"]
[{"$nulls":8},"MT","Workshop Teaching Aids and Materials"]
[{"$nulls":8},"MZ","OtherandGeneral Workshop  and Maintenance  Supplies"]
[{"$nulls":8},"NA","Art Exhibits and Museum Collections"]
[{"$nulls":8},"NB","Hire & Rental of Art Exhibits and Museum Collections"]
[{"$nulls":8},"NC","Conservation & Restoration Materials"]
[{"$nulls":8},"ND","Conservation & Restoration Services"]
[{"$nulls":8},"NE","Commercial and Graphic  Art Equipment Purchase  and Maintenance  and Consumables"]
[{"$nulls":8},"NF","Arts Equipment Purchase and Maintenance and Consumables"]
[{"$nulls":8},"NG","Consumables"]
[{"$nulls":8},"NH","Museum Specalist Furniture"]
[{"$nulls":8},"NZ","Other and General Musems and Art"]
[{"$nulls":8},"PA","Printing Binding and Finishing Services"]
[{"$nulls":8},"PC","Printing Consumables, Toners and Inks"]
[{"$nulls":8},"PD","Printing - External Design and Artwork"]
[{"$nulls":8},"PJ","Printing Equipment Purchase & Maintenance"]
[{"$nulls":8},"PK","Printing Equipment Lease Hire inc Charges"]
[{"$nulls":8},"PZ","OtherandGeneral Printing"]
[{"$nulls":8},"QG","Telephony & Switchboard Capital Purchase >£10,000"]
[{"$nulls":8},"QH","Telephony & Switchboard Maintenance"]
[{"$nulls":8},"QJ","Telecoms Transmission Equipment Purchase & Maintenance"]
[{"$nulls":8},"QM","Phone Cards, Swipe Cards, Equipment & Supplies"]
[{"$nulls":8},"QN","Communications Equipment & Accessories (Hubs, Modems, Routers)"]
[{"$nulls":8},"QR","Telephony, Land & Mobile, Line Rental, Call Charges, Equipment"]
[{"$nulls":8},"QS","Telephony - Mobile Line rental, call charges, equipment"]
[{"$nulls":8},"QT","Data Telecommunications, internet services - e.g. Eduroam or VOIP"]
[{"$nulls":8},"QZ","Other Postal & Telecommunications"]
[{"$nulls":8},"RA","Advertising Services  (Course, Recruitment & Other)"]
[{"$nulls":8},"RB","Conferences & Meetings (Event Management)"]
[{"$nulls":8},"RC","Data Information Services"]
[{"$nulls":8},"RD","Accountancy Services, inc. Audit Consultancy,"]
[{"$nulls":8},"RE","General Consultancy including IT excl Estates"]
[{"$nulls":8},"RF","Insurance Services"]
[{"$nulls":8},"RG","Legal & Tax Services"]
[{"$nulls":8},"RH","Banking Services"]
[{"$nulls":8},"RI","Financial Investment Services"]
[{"$nulls":8},"RJ","Patents, IPR, Trademarks, Royalties, Copyright"]
[{"$nulls":8},"RK","Temporary & Recruitment Employment Agencies (Staff)"]
[{"$nulls":8},"RL","Promotions & Publicity (incl Exhibitions and Fairs)"]
[{"$nulls":8},"RM","Speakers & Presenters"]
[{"$nulls":8},"RN","Subscriptions (Learned Society, Professional etc)"]
[{"$nulls":8},"RP","Training Courses"]
[{"$nulls":8},"RQ","Marketing & Recruitment Services (not Advertising)"]
[{"$nulls":8},"RR","Debt Collection Services"]
[{"$nulls":8},"RS","Market Research Services"]
[{"$nulls":8},"RT","Auction Services"]
[{"$nulls":8},"RU","Translation, Interpreter, Transcription & Procedural Writing Services"]
[{"$nulls":8},"RV","Archival and Storage Services inc EDM"]
[{"$nulls":8},"RW","Student Placement Programmes, costs and expenses"]
[{"$nulls":8},"RX","Branding and Media Services"]
[{"$nulls":8},"RY","Artistes and Conductors"]
[{"$nulls":8},"RZ","Other/General Professional & Bought-in Services"]
[{"$nulls":8},"SA","Envelopes"]
[{"$nulls":8},"SB","Files, Filing Folders, Binders"]
[{"$nulls":8},"SC","Office Equipment Purchase, Lease, Hire and Maintenance (Small Scale i.e Shredders)"]
[{"$nulls":8},"SD","Diaries, Calendars"]
[{"$nulls":8},"SF","Papers"]
[{"$nulls":8},"SJ","General Stationery"]
[{"$nulls":8},"SZ","Other and General Stationery  and Office Supplies"]
[{"$nulls":8},"TA","Accommodation & Hotels (Direct)"]
[{"$nulls":8},"TB","Air Travel"]
[{"$nulls":8},"TC","Ferry Travel"]
[{"$nulls":8},"TD","Taxi Hire"]
[{"$nulls":8},"TE","Mileage (Private Vehicles)"]
[{"$nulls":8},"TF","Rail Travel"]
[{"$nulls":8},"TG","Subsistence"]
[{"$nulls":8},"TH","Car Hire"]
[{"$nulls":8},"TJ","Van Hire"]
[{"$nulls":8},"TK","Coach Hire"]
[{"$nulls":8},"TL","Boat Hire & Charter"]
[{"$nulls":8},"TM","Travel Agency Services"]
[{"$nulls":8},"TN","Aircraft & Helicopter Hire"]
[{"$nulls":8},"TP","Student Travel Arrangements"]
[{"$nulls":8},"TQ","Conferences, meetings and room bookings"]
[{"$nulls":8},"TR","Re-location and household removal expenses"]
[{"$nulls":8},"TT","Package Travel, Field Trips"]
[{"$nulls":8},"TU","Travel & Subsistence (non Employees)"]
[{"$nulls":8},"TZ","Other/General Travel & Transport"]
[{"$nulls":8},"UB","Fire Protection/Fire Fighting Equipment & Services"]
[{"$nulls":8},"UC","First Aid Supplies"]
[{"$nulls":8},"UD","Safety & Personal Protection Equipment"]
[{"$nulls":8},"UE","Security Equipment & Consumables"]
[{"$nulls":8},"UF","Security Services"]
[{"$nulls":8},"UH","Occupational Health Supplies & Services (incl. Physio)"]
[{"$nulls":8},"UJ","Surveillance Equipment, Installation & Maintenance (CCTV, Intercom)"]
[{"$nulls":8},"UK","Access Control, Keys, Security Passes"]
[{"$nulls":8},"UL","Counselling Services"]
[{"$nulls":8},"UM","Alarms (including Fire, Smoke, Gas, Intruder) purchase, maintenance, repair and hire"]
[{"$nulls":8},"UN","Special Needs/DDA Suppliers, Services Equipment purchase, maintenance, repair and hire"]
[{"$nulls":8},"UZ","Other/General Safety & Security"]
[{"$nulls":8},"VA","Vehicle Purchase"]
[{"$nulls":8},"VB","Motoring Association Charges (excl Road Tax)"]
[{"$nulls":8},"VC","Vehicle Lease / Hire / Rental Long Term"]
[{"$nulls":8},"VD","Road Tax"]
[{"$nulls":8},"VE","Vehicle Repair, Maintenance & MOT"]
[{"$nulls":8},"VG","Fuels & Lubricants"]
[{"$nulls":8},"VJ","Garage Equipment"]
[{"$nulls":8},"VP","Vehicle Storage"]
[{"$nulls":8},"VZ","Other/General Vehicle Purchase & Lease Hire"]
[{"$nulls":8},"WA","Building, Repair and Maintenance Materials"]
[{"$nulls":8},"WB","Capital Projects"]
[{"$nulls":8},"WD","Conservation Projects"]
[{"$nulls":8},"WH","Building Repairs & Maintenance Services (including Signage)"]
[{"$nulls":8},"WJ","Grounds Maintenance Equipment"]
[{"$nulls":8},"WK","Ground maintenance, Supplies & Services (incl Landscaping)"]
[{"$nulls":8},"WL","Testing & Calibration Services (Non Scientific)"]
[{"$nulls":8},"WN","Plant Purchase, Hire & Maintenance, inc. Lifts, Air-conditioning, Boilers, Generators etc"]
[{"$nulls":8},"WO","Construction Waste Disposal"]
[{"$nulls":8},"WP","Temporary & Mobile Buildings, Hire & Purchase"]
[{"$nulls":8},"WU","Building related Professional Services, Architects, Estates Agents, QS, Construction Mgt,Surveying Equip & Services"]
[{"$nulls":8},"WX","Signs & Signposting"]
[{"$nulls":8},"WY","Tent & Marquee Purchase, Hire & Maintenance"]
[{"$nulls":8},"WZ","Other/General Estates & Buildings"]
[{"$nulls":8},"XA","Fees, Lecturing, Examining, Moderating etc"]
[{"$nulls":8},"XB","Credit Card Charges"]
[{"$nulls":8},"XC","Customs & Excise - VAT"]
[{"$nulls":8},"XD","Fees - Students"]
[{"$nulls":8},"XE","Hospitality/Entertainment/Courtesy Expenses (Non Employees)"]
[{"$nulls":8},"XG","Building/Premises/Land - Rent, Lease, Hire, Feu Duties"]
[{"$nulls":8},"XH","Welfare"]
[{"$nulls":8},"XJ","Other Educational Establishments"]
[{"$nulls":8},"XK","Other Public Bodies"]
[{"$nulls":8},"XL","Rates"]
[{"$nulls":8},"XM","Awards, Gifts, Trophies, Souvenirs"]
[{"$nulls":8},"XN","Bursaries, Scholarships, Endowments, Donations"]
[{"$nulls":8},"XR","Interdepartmental trading"]
[{"$nulls":8},"XS","Student related charges excl Fees"]
[{"$nulls":8},"XZ","Other/General Miscellaneous"]
[{"$nulls":8},"YA","Mail Services including Fulfilment"]
[{"$nulls":8},"YB","Mail Room Equipment Purchase Lease & Maintenance"]
[{"$nulls":8},"YC","Courier Services"]
[{"$nulls":8},"YD","Freight Carriage & Haulage Services"]
[{"$nulls":8},"YE","Furniture - Office Removal  and Storage"]
[{"$nulls":8},"YF","Warehouse and Storage"]
[{"$nulls":8},"YG","Agric/Hortic Disposal Services"]
[{"$nulls":8},"YH","Waste-Lab Disposal  - Clinical and Chemical"]
[{"$nulls":8},"YJ","Waste-Confidential Disposal"]
[{"$nulls":8},"YK","Waste-Non-lab Hazardous Disposal & Treatment Recycling"]
[{"$nulls":8},"YL","Waste-Refuse Disposal"]
[{"$nulls":8},"YM","Clothing and Tailoring Supplies and Services"]
[{"$nulls":8},"YN","Watercooler Equipment Services and Consumables"]
[{"$nulls":8},"YP","Cleaning Services Including Window Cleaning"]
[{"$nulls":8},"YQ","Pest & Vermin Control Services"]
[{"$nulls":8},"YR","Catering Services Outsourced at a fixed site"]
[{"$nulls":8},"YZ","Other/General Facilities Operations"]

{"sheet":"Mapping Tool Search","index":2,"n_rows":24,"n_cols":20,"rows_kept":24,"merged":[[0,1,0,7],[1,11,1,19],[2,3,2,4],[2,12,2,19],[3,3,3,4],[5,3,5,4],[7,12,7,14],[7,15,7,16],[7,17,7,19],[9,1,10,7],[14,17,15,19],[16,12,16,15],[17,12,17,13],[17,14,17,15],[18,12,18,13],[18,14,18,15],[19,12,19,13],[19,14,19,15],[20,12,20,13],[20,14,20,15],[21,12,21,13],[21,14,21,15],[23,18,23,19]]}
[null,"Risk & Opportunity Matrix Search"]
[{"$nulls":11},"OUTPUT - DO NOT ALTER"]
[{"$nulls":3},"INPUT HERE",{"$nulls":8},"Environmental Sustainability"]
[{"$nulls":3},"SELECT FROM DROP DOWN (one of these boxes should be blank when searching)",{"$nulls":7},"Max Environment Score","Carbon / Climate Change ","Biodiversity "," Water Use","Novel entities (e.g. chemical pollution and microplastics) ","Material scarcity & security ","Waste/ Disposal ","Circular Economy Opportunities","Environmental Data Maturity Opportunities"]
[{"$nulls":3},"Proc HE2 code:",null,{"$f":"IF(E5=\"\",VLOOKUP(E8,'Mapping Tool Data'!AE:AF,2),E5)","v":{"$error":"#N/A"}},{"$nulls":5},{"$f":"IFERROR(VLOOKUP($F$5,'Mapping Tool Data'!$A:$N,#REF!),\"\")","v":""},{"$f":"IFERROR(VLOOKUP($F$5,'Mapping Tool Data'!$A4:$V333,4),\"\")","v":""},{"$f":"IFERROR(VLOOKUP($F$5,'Mapping Tool Data'!$A4:$V333,5),\"\")","v":""},{"$f":"IFERROR(VLOOKUP($F$5,'Mapping Tool Data'!$A4:$WO333,6),\"\")","v":""},{"$f":"IFERROR(VLOOKUP($F$5,'Mapping Tool Data'!$A4:$V333,7),\"\")","v":""},{"$f":"IFERROR(VLOOKUP($F$5,'Mapping Tool Data'!$A4:$V333,8),\"\")","v":""},{"$f":"IFERROR(VLOOKUP($F$5,'Mapping Tool Data'!$A4:$V333,9),\"\")","v":""},{"$f":"IFERROR(VLOOKUP($F$5,'Mapping Tool Data'!$A4:$V333,10),\"\")","v":""},{"$f":"IFERROR(VLOOKUP($F$5,'Mapping Tool Data'!$A4:$V333,11),\"\")","v":""}]
[{"$nulls":3},"OR "]
[{"$nulls":11},12,13,14,15,16,18,19,21,22]
[{"$nulls":3},"Proc HE2 Description:",{"$nulls":8},"Social Compliance",null,null,"Working Environment and Terms",null,"Ethical Compliance & Economic Development"]
[{"$nulls":12}," Equality "," Modern Slavery Risk ","Social Opportunities (local)","Wages and Terms","Health and Safety","Bribery & Corruption ","GDPR ","Cyber Security "]
[null,"Use the Contract management section within Hunter to establish the Proc-HE2 code / description",{"$nulls":10},{"$f":"IFERROR(VLOOKUP($F$5,'Mapping Tool Data'!$A4:$V333,13),\"\")","v":""},{"$f":"IFERROR(VLOOKUP($F$5,'Mapping Tool Data'!$A4:$V333,14),\"\")","v":""},{"$f":"IFERROR(VLOOKUP($F$5,'Mapping Tool Data'!$A4:$V333,15),\"\")","v":""},{"$f":"IFERROR(VLOOKUP($F$5,'Mapping Tool Data'!$A4:$V333,17),\"\")","v":""},{"$f":"IFERROR(VLOOKUP($F$5,'Mapping Tool Data'!$A4:$V333,18),\"\")","v":""},{"$f":"IFERROR(VLOOKUP($F$5,'Mapping Tool Data'!$A4:$V333,20),\"\")","v":""},{"$f":"IFERROR(VLOOKUP($F$5,'Mapping Tool Data'!$A4:$V333,21),\"\")","v":""},{"$f":"IFERROR(VLOOKUP($F$5,'Mapping Tool Data'!$A4:$V333,22),\"\")","v":""}]
[]
[{"$nulls":12},"Total Score (Max = 48)",{"$f":"SUM(M5:T5)+SUM(M10:Q10)","v":0},null,"Number of High score themes (3)",{"$f":"COUNTIF(M5:T11,3)","v":0},null,"Commodity Risk / Opportunity Classification",{"$f":"IFERROR(VLOOKUP(N12,'Risk Level Scores'!$C$5:$E$8,3),\"\")","v":""}]
[]
[]
[{"$nulls":17},"Commodity Risk / Opportunity Classification"]
[]
[{"$nulls":12},"Scoring Key",{"$nulls":4},"Risk Level","Min Score","Max Score"]
[{"$nulls":12},3,null,"High Risk / Opportunity",null,null,"Low",{"v":0.1,"d":"0"},{"$f":"S19-0.00000001","v":{"v":15.99999999,"d":"16"}}]
[{"$nulls":12},2,null,"Moderate Risk / Opportunity",null,null,"Medium",16,{"$f":"S20-0.00000001","v":{"v":27.99999999,"d":"28"}}]
[{"$nulls":12},1,null,"Low Risk / Opportunity",null,null,"High",28,{"$f":"S21-0.00000001","v":{"v":34.99999999,"d":"35"}}]
[{"$nulls":12},0,null,"No Risk /Opportunity ",null,null,"Very high",35,48]
[{"$nulls":12},"N/A",null,"Level of Risk / Opportunity unknown",{"$nulls":3},"Notes:"]
[{"$nulls":18},"Only change the Min Scores"]
[{"$nulls":18},"Do not edit cells coloured GREY"]

{"sheet":"Mapping Tool Data","index":3,"n_rows":333,"n_cols":32,"rows_kept":333}
[1,2,3,4,5,6,7,8,9,10,11,null,12,14,17,null,15,16,{"$nulls":7},"AC",{"$nulls":5},"Supply Chain Code of Conduct Principle:"]
["Com Code","Commodity Code Description","Environmental Sustainability MAX","Carbon/ Climate Change ","Biodiversity "," Water ","Novel entities ","Material scarcity & security ","Waste/ Disposal ","Circular Economy Opportunities","Environmental Data Maturity Opportunities"," Social Compliance MAX"," Equality "," Modern Slavery Risk ","Social Opportunities (local)","Working Environment and Terms MAX","Wages and Terms","Health and Safety","Ethical Compliance & Economic Development MAX","Bribery & Corruption ","GDPR ","Cyber Security ","Sum",null,null,"AD",{"$nulls":4},"Commodity Code Description","Com Code"]
["A","Audio-Visual & Multimedia Supplies and Services",{"$nulls":21},{"$f":"SUM(D3:K3)","v":0},null,"AF",null,null,"AC",2,"Accommodation & Hotels (Direct)","TA"]
["AA","Audio Visual Equipment, incl video conferencing, Televisions, Videos, sound recorders",{"$f":"MAX(D4:K4)","v":3},2,2,3,2,2,3,3,3,{"$f":"MAX(M4:N4)","v":2},2,1,2,{"$f":"MAX(Q4:R4)","v":3},3,3,{"$f":"MAX(T4:V4)","v":3},3,1,3,{"$f":"SUM(D4:K4,M4:O4,Q4:R4,T4:V4)","v":38},{"$f":"SUM(D4:K4)","v":20},null,"AG","Audio Visual Equipment, incl video conferencing, Televisions, Videos, sound recorders",null,"AD",2,"Accountancy Services, inc. Audit Consultancy,","RD"]
["AC","Audio Visual Learning and Training  Packs and Pre-recorded  Media",2,1,1,2,"N/A",2,1,0,1,2,1,2,2,1,1,1,{"$f":"MAX(T5:V5)","v":2},1,1,2,19,8,null,"AH","Audio Visual Learning and Training  Packs and Pre-recorded  Media",null,"AE",2,"Advertising Services  (Course, Recruitment & Other)","RA"]
["AD","Musical Instruments, Purchase, Maintenance and Hire",2,1,1,1,1,1,1,1,2,2,1,2,2,2,2,2,1,1,1,0,20,9,null,"AJ","Musical Instruments, Purchase, Maintenance and Hire",null,"AF",2,"Agric/Hortic Disposal Services","YG"]
["AE","Photographic Equipment Supplies and Services",3,2,2,2,2,1,3,1,3,3,3,2,2,2,2,2,3,3,1,2,33,16,null,"AL","Photographic Equipment Supplies and Services",null,"AG",2,"Agricultural Equipment Hire","EG"]
["AF","Studio Hire and Running  Costs",2,1,0,0,0,0,0,1,2,3,3,2,2,2,2,2,1,1,1,0,17,4,null,"AT","Studio Hire and Running  Costs",null,"AH",2,"Agricultural Equipment Maintenance and Repair","EF"]
["AG","Theatre Production Costs (scenery, lighting, props, costumes)",3,2,2,1,2,0,1,3,2,1,1,1,2,3,3,2,2,2,1,0,25,13,null,"AU","Theatre Production Costs (scenery, lighting, props, costumes)",null,"AJ",2,"Agricultural Fencing Supplies and Associated Services","EL"]
["AH","Video Equipment Purchase hire and Maintenance and repair ",3,2,2,1,2,2,3,3,2,2,1,2,2,2,2,1,3,3,1,1,30,17,null,"BA","Video Equipment Purchase hire and Maintenance and repair ",null,"AL",2,"Agricultural, Fisheries, Forestry, Oceanographic Capital Equipment >£10k ","EC"]
["AJ","Audio Visual Consumables,  Accessories, Cassettes  etc",2,2,2,0,1,1,1,1,2,2,1,2,2,3,3,2,3,3,1,0,24,10,null,"BB","Audio Visual Consumables,  Accessories, Cassettes  etc",null,"AT",2,"Agricultural, Fisheries, Forestry, Oceanographic, Small Equipment and Tools","ED"]
["AL","Digital Imaging Equipment  Purchase, Maintenance,  Repair and Consumables",3,2,2,2,1,2,3,2,2,2,1,2,2,2,2,2,3,3,1,2,31,16,null,"BC","Digital Imaging Equipment  Purchase, Maintenance,  Repair and Consumables",null,"AU",2,"Agricultural/Fisheries/Forestry/Horticultural/Oceanographic Supplies & Services","E"]
["AT","Audio-Visual Equipment Hire",3,1,1,1,0,1,1,3,2,2,1,2,2,3,3,2,3,3,1,2,26,10,null,"BD","Audio-Visual Equipment Hire",{"$nulls":3},"Air Travel","TB"]
["AU","Audio Visual Equipment Maintenance and Services",3,1,1,1,0,1,1,3,2,2,1,2,2,3,3,2,3,3,1,3,27,10,null,"BE","Audio Visual Equipment Maintenance and Services",{"$nulls":3},"Aircraft & Helicopter Hire","TN"]
["AZ","Other and General Audio-Visual  Aids",2,{"v":1.636363636,"d":"2"},1,1,1,1,2,{"v":1.818181818,"d":"2"},2,2,1,2,2,2,2,2,2,2,2,0,{"v":24.454545453999998,"d":"24"},{"v":11.454545454,"d":"11"},null,"BF","Other and General Audio-Visual  Aids",null,"BA",1,"Alarms (including Fire, Smoke, Gas, Intruder) purchase, maintenance, repair and hire","UM"]
["B","Library & Publications",{"$nulls":21},0,null,"BG",null,null,"BB",1,"Animal Welfare Supplies and Services","EJ"]
["BA","Book Binding Services",2,1,2,1,2,1,1,1,1,2,2,1,1,3,3,1,1,1,1,0,20,10,null,"BI","Book Binding Services",null,"BC",1,"Archival and Storage Services inc EDM","RV"]
["BB","Books Hardcopy",3,1,3,2,2,3,1,1,2,1,1,1,1,2,2,2,1,1,1,0,24,15,null,"BJ","Books Hardcopy",null,"BD",1,"Archiving Equipment  and Consumables  (Microfiche etc)","BJ"]
["BC","Inter-Library Loans",2,1,0,0,0,2,1,1,1,1,1,1,1,1,1,1,1,1,1,0,13,6,null,"BK","Inter-Library Loans",null,"BE",1,"Art Exhibits and Museum Collections","NA"]
["BD","Journals Hardcopy",3,1,3,2,1,3,1,1,2,1,1,1,1,2,2,2,1,1,1,0,23,14,null,"BL","Journals Hardcopy",null,"BF",1,"Artistes and Conductors","RY"]
["BE","Library Subscriptions",1,1,0,0,0,0,1,1,1,1,1,1,1,1,1,1,1,1,1,0,11,4,null,"BM","Library Subscriptions",null,"BG",1,"Arts Equipment Purchase and Maintenance and Consumables","NF"]
["BF","Manuscripts Hardcopy",3,1,3,2,1,3,1,1,2,2,2,1,1,2,2,2,1,1,1,0,24,14,null,"BN","Manuscripts Hardcopy",null,"BI",1,"Auction Services","RT"]
["BG","Newspapers and Periodicals Hardcopy",3,1,3,2,1,3,1,1,2,1,1,1,1,2,2,2,1,1,1,0,23,14,null,"BP","Newspapers and Periodicals Hardcopy",null,"BJ",1,"Audio Visual Consumables,  Accessories, Cassettes  etc","AJ"]
["BI","Manuscripts Electronic",2,2,1,1,0,2,0,0,1,1,1,1,1,2,2,1,2,1,1,2,17,7,null,"BQ","Manuscripts Electronic",null,"BK",1,"Audio Visual Equipment Maintenance and Services","AU"]
["BJ","Archiving Equipment  and Consumables  (Microfiche etc)",2,2,1,0,"N/A",1,2,0,2,1,1,1,1,2,2,2,1,1,1,0,17,8,null,"BR","Archiving Equipment  and Consumables  (Microfiche etc)",null,"BL",1,"Audio Visual Equipment, incl video conferencing, Televisions, Videos, sound recorders","AA"]
["BK","Electronic Publications, Media and Music",2,1,1,1,0,2,0,0,1,1,1,1,1,2,2,2,2,1,1,2,17,6,null,"BS","Electronic Publications, Media and Music",null,"BM",1,"Audio Visual Learning and Training  Packs and Pre-recorded  Media","AC"]
["BL","Manuals; Computer,  Workshop, Training",2,1,1,1,"N/A",2,0,1,1,1,1,1,1,1,1,1,1,1,1,0,14,7,null,"BT","Manuals; Computer,  Workshop, Training",null,"BN",1,"Audio-Visual & Multimedia Supplies and Services","A"]
["BM","Tickets and Tokens (including electronic tickets and book tokens)",1,1,1,0,"N/A",0,0,1,1,1,1,1,1,1,1,1,1,1,1,0,11,4,null,"BV","Tickets and Tokens (including electronic tickets and book tokens)",null,"BP",1,"Audio-Visual Equipment Hire","AT"]
["BN","Library Equipment and Services (e.g. book tagging) including maintenance, repair and hire",2,2,1,1,1,2,2,2,2,2,2,1,1,1,1,1,2,2,1,0,22,13,null,"BW","Library Equipment and Services (e.g. book tagging) including maintenance, repair and hire",null,"BQ",1,"Awards, Gifts, Trophies, Souvenirs","XM"]
["BP","Books Electronic",2,2,1,1,0,1,0,0,1,1,1,1,1,1,1,1,2,1,1,2,15,6,null,"CA","Books Electronic",null,"BR",1,"Bakery Products","CB"]
["BQ","Journals Electronic",2,2,1,1,0,1,0,0,1,2,2,1,1,1,1,1,2,1,1,2,16,6,null,"CB","Journals Electronic",null,"BS",1,"Banking Services","RH"]
["BR","Newspapers and Periodicals Electronic",2,2,1,1,0,1,0,0,1,1,1,1,1,1,1,1,2,1,1,2,15,6,null,"CC","Newspapers and Periodicals Electronic",null,"BT",1,"Beers, Wines, Spirits  and Alcoholic drinks","CA"]
["BS","Library Licences and Royalties",1,0,0,0,0,1,0,0,0,1,1,1,1,1,1,1,1,1,1,0,8,1,null,"CD","Library Licences and Royalties",null,"BV",1,"Bespoke IT Solutions","KW"]
["BT","Library Materials Restoration",2,1,1,"N/A",1,1,1,1,2,1,1,1,1,1,1,1,1,1,1,0,15,8,null,"CE","Library Materials Restoration",null,"BW",1,"Boat Hire & Charter","TL"]
["BV","Maps Electronic or Hardcopy",3,1,1,2,1,3,1,1,1,1,1,1,1,1,1,1,3,1,1,3,21,11,null,"CF","Maps Electronic or Hardcopy",{"$nulls":3},"Book Binding Services","BA"]
["BW","Sheet Music ",3,1,3,2,1,3,1,1,1,1,1,1,1,1,1,1,1,1,1,0,20,13,null,"CG","Sheet Music ",{"$nulls":3},"Books Electronic","BP"]
["BZ","Other and General Library",2,{"v":1.25,"d":"1"},1,1,1,2,1,{"v":0.4375,"d":"0"},1,1,1,1,1,2,2,2,1,1,1,0,{"v":17.6875,"d":"18"},{"v":8.6875,"d":"9"},null,"CH","Other and General Library",null,"CA",1,"Books Hardcopy","BB"]
["C","Catering Supplies & Services",{"$nulls":21},0,null,"CJ",null,null,"CB",1,"Branding and Media Services","RX"]
["CA","Beers, Wines, Spirits  and Alcoholic drinks",3,2,3,3,1,1,1,0,2,2,1,2,1,2,2,2,2,2,1,0,24,13,null,"CK","Beers, Wines, Spirits  and Alcoholic drinks",null,"CC",1,"Building related Professional Services, Architects, Estates Agents, QS, Construction Mgt,Surveying Equip & Services","WU"]
["CB","Bakery Products",2,2,2,2,1,1,1,2,2,2,1,2,1,3,3,3,2,2,1,0,26,13,null,"CL","Bakery Products",null,"CD",1,"Building Repairs & Maintenance Services (including Signage)","WH"]
["CC","Dairy Produce",3,3,3,3,2,2,1,2,3,2,1,2,1,3,3,3,1,1,1,0,31,19,null,"CM","Dairy Produce",null,"CE",1,"Building, Repair and Maintenance Materials","WA"]
["CD","Frozen Foods",3,3,2,2,1,1,1,2,2,3,2,3,1,2,2,2,1,1,1,0,26,14,null,"CN","Frozen Foods",null,"CF",1,"Building/Premises/Land - Rent, Lease, Hire, Feu Duties","XG"]
["CE","Groceries",2,1,2,2,1,1,1,2,2,1,1,1,1,2,2,2,1,1,1,0,21,12,null,"CP","Groceries",null,"CG",2,"Bursaries, Scholarships, Endowments, Donations","XN"]
["CF","Catering, Bar Equipment and Accessories Purchases",3,1,1,1,1,0,3,2,1,1,1,1,1,2,2,2,2,2,1,0,20,10,null,"CQ","Catering, Bar Equipment and Accessories Purchases",null,"CH",1,"Capital Projects","WB"]
["CG","Catering Equipment Maintenance and Repair",3,1,1,0,0,0,3,2,1,2,2,2,2,2,2,2,2,2,1,0,21,8,null,"CS","Catering Equipment Maintenance and Repair",null,"CJ",1,"Car Hire","TH"]
["CH","Meat, Poultry, Offal",3,3,3,3,2,2,1,1,3,1,1,1,1,3,3,3,1,1,1,0,29,18,null,"CU","Meat, Poultry, Offal",null,"CK",1,"Carbon Emissions Trading","JG"]
["CJ","Soft Drinks, Hot Drinks and Non-alcoholic Drinks",3,2,2,2,0,1,1,1,3,1,1,1,1,2,2,2,1,1,1,0,21,12,null,"CV","Soft Drinks, Hot Drinks and Non-alcoholic Drinks",null,"CL",1,"Catering Entertainments","CS"]
["CK","Tableware, Crockery, Cutlery, Table Coverings etc inc Disposables",3,2,2,2,1,1,1,1,3,3,3,1,1,2,2,2,2,2,1,0,25,13,null,"CY","Tableware, Crockery, Cutlery, Table Coverings etc inc Disposables",null,"CM",1,"Catering Equipment Maintenance and Repair","CG"]
["CL","Vending Equipment, Consumables and Charges",3,1,1,1,1,1,3,2,2,3,1,3,1,2,2,2,2,2,1,0,24,12,null,"CZ","Vending Equipment, Consumables and Charges",null,"CN",1,"Catering Hospitality Services","CU"]
["CM","Fruit and Vegetables, Frozen, Fresh, Dried, Tinned",3,2,3,3,1,1,1,1,3,3,3,1,1,3,3,2,1,1,1,0,27,15,null,"DA","Fruit and Vegetables, Frozen, Fresh, Dried, Tinned",null,"CP",1,"Catering Services Outsourced at a fixed site","YR"]
["CN","Table and Room Decorations",1,1,1,"N/A",0,0,1,1,1,3,1,3,1,2,2,2,1,1,1,0,16,5,null,"DB","Table and Room Decorations",null,"CQ",1,"Catering Supplies & Services","C"]
["CP","Fish and Seafood",3,2,3,"N/A","N/A",2,1,1,3,1,1,1,1,3,3,3,1,1,1,0,23,12,null,"DC","Fish and Seafood",null,"CS",1,"Catering, Bar Equipment and Accessories Purchases","CF"]
["CQ","Confectionery, Sweet and Savoury",2,1,2,1,1,1,1,2,2,3,3,1,1,2,2,2,1,1,1,0,22,11,null,"DE","Confectionery, Sweet and Savoury",null,"CU",1,"CHP Plant Maintenance","JH"]
["CS","Catering Entertainments",1,1,1,0,0,0,1,0,1,3,3,2,1,1,1,1,1,1,1,0,14,4,null,"DF","Catering Entertainments",null,"CV",1,"Cleaning Machines and Maintenance ","HB"]
["CU","Catering Hospitality Services",1,1,1,0,0,0,1,1,1,1,1,1,1,2,2,1,1,1,1,0,13,5,null,"DH","Catering Hospitality Services",null,"CY",1,"Cleaning Services Including Window Cleaning","YP"]
["CV","Liquor Licences",1,1,0,0,0,0,1,0,1,3,1,3,1,1,1,1,1,1,1,0,12,3,null,"DJ","Liquor Licences",null,"CZ",null,"Clothing and Tailoring Supplies and Services","YM"]
["CY","Tobacco",3,2,3,1,1,2,1,0,3,1,0,1,1,3,3,3,2,2,1,0,24,13,null,"DL","Tobacco",{"$nulls":3},"Coach Hire","TK"]
["CZ","Other and General Catering",2,{"v":1.368421053,"d":"1"},2,2,1,1,1,0,2,2,2,2,1,2,2,2,1,1,1,0,{"v":21.368421053,"d":"21"},{"v":10.368421053,"d":"10"},null,"DZ","Other and General Catering",null,"DA",1,"Commercial and Graphic  Art Equipment Purchase  and Maintenance  and Consumables","NE"]
["D","Medical, Surgical, Nursing, Dentistry Supplies & Services",{"$nulls":21},0,null,"EA",null,null,"DB",1,"Communications Equipment & Accessories (Hubs, Modems, Routers)","QN"]
["DA","Medical, Surgical, Nursing Supplies & Services Capital Equipment >£10k",3,3,3,3,1,2,3,3,3,2,1,2,1,3,3,3,3,3,1,3,38,21,null,"EB","Medical, Surgical, Nursing Supplies & Services Capital Equipment >£10k",null,"DC",1,"Computer Consumables, Peripherals, Upgrades and Add-ons","KM"]
["DB","Medical, Surgical, Nursing Supplies & Services Small Apparatus, Equipment  and Instruments",3,2,2,3,1,2,3,3,3,2,1,2,1,3,3,3,3,3,1,0,33,19,null,"EC","Medical, Surgical, Nursing Supplies & Services Small Apparatus, Equipment  and Instruments",null,"DE",1,"Computer Supplies & Services","K"]
["DC","Medical, Surgical, Nursing Supplies & Services Consumables and Disposables",3,2,3,3,2,2,2,3,3,3,3,2,1,3,3,3,3,3,1,0,36,20,null,"ED","Medical, Surgical, Nursing Supplies & Services Consumables and Disposables",null,"DF",2,"Confectionery, Sweet and Savoury","CQ"]
["DE","Medical, Surgical, Nursing Supplies & Services, Specialist Clothing",3,2,3,3,1,1,2,3,3,1,1,1,1,3,3,2,1,1,1,0,28,18,null,"EF","Medical, Surgical, Nursing Supplies & Services, Specialist Clothing",null,"DH",1,"Conferences & Meetings (Event Management)","RB"]
["DF","Medical, Surgical, Nursing Equipment Maintenance and Repair",3,1,1,1,0,0,2,3,2,1,1,1,2,3,3,3,3,2,1,3,26,10,null,"EG","Medical, Surgical, Nursing Equipment Maintenance and Repair",null,"DJ",1,"Conferences, meetings and room bookings","TQ"]
["DH","Medical, Surgical, Nursing Diagnostic Services and Clinical Trials",2,1,1,1,0,0,1,1,2,1,1,1,1,3,3,3,1,1,1,0,18,7,null,"EH","Medical, Surgical, Nursing Diagnostic Services and Clinical Trials",null,"DL",1,"Conservation & Restoration Materials","NC"]
["DJ","Medical, Surgical, Nursing Teaching materials and aids",3,1,1,0,0,1,3,1,2,2,1,2,1,2,2,1,1,1,1,0,18,9,null,"EJ","Medical, Surgical, Nursing Teaching materials and aids",null,"DZ",null,"Conservation & Restoration Services","ND"]
["DL","Medicinal Drugs - Non Veterinary",3,3,3,2,2,2,3,1,3,1,"N/A",1,1,{"$f":"MAX(Q67:R67)","v":3},3,3,2,2,1,0,{"$f":"SUM(D67:K67,M67:O67,Q67:R67,T67:V67)","v":30},19,null,"EK","Medicinal Drugs - Non Veterinary",{"$nulls":3},"Conservation Projects","WD"]
["DZ","Medical, Surgical, Nursing Supplies & Services  Other and General",{"$f":"MAX(D68:K68)","v":3},{"v":1.875,"d":"2"},2,2,1,1,2,{"v":2.125,"d":"2"},3,{"$f":"MAX(M68:N68)","v":2},1,2,1,2,2,2,2,2,1,0,26,{"$f":"SUM(D68:K68)","v":15},null,"EL","Medical, Surgical, Nursing Supplies & Services  Other and General",null,"EA",1,"Construction Waste Disposal","WO"]
["E","Agricultural/Fisheries/Forestry/Horticultural/Oceanographic Supplies & Services",{"$nulls":21},0,null,"EM",null,null,"EB",1,"Consumables","NG"]
["EA","Livestock and Animal Purchases, Services and Supplies",3,3,3,3,1,2,1,0,3,2,1,2,1,2,2,2,{"$f":"MAX(T70:V70)","v":1},1,1,0,26,16,null,"EN","Livestock and Animal Purchases, Services and Supplies",null,"EC",1,"Counselling Services","UL"]
["EB","Livestock, Animal and Farm Feeds",3,2,3,2,0,2,1,1,3,2,1,2,1,2,2,2,1,1,1,0,24,14,null,"EP","Livestock, Animal and Farm Feeds",null,"ED",1,"Courier Services","YC"]
["EC","Agricultural, Fisheries, Forestry, Oceanographic Capital Equipment >£10k ",3,3,3,3,1,1,3,3,3,2,1,2,1,3,2,3,3,3,1,3,36,20,null,"ES","Agricultural, Fisheries, Forestry, Oceanographic Capital Equipment >£10k ",null,"EF",2,"Credit Card Charges","XB"]
["ED","Agricultural, Fisheries, Forestry, Oceanographic, Small Equipment and Tools",3,2,2,2,1,1,1,2,3,1,1,1,1,2,2,2,3,3,1,0,25,14,null,"ET","Agricultural, Fisheries, Forestry, Oceanographic, Small Equipment and Tools",null,"EG",1,"Customs & Excise - VAT","XC"]
["EF","Agricultural Equipment Maintenance and Repair",3,1,1,1,0,0,0,3,2,1,1,1,2,3,2,3,3,2,1,3,23,8,null,"EZ","Agricultural Equipment Maintenance and Repair",null,"EH",1,"Dairy Produce","CC"]
["EG","Agricultural Equipment Hire",3,1,1,2,0,1,0,3,2,1,1,1,1,3,2,3,2,2,1,0,21,10,null,"FA","Agricultural Equipment Hire",null,"EJ",1,"Data Information Services","RC"]
["EH","Purchase of Plants, Crops, Trees etc",3,1,3,"N/A",0,1,1,1,3,3,3,2,1,2,2,1,1,1,1,0,21,10,null,"FB","Purchase of Plants, Crops, Trees etc",null,"EK",1,"Data Telecommunications, internet services - e.g. Eduroam or VOIP","QT"]
["EJ","Animal Welfare Supplies and Services",2,1,1,2,0,1,1,1,2,2,1,2,1,2,2,2,1,1,1,0,19,9,null,"FC","Animal Welfare Supplies and Services",null,"EL",1,"Debt Collection Services","RR"]
["EK","Fertilisers, Pesticides, Composts, Soils etc",3,3,3,1,1,2,3,1,3,1,1,1,1,3,2,3,3,3,1,0,29,17,null,"FD","Fertilisers, Pesticides, Composts, Soils etc",null,"EM",1,"Desktop, Laptop, Tablet, Computer Purchase inc Apple","KH"]
["EL","Agricultural Fencing Supplies and Associated Services",2,2,2,1,0,2,1,2,1,1,1,1,1,2,2,2,1,1,1,0,20,11,null,"FE","Agricultural Fencing Supplies and Associated Services",null,"EN",1,"Diaries, Calendars","SD"]
["EM","Horticultural Consumables  (Pots, Seed Trays  etc)",2,2,2,1,2,1,1,2,2,1,1,1,1,2,2,1,1,1,1,0,21,13,null,"FF","Horticultural Consumables  (Pots, Seed Trays  etc)",null,"EP",1,"Digital Imaging Equipment  Purchase, Maintenance,  Repair and Consumables","AL"]
["EN","Oceanographic Supplies and Services",2,2,1,1,"N/A",1,2,2,2,1,1,1,1,2,2,2,2,2,1,0,21,11,null,"FG","Oceanographic Supplies and Services",null,"ES",1,"Electrical Sundries and Components","MB"]
["EP","Housing - Kennels, Catteries, Stabling, bedding and tackle Supplies and Services",2,2,1,1,0,1,1,2,2,1,1,1,1,2,2,2,1,1,1,0,19,10,null,"FK","Housing - Kennels, Catteries, Stabling, bedding and tackle Supplies and Services",null,"ET",1,"Electrical White Goods and Domestic Kitchen Equipment","FA"]
["ES","Pasturage, purchase, lease and maintenance",3,1,3,0,0,0,1,2,3,2,1,2,1,2,2,1,1,1,1,0,19,10,null,"FL","Pasturage, purchase, lease and maintenance",null,"EZ",null,"Electricity Supply and Services","JA"]
["ET","Medicinal Products - Drugs Veterinary",3,3,3,2,2,2,3,1,3,1,"N/A",1,1,3,2,3,2,2,1,0,29,19,null,"FN","Medicinal Products - Drugs Veterinary",{"$nulls":3},"Electronic Components and Test Equipment, Purchase, Maintenance, Repair and Hire","MN"]
["EZ","Other and General",2,{"v":1.933333333,"d":"2"},2,2,1,1,1,{"v":1.666666667,"d":"2"},2,2,1,2,1,2,2,2,2,2,1,0,{"v":23.6,"d":"24"},{"v":12.6,"d":"13"},null,"FP","Other and General",null,"FA",1,"Electronic Publications, Media and Music","BK"]
["F","Furniture, Furnishings & Textiles",{"$nulls":21},0,null,"FT",null,null,"FB",1,"Envelopes","SA"]
["FA","Electrical White Goods and Domestic Kitchen Equipment",3,2,2,2,2,2,3,3,3,3,3,3,1,2,2,2,3,3,1,2,36,19,null,"FU","Electrical White Goods and Domestic Kitchen Equipment",null,"FC",1,"EPOS and PDQ Machines","KI"]
["FB","Laboratory Furniture - Fixed and Free-standing",3,2,2,3,2,1,1,3,3,3,3,3,1,2,2,2,1,1,1,0,30,17,null,"FZ","Laboratory Furniture - Fixed and Free-standing",null,"FD",1,"Estates & Buildings","W"]
["FC","Furniture - Office",3,2,2,3,2,1,3,3,3,3,3,3,1,2,2,2,1,1,1,0,32,19,null,"GA","Furniture - Office",null,"FE",1,"Facilities Operations","Y"]
["FD","Floor Coverings",3,2,3,3,3,1,1,3,3,3,1,3,1,2,2,2,2,2,1,0,31,19,null,"GB","Floor Coverings",null,"FF",1,"Fees - Students","XD"]
["FE","Textiles, Fabrics, Soft and Loose Furnishings",3,2,3,3,2,1,3,3,3,3,3,2,1,2,2,2,1,1,1,0,32,20,null,"GC","Textiles, Fabrics, Soft and Loose Furnishings",null,"FG",1,"Fees, Lecturing, Examining, Moderating etc","XA"]
["FF","Furniture - Residential",3,2,2,3,2,1,3,3,3,2,1,2,1,2,2,2,1,1,1,0,29,19,null,"GD","Furniture - Residential",null,"FK",1,"Ferry Travel","TC"]
["FG","Window Coverings",3,2,3,3,1,1,1,3,3,3,3,2,1,2,2,2,1,1,1,0,29,17,null,"GE","Window Coverings",null,"FL",1,"Fertilisers, Pesticides, Composts, Soils etc","EK"]
["FK","Furniture - Repairs",3,1,1,1,0,0,1,3,1,3,3,2,1,2,2,2,1,1,1,0,20,8,null,"GF","Furniture - Repairs",null,"FN",1,"Files, Filing Folders, Binders","SB"]
["FL","Furniture - Classroom and Lecture Theatre",3,2,2,3,2,1,3,3,3,3,3,2,1,2,2,2,1,1,1,0,31,19,null,"GG","Furniture - Classroom and Lecture Theatre",null,"FP",1,"Financial Investment Services","RI"]
["FN","General Storage, Racking,  Shelving (incl.  Library)",3,2,2,1,0,1,1,3,2,2,0,2,1,2,2,2,1,1,1,0,21,12,null,"GH","General Storage, Racking,  Shelving (incl.  Library)",null,"FT",1,"Fire Protection/Fire Fighting Equipment & Services","UB"]
["FP","Security Furniture Inc Safes",2,2,2,2,"N/A",1,1,2,1,2,0,2,1,2,2,2,2,2,1,0,21,11,null,"GZ","Security Furniture Inc Safes",null,"FU",1,"First Aid Supplies","UC"]
["FT","Outdoor Furniture",3,2,2,3,0,2,1,3,3,2,0,2,1,2,2,2,1,1,1,0,25,16,null,"HB","Outdoor Furniture",null,"FZ",null,"Fish and Seafood","CP"]
["FU","Furniture and Furnishing Purchase - Specialist",3,2,1,"N/A","N/A",2,3,2,3,2,0,2,1,2,2,2,1,1,1,0,22,13,null,"HD","Furniture and Furnishing Purchase - Specialist",{"$nulls":3},"Floor Coverings","FD"]
["FZ","Other and General Furniture,  Furnishings and  Textiles",3,{"v":1.769230769,"d":"2"},2,3,1,1,2,{"v":2.916666667,"d":"3"},3,2,2,2,1,2,2,2,1,1,1,0,{"v":27.685897435999998,"d":"28"},{"v":16.685897435999998,"d":"17"},null,"HG","Other and General Furniture,  Furnishings and  Textiles",null,"GA",1,"Freight Carriage & Haulage Services","YD"]
["G","Sports Science and Recreation",{"$nulls":21},0,null,"HH",null,null,"GB",1,"Frozen Foods","CD"]
["GA","Sports,  Recreational Equipment",3,1,1,1,2,2,3,3,2,2,1,2,1,3,3,2,3,2,1,3,30,15,null,"HR","Sports,  Recreational Equipment",null,"GC",3,"Fruit and Vegetables, Frozen, Fresh, Dried, Tinned","CM"]
["GB","Sports Capital Purchases",3,3,2,2,2,2,3,3,2,1,1,1,1,3,3,2,3,3,1,0,31,19,null,"HZ","Sports Capital Purchases",null,"GD",1,"Fuels & Lubricants","VG"]
["GC","Sports Equipment - Maintenance & Repair",3,1,1,0,0,0,1,3,2,1,1,1,3,3,3,2,3,2,1,3,24,8,null,"JA","Sports Equipment - Maintenance & Repair",null,"GE",1,"Furniture - Classroom and Lecture Theatre","FL"]
["GD","Sports Equipment - Hire & Lease",2,1,1,0,0,1,1,2,2,2,1,2,1,1,1,1,2,2,1,0,17,8,null,"JB","Sports Equipment - Hire & Lease",null,"GF",1,"Furniture - Office","FC"]
["GE","Sports Equipment - Consumables",2,1,1,0,"N/A",0,1,2,1,3,3,3,1,3,3,2,2,2,1,0,21,6,null,"JC","Sports Equipment - Consumables",null,"GG",1,"Furniture - Office Removal  and Storage","YE"]
["GF","Sports Clothing",3,2,3,2,2,0,1,3,3,1,1,1,1,3,3,2,3,1,3,0,28,16,null,"JD","Sports Clothing",null,"GH",1,"Furniture - Repairs","FK"]
["GG","Sports Services (incl: coaching)",1,1,0,0,0,0,0,0,1,2,1,2,1,1,1,1,2,1,2,0,11,2,null,"JE","Sports Services (incl: coaching)",null,"GZ",null,"Furniture - Residential","FF"]
["GH","Sports Science Equipment Hire maintenance and Service",3,1,1,0,0,1,1,3,2,1,1,1,1,1,1,1,3,2,1,3,20,9,null,"JF","Sports Science Equipment Hire maintenance and Service",{"$nulls":3},"Furniture and Furnishing Purchase - Specialist","FU"]
["GZ","Other Sports Science and Recreation",{"v":2.625,"d":"3"},{"v":1.5,"d":"2"},1,1,1,1,1,{"v":2.625,"d":"3"},2,1,1,1,1,2,2,2,2,2,1,0,{"v":21.125,"d":"21"},{"v":11.125,"d":"11"},null,"JG","Other Sports Science and Recreation",null,"HB",1,"Furniture, Furnishings & Textiles","F"]
["H","Janitorial & Domestic Supplies & Services",{"$nulls":21},0,null,"JH",null,null,"HD",1,"Garage Equipment","VJ"]
["HB","Cleaning Machines and Maintenance ",3,2,1,1,1,2,3,3,3,3,3,3,1,3,2,3,3,3,1,0,32,16,null,"JJ","Cleaning Machines and Maintenance ",null,"HG",1,"General Consultancy including IT excl Estates","RE"]
["HD","Personal Hygiene, Washroom Services and Vending Supplies and Services",3,1,2,1,2,0,1,3,3,3,3,2,1,3,3,1,1,1,1,0,25,13,null,"JZ","Personal Hygiene, Washroom Services and Vending Supplies and Services",null,"HH",1,"General Stationery","SJ"]
["HG","Laundry and Dry Cleaning  Services and Equipment",3,2,2,2,2,0,3,3,3,2,1,2,1,3,3,2,3,3,1,0,30,17,null,"KE","Laundry and Dry Cleaning  Services and Equipment",null,"HR",1,"General Storage, Racking,  Shelving (incl.  Library)","FN"]
["HH","Washroom and Cleaning Consumables",3,2,3,1,1,1,1,3,3,2,0,2,1,3,3,1,3,3,1,0,26,15,null,"KG","Washroom and Cleaning Consumables",null,"HZ",null,"Groceries","CE"]
["HR","Janitoral Clothing (Uniforms, Corporate, Security, Academic Gowns), Tailoring Supplies and Services",3,2,3,3,1,1,3,3,3,1,0,1,1,3,3,2,2,1,2,0,29,19,null,"KH","Janitoral Clothing (Uniforms, Corporate, Security, Academic Gowns), Tailoring Supplies and Services",{"$nulls":3},"Ground maintenance, Supplies & Services (incl Landscaping)","WK"]
["HZ","Other and General Cleaning  and Janitorial",3,{"v":1.6,"d":"2"},2,2,1,1,2,{"v":2.6,"d":"3"},3,2,2,2,1,2,2,2,2,2,1,0,{"v":27.2,"d":"27"},{"v":15.2,"d":"15"},null,"KI","Other and General Cleaning  and Janitorial",null,"JA",1,"Grounds Maintenance Equipment","WJ"]
["J","Utilities",{"$nulls":21},0,null,"KJ",null,null,"JB",1,"Hand & Power Tools and Accessories","MF"]
["JA","Electricity Supply and Services",3,3,2,1,1,3,0,0,3,1,1,1,1,2,2,2,3,3,1,0,24,13,null,"KM","Electricity Supply and Services",null,"JC",1,"Handling and Storage Equipment, Purchase, Maintenance, Repair and Hire","ME"]
["JB","Mains Gas Supply and Services",3,3,3,1,1,1,0,1,3,1,1,1,1,2,2,2,3,3,1,0,24,13,null,"KN","Mains Gas Supply and Services",null,"JD",1,"Health & Safety & Security","U"]
["JC","Oil Supply and Services",3,3,3,1,3,1,0,1,3,1,1,1,1,2,2,2,3,3,1,0,26,15,null,"KO","Oil Supply and Services",null,"JE",1,"Hire & Rental of Art Exhibits and Museum Collections","NB"]
["JD","Solid Fuel, Supplies and Services",3,3,3,2,3,1,0,1,3,1,1,1,1,2,2,2,3,3,1,0,27,16,null,"KS","Solid Fuel, Supplies and Services",null,"JF",1,"Horticultural Consumables  (Pots, Seed Trays  etc)","EM"]
["JE","Water and Sewerage Services",3,1,2,0,1,2,0,1,3,1,1,1,1,2,2,2,3,3,1,0,21,10,null,"KT","Water and Sewerage Services",null,"JG",1,"Hospitality/Entertainment/Courtesy Expenses (Non Employees)","XE"]
["JF","Steam Trading",3,0,0,0,0,"N/A",0,1,3,1,1,1,1,2,2,2,3,3,1,0,15,4,null,"KU","Steam Trading",null,"JH",2,"Housing - Kennels, Catteries, Stabling, bedding and tackle Supplies and Services","EP"]
["JG","Carbon Emissions Trading",3,0,0,0,0,0,0,0,3,1,1,1,1,1,1,1,1,1,1,0,10,3,null,"KV","Carbon Emissions Trading",null,"JJ",1,"Insurance Services","RF"]
["JH","CHP Plant Maintenance",3,1,2,1,1,1,0,2,3,1,1,1,2,2,2,2,1,1,1,0,21,11,null,"KW","CHP Plant Maintenance",null,"JZ",null,"Interdepartmental trading","XR"]
["JJ","Renewable Energy (Fit,Rhi) Equipment",3,2,2,3,1,3,0,0,3,1,"N/A",1,1,3,3,2,1,1,1,0,23,14,null,"KZ","Renewable Energy (Fit,Rhi) Equipment",{"$nulls":3},"Inter-Library Loans","BC"]
["JZ","Other/General Utilities",3,{"v":1.777777778,"d":"2"},2,1,1,2,0,0,3,1,1,1,1,2,2,2,2,2,1,0,{"v":20.777777778,"d":"21"},{"v":10.777777778,"d":"11"},null,"LA","Other/General Utilities",null,"KE",2,"IT Hardware support & maintenance","KT"]
["K","Computer Supplies & Services",{"$nulls":21},0,null,"LB",null,null,"KG",2,"IT Hire & Rental","KU"]
["KE","IT Software inc Bespoke Licences Maintenance",2,2,1,2,1,2,0,0,2,3,3,3,2,1,1,1,3,1,3,2,26,10,null,"LC","IT Software inc Bespoke Licences Maintenance",null,"KH",0,"IT Managed Services","KS"]
["KG","Server, Storage and Networking Equipment Purchase",3,3,2,3,2,2,3,3,3,3,3,3,2,{"$f":"MAX(Q131:R131)","v":3},3,3,3,3,1,3,{"$f":"SUM(D131:K131,M131:O131,Q131:R131,T131:V131)","v":42},21,null,"LE","Server, Storage and Networking Equipment Purchase",null,"KI",2,"IT Software inc Bespoke Licences Maintenance","KE"]
["KH","Desktop, Laptop, Tablet, Computer Purchase inc Apple",{"$f":"MAX(D132:K132)","v":3},3,3,3,2,3,3,3,3,{"$f":"MAX(M132:N132)","v":3},3,3,0,3,3,3,3,3,1,3,42,{"$f":"SUM(D132:K132)","v":23},null,"LF","Desktop, Laptop, Tablet, Computer Purchase inc Apple",null,"KJ",2,"Janitoral Clothing (Uniforms, Corporate, Security, Academic Gowns), Tailoring Supplies and Services","HR"]
["KI","EPOS and PDQ Machines",3,2,3,3,2,2,2,3,3,3,3,3,2,3,3,3,{"$f":"MAX(T133:V133)","v":3},3,2,3,42,20,null,"LG","EPOS and PDQ Machines",null,"KM",2,"Janitorial & Domestic Supplies & Services","H"]
["KJ","Server and Networking Equipment Installation and Maintenance",3,1,1,1,1,3,0,1,3,3,1,3,2,3,3,2,3,2,1,3,28,11,null,"LH","Server and Networking Equipment Installation and Maintenance",null,"KN",2,"Journals Electronic","BQ"]
["KM","Computer Consumables, Peripherals, Upgrades and Add-ons",3,2,2,3,2,3,2,3,3,3,3,1,2,1,1,1,3,3,1,0,32,20,null,"LI","Computer Consumables, Peripherals, Upgrades and Add-ons",null,"KO",2,"Journals Hardcopy","BD"]
["KN","Software-as-a-service inc Cloud Hosting",3,3,1,2,1,2,0,2,3,1,1,1,2,1,1,1,3,2,3,2,27,14,null,"LJ","Software-as-a-service inc Cloud Hosting",null,"KS",2,"Lab Support Equipment,  Accommodation and Accessories","LA"]
["KO","Website Design and Services",2,1,1,1,0,1,0,2,1,2,1,2,2,1,1,1,2,1,2,2,19,7,null,"LK","Website Design and Services",null,"KT",2,"Laboratory Animals","LB"]
["KS","IT Managed Services",1,1,1,1,0,1,0,1,1,2,0,2,2,1,1,1,3,1,2,3,18,6,null,"LL","IT Managed Services",null,"KU",2,"Laboratory Blood Products Human Organs, Tissue, Body Parts and Cadavers","LE"]
["KT","IT Hardware support & maintenance",3,1,1,1,1,1,0,3,2,1,0,1,2,1,1,1,3,2,1,3,21,10,null,"LM","IT Hardware support & maintenance",null,"KV",2,"Laboratory Bonded Alcohol","LF"]
["KU","IT Hire & Rental",3,1,1,1,1,1,1,3,2,3,0,3,2,1,1,1,3,2,1,3,24,11,null,"LN","IT Hire & Rental",null,"KW",2,"Laboratory Chemicals ","LH"]
["KV","Scanning Equipment",3,2,2,3,2,2,3,3,3,2,0,2,2,2,2,2,3,3,1,3,35,20,null,"LP","Scanning Equipment",null,"KZ",null,"Laboratory Clothing","LJ"]
["KW","Bespoke IT Solutions",3,3,1,"N/A","N/A",3,3,1,2,1,0,1,2,1,1,1,3,2,3,3,26,13,null,"LQ","Bespoke IT Solutions",{"$nulls":3},"Laboratory Consumables and Sundries, incl. Disposables","LK"]
["KZ","Other and General Computer",2,{"v":1.923076923,"d":"2"},2,2,1,2,1,{"v":1.461538462,"d":"1"},2,2,2,2,2,2,2,2,2,2,1,0,{"v":26.384615385,"d":"26"},{"v":13.384615385,"d":"13"},null,"LR","Other and General Computer",null,"LA",1,"Laboratory Controlled Chemicals & Drugs","LT"]
["L","Laboratory/Animal House Supplies & Services",{"$nulls":21},0,null,"LS",null,null,"LB",1,"Laboratory Diagnostic Testing and Analysis Services","LL"]
["LA","Lab Support Equipment,  Accommodation and Accessories",3,2,2,2,2,1,2,3,2,2,1,2,1,1,1,1,3,1,1,3,27,16,null,"LT","Lab Support Equipment,  Accommodation and Accessories",null,"LC",1,"Laboratory Equipment Maintenance and  Repair","LM"]
["LB","Laboratory Animals",3,3,3,3,0,2,0,0,3,2,1,2,1,3,3,3,1,1,1,0,26,14,null,"LX","Laboratory Animals",null,"LE",1,"Laboratory Furniture - Fixed and Free-standing","FB"]
["LC","Laboratory Small Apparatus and Equipment Purchase and Hire",3,2,2,2,2,1,3,3,3,1,1,1,1,3,3,3,3,3,1,0,31,18,null,"LZ","Laboratory Small Apparatus and Equipment Purchase and Hire",null,"LF",1,"Laboratory Gases Purchase and Associated Rentals","LN"]
["LE","Laboratory Blood Products Human Organs, Tissue, Body Parts and Cadavers",3,3,3,3,0,1,2,0,3,1,1,1,1,1,1,1,1,1,1,0,22,15,null,"MB","Laboratory Blood Products Human Organs, Tissue, Body Parts and Cadavers",null,"LG",3,"Laboratory Glassware","LP"]
["LF","Laboratory Bonded Alcohol",3,3,2,"N/A",2,2,2,0,3,3,1,3,1,3,2,3,3,3,1,0,28,14,null,"ME","Laboratory Bonded Alcohol",null,"LH",1,"Laboratory Plasticware","LS"]
["LG","Laboratory, Capital Equipment ",3,3,2,3,2,2,3,3,3,3,1,3,3,3,2,3,3,3,1,3,40,21,null,"MF","Laboratory, Capital Equipment ",null,"LI",1,"Laboratory Small Apparatus and Equipment Purchase and Hire","LC"]
["LH","Laboratory Chemicals ",3,3,3,2,2,3,3,3,3,1,1,1,1,3,2,3,3,3,1,0,34,22,null,"MG","Laboratory Chemicals ",null,"LJ",1,"Laboratory, Capital Equipment ","LG"]
["LI","Research Services",3,2,2,0,0,0,3,2,2,3,3,3,1,2,2,1,2,1,1,2,25,11,null,"MH","Research Services",null,"LK",1,"Laboratory/Animal House Supplies & Services","L"]
["LJ","Laboratory Clothing",3,2,3,3,1,1,1,3,3,2,1,2,1,3,3,2,2,1,2,0,29,17,null,"MJ","Laboratory Clothing",null,"LL",1,"Laundry and Dry Cleaning  Services and Equipment","HG"]
["LK","Laboratory Consumables and Sundries, incl. Disposables",3,3,2,3,2,2,2,3,3,1,1,1,1,3,3,3,3,3,1,0,33,20,null,"MK","Laboratory Consumables and Sundries, incl. Disposables",null,"LM",1,"Legal & Tax Services","RG"]
["LL","Laboratory Diagnostic Testing and Analysis Services",3,1,1,0,0,1,1,3,1,3,3,1,1,2,1,2,2,1,1,2,20,8,null,"ML","Laboratory Diagnostic Testing and Analysis Services",null,"LN",1,"Library & Publications","B"]
["LM","Laboratory Equipment Maintenance and  Repair",3,2,1,1,0,1,1,3,2,1,1,1,1,3,3,2,3,2,1,3,25,11,null,"MM","Laboratory Equipment Maintenance and  Repair",null,"LP",1,"Library Equipment and Services (e.g. book tagging) including maintenance, repair and hire","BN"]
["LN","Laboratory Gases Purchase and Associated Rentals",3,3,3,1,1,2,1,3,3,1,1,1,1,3,2,3,3,3,1,0,29,17,null,"MN","Laboratory Gases Purchase and Associated Rentals",null,"LQ",1,"Library Licences and Royalties","BS"]
["LP","Laboratory Glassware",3,2,3,3,0,2,1,3,3,2,1,2,1,3,3,3,3,3,1,0,31,17,null,"MP","Laboratory Glassware",null,"LR",1,"Library Materials Restoration","BT"]
["LQ","Pharmaceuticals - Non-veterinary",3,3,3,2,2,2,1,2,3,2,1,2,1,3,3,3,3,3,1,0,32,18,null,"MQ","Pharmaceuticals - Non-veterinary",null,"LS",1,"Library Subscriptions","BE"]
["LR","Pharmaceuticals, Veterinary",3,3,3,2,2,2,1,2,3,2,1,2,1,3,3,3,3,3,1,0,32,18,null,"MS","Pharmaceuticals, Veterinary",null,"LT",1,"Liquor Licences","CV"]
["LS","Laboratory Plasticware",3,2,2,3,2,0,1,3,3,2,0,2,1,3,3,2,2,2,1,0,27,16,null,"MT","Laboratory Plasticware",null,"LX",1,"Livestock and Animal Purchases, Services and Supplies","EA"]
["LT","Laboratory Controlled Chemicals & Drugs",3,3,3,2,2,1,3,2,3,2,0,2,1,3,3,3,3,3,1,0,32,19,null,"MZ","Laboratory Controlled Chemicals & Drugs",null,"LZ",null,"Livestock, Animal and Farm Feeds","EB"]
["LX","Tissue Culture, Bacteriological Media and Insects",3,3,3,"N/A",0,0,2,2,3,1,0,1,1,3,3,3,1,1,1,0,23,13,null,"NA","Tissue Culture, Bacteriological Media and Insects",{"$nulls":3},"Mail Room Equipment Purchase Lease & Maintenance","YB"]
["LZ","Other and General Laboratory",3,{"v":2.578947368,"d":"3"},2,2,1,1,2,{"v":1.421052632,"d":"1"},3,2,1,2,1,3,3,3,2,2,1,0,28,15,null,"NB","Other and General Laboratory",null,"MB",1,"Mail Services including Fulfilment","YA"]
["M","Workshop & Maintenance Supplies inc Engineering",{"$nulls":21},0,null,"NC",null,null,"ME",2,"Mains Gas Supply and Services","JB"]
["MB","Electrical Sundries and Components",3,2,2,3,2,3,3,2,3,2,1,2,1,3,3,3,3,3,1,0,34,20,null,"ND","Electrical Sundries and Components",null,"MF",1,"Manuals; Computer,  Workshop, Training","BL"]
["ME","Handling and Storage Equipment, Purchase, Maintenance, Repair and Hire",2,2,1,1,0,2,1,2,2,1,1,1,2,3,3,3,2,2,1,0,24,11,null,"NE","Handling and Storage Equipment, Purchase, Maintenance, Repair and Hire",null,"MG",1,"Manuscripts Electronic","BI"]
["MF","Hand & Power Tools and Accessories",3,2,2,2,1,1,3,3,3,3,3,1,1,3,3,3,3,3,1,0,32,17,null,"NF","Hand & Power Tools and Accessories",null,"MH",1,"Manuscripts Hardcopy","BF"]
["MG","Workshop Equipment and Tool Maintenance",3,1,1,1,1,2,3,3,2,1,1,1,1,3,3,3,3,2,1,3,29,14,null,"NG","Workshop Equipment and Tool Maintenance",null,"MJ",1,"Maps Electronic or Hardcopy","BV"]
["MH","Mechanical Components and Spare Parts",3,1,2,1,0,1,3,2,3,3,1,3,1,3,3,3,3,3,1,0,28,13,null,"NH","Mechanical Components and Spare Parts",null,"MK",1,"Market Research Services","RS"]
["MJ","Workshop Metals",3,3,3,3,1,2,1,2,3,3,1,3,1,3,3,3,3,3,1,0,33,18,null,"NZ","Workshop Metals",null,"ML",1,"Marketing & Recruitment Services (not Advertising)","RQ"]
["MK","Raw Materials inc Lubricants and Road Salt",3,2,2,1,2,0,1,1,3,2,1,2,1,3,3,3,3,3,1,0,26,12,null,"PA","Raw Materials inc Lubricants and Road Salt",null,"MM",1,"Meat, Poultry, Offal","CH"]
["ML","Workshop Plastics, Glass and Ceramics",3,2,3,3,2,2,1,2,3,2,1,2,1,3,3,2,3,3,1,0,31,18,null,"PC","Workshop Plastics, Glass and Ceramics",null,"MN",1,"Mechanical Components and Spare Parts","MH"]
["MM","Workshop Wood",3,1,3,2,0,3,1,2,3,3,1,3,1,3,3,2,3,3,1,0,29,15,null,"PD","Workshop Wood",null,"MP",1,"Medical, Surgical, Nursing Diagnostic Services and Clinical Trials","DH"]
["MN","Electronic Components and Test Equipment, Purchase, Maintenance, Repair and Hire",3,2,2,1,2,2,3,3,2,1,0,1,1,3,3,3,3,3,1,0,29,17,null,"PJ","Electronic Components and Test Equipment, Purchase, Maintenance, Repair and Hire",null,"MQ",1,"Medical, Surgical, Nursing Equipment Maintenance and Repair","DF"]
["MP","Workshop Plumbing Sundries",2,1,1,1,1,0,2,2,2,1,0,1,1,2,2,2,3,3,1,0,20,10,null,"PK","Workshop Plumbing Sundries",null,"MS",1,"Medical, Surgical, Nursing Supplies & Services  Other and General","DZ"]
["MQ","Workshop Ironmongery, Door Furniture,  Locksmiths Supplies  and Services",2,2,2,2,0,1,1,2,2,1,0,1,1,2,2,2,3,3,1,0,22,12,null,"PZ","Workshop Ironmongery, Door Furniture,  Locksmiths Supplies  and Services",null,"MT",1,"Medical, Surgical, Nursing Supplies & Services Capital Equipment >£10k","DA"]
["MS","Workshop Consumables, Rags, Cleansers etc",2,2,1,0,1,0,2,2,2,1,0,1,1,2,2,2,2,2,1,0,19,10,null,"QG","Workshop Consumables, Rags, Cleansers etc",null,"MZ",null,"Medical, Surgical, Nursing Supplies & Services Consumables and Disposables","DC"]
["MT","Workshop Teaching Aids and Materials",2,1,0,0,0,0,1,2,1,1,0,1,1,1,1,1,1,1,1,0,11,5,null,"QH","Workshop Teaching Aids and Materials",{"$nulls":3},"Medical, Surgical, Nursing Supplies & Services Small Apparatus, Equipment  and Instruments","DB"]
["MZ","OtherandGeneral Workshop  and Maintenance  Supplies",{"v":2.071428571,"d":"2"},{"v":1.714285714,"d":"2"},2,2,1,1,2,{"v":2.071428571,"d":"2"},2,1,1,1,1,2,2,2,2,2,1,0,{"v":23.785714284999997,"d":"24"},{"v":13.785714285,"d":"14"},null,"QJ","OtherandGeneral Workshop  and Maintenance  Supplies",null,"NA",1,"Medical, Surgical, Nursing Supplies & Services, Specialist Clothing","DE"]
["N","Museums and Art",{"$nulls":21},0,null,"QM",null,null,"NB",1,"Medical, Surgical, Nursing Teaching materials and aids","DJ"]
["NA","Art Exhibits and Museum Collections",3,2,2,1,1,3,1,0,2,1,1,1,1,2,2,2,1,1,1,0,21,12,null,"QN","Art Exhibits and Museum Collections",null,"NC",1,"Medical, Surgical, Nursing, Dentistry Supplies & Services","D"]
["NB","Hire & Rental of Art Exhibits and Museum Collections",3,1,1,0,0,3,1,0,2,1,1,1,1,2,2,2,2,1,2,0,18,8,null,"QR","Hire & Rental of Art Exhibits and Museum Collections",null,"ND",1,"Medicinal Drugs - Non Veterinary","DL"]
["NC","Conservation & Restoration Materials",2,2,2,1,1,1,1,0,2,1,1,1,1,2,2,2,1,1,1,0,19,10,null,"QS","Conservation & Restoration Materials",null,"NE",1,"Medicinal Products - Drugs Veterinary","ET"]
["ND","Conservation & Restoration Services",1,1,1,0,0,0,1,0,1,2,1,2,1,1,1,1,1,1,1,0,12,4,null,"QT","Conservation & Restoration Services",null,"NF",1,"Mileage (Private Vehicles)","TE"]
["NE","Commercial and Graphic  Art Equipment Purchase  and Maintenance  and Consumables",3,2,2,1,1,1,3,3,2,1,1,1,1,3,3,2,1,1,1,0,25,15,null,"QZ","Commercial and Graphic  Art Equipment Purchase  and Maintenance  and Consumables",null,"NG",1,"Motoring Association Charges (excl Road Tax)","VB"]
["NF","Arts Equipment Purchase and Maintenance and Consumables",2,2,2,0,1,1,1,1,2,1,1,1,1,3,3,2,1,1,1,0,20,10,null,"RA","Arts Equipment Purchase and Maintenance and Consumables",null,"NH",1,"Museum Specalist Furniture","NH"]
["NG","Consumables",3,2,2,1,1,1,1,1,3,2,2,1,1,3,3,2,1,1,1,0,23,12,null,"RB","Consumables",null,"NZ",null,"Museums and Art","N"]
["NH","Museum Specalist Furniture",3,2,2,2,1,2,3,3,2,1,"N/A",1,1,1,1,1,1,1,1,0,23,17,null,"RC","Museum Specalist Furniture",{"$nulls":3},"Musical Instruments, Purchase, Maintenance and Hire","AD"]
["NZ","Other and General Musems and Art",2,2,2,1,1,2,2,1,2,1,1,1,1,2,2,2,1,1,1,0,22,13,null,"RD","Other and General Musems and Art",null,"PA",1,"Newspapers and Periodicals Electronic","BR"]
["P","Printing",{"$nulls":21},0,null,"RE",null,null,"PC",1,"Newspapers and Periodicals Hardcopy","BG"]
["PA","Printing Binding and Finishing Services",3,1,3,3,1,2,1,2,3,3,1,3,1,3,3,2,2,2,1,0,29,16,null,"RF","Printing Binding and Finishing Services",null,"PD",1,"Non Infuenceable Spend","X"]
["PC","Printing Consumables, Toners and Inks",3,2,3,3,2,2,2,3,3,3,3,1,1,2,2,2,2,2,1,0,32,20,null,"RG","Printing Consumables, Toners and Inks",null,"PJ",1,"Occupational Health Supplies & Services (incl. Physio)","UH"]
["PD","Printing - External Design and Artwork",2,1,1,0,0,0,1,2,1,3,3,1,1,1,1,1,2,1,1,2,17,6,null,"RH","Printing - External Design and Artwork",null,"PK",1,"Oceanographic Supplies and Services","EN"]
["PJ","Printing Equipment Purchase & Maintenance",3,2,2,2,2,3,3,3,3,1,0,1,1,{"$f":"MAX(Q195:R195)","v":3},3,3,3,2,1,3,{"$f":"SUM(D195:K195,M195:O195,Q195:R195,T195:V195)","v":34},20,null,"RI","Printing Equipment Purchase & Maintenance",null,"PZ",null,"Office Equipment Purchase, Lease, Hire and Maintenance (Small Scale i.e Shredders)","SC"]
["PK","Printing Equipment Lease Hire inc Charges",{"$f":"MAX(D196:K196)","v":3},2,1,1,0,3,3,3,3,{"$f":"MAX(M196:N196)","v":1},0,1,1,3,3,3,3,1,1,3,29,{"$f":"SUM(D196:K196)","v":16},null,"RJ","Printing Equipment Lease Hire inc Charges",{"$nulls":3},"Oil Supply and Services","JC"]
["PZ","OtherandGeneral Printing",3,{"v":1.6,"d":"2"},2,2,1,2,2,{"v":2.4,"d":"2"},3,2,2,1,1,2,2,2,{"$f":"MAX(T197:V197)","v":2},2,1,0,27,16,null,"RK","OtherandGeneral Printing",null,"QG",1,"Other and General","EZ"]
["Q","Telecommunications",{"$nulls":21},0,null,"RL",null,null,"QH",1,"Other and General Audio-Visual  Aids","AZ"]
["QG","Telephony & Switchboard Capital Purchase >£10,000",3,2,2,3,1,3,3,3,3,2,1,2,1,3,3,3,3,3,1,3,37,20,null,"RM","Telephony & Switchboard Capital Purchase >£10,000",null,"QJ",2,"Other and General Catering","CZ"]
["QH","Telephony & Switchboard Maintenance",3,1,1,3,0,1,2,2,3,3,3,2,1,3,3,3,3,1,1,3,30,13,null,"RN","Telephony & Switchboard Maintenance",null,"QM",null,"Other and General Cleaning  and Janitorial","HZ"]
["QJ","Telecoms Transmission Equipment Purchase & Maintenance",3,2,2,2,1,3,3,3,3,2,1,2,2,3,3,3,3,3,1,3,37,19,null,"RP","Telecoms Transmission Equipment Purchase & Maintenance",null,"QN",1,"Other and General Computer","KZ"]
["QM","Phone Cards, Swipe Cards, Equipment & Supplies",2,1,1,1,1,2,1,1,2,2,1,2,0,3,3,3,2,1,2,1,23,10,null,"RQ","Phone Cards, Swipe Cards, Equipment & Supplies",null,"QR",1,"Other and General Furniture,  Furnishings and  Textiles","FZ"]
["QN","Communications Equipment & Accessories (Hubs, Modems, Routers)",3,2,2,3,1,3,3,3,3,2,1,2,1,3,3,3,3,3,1,3,37,20,null,"RR","Communications Equipment & Accessories (Hubs, Modems, Routers)",null,"QS",1,"Other and General Laboratory","LZ"]
["QR","Telephony, Land & Mobile, Line Rental, Call Charges, Equipment",3,1,0,3,0,3,3,2,3,2,1,2,1,1,1,1,2,2,1,1,25,15,null,"RS","Telephony, Land & Mobile, Line Rental, Call Charges, Equipment",null,"QT",1,"Other and General Library","BZ"]
["QS","Telephony - Mobile Line rental, call charges, equipment",3,1,0,0,0,1,3,1,3,2,1,2,1,1,1,1,2,2,1,1,19,9,null,"RT","Telephony - Mobile Line rental, call charges, equipment",null,"QZ",null,"Other and General Musems and Art","NZ"]
["QT","Data Telecommunications, internet services - e.g. Eduroam or VOIP",3,1,1,1,0,1,3,0,3,1,0,1,1,1,1,1,3,2,1,3,20,10,null,"RU","Data Telecommunications, internet services - e.g. Eduroam or VOIP",{"$nulls":3},"Other and General Stationery  and Office Supplies","SZ"]
["QZ","Other Postal & Telecommunications",3,1,1,2,1,2,3,{"v":1.875,"d":"2"},3,2,1,2,1,2,2,2,2,2,1,0,{"v":25.875,"d":"26"},{"v":14.875,"d":"15"},null,"RV","Other Postal & Telecommunications",null,"RA",1,"Other Educational Establishments","XJ"]
["R","Professional & Bought-in Services including Consultancy",{"$nulls":21},0,null,"RW",null,null,"RB",1,"Other Postal & Telecommunications","QZ"]
["RA","Advertising Services  (Course, Recruitment & Other)",2,2,1,1,0,0,1,0,1,3,3,1,1,1,1,1,3,1,3,0,17,6,null,"RX","Advertising Services  (Course, Recruitment & Other)",null,"RC",1,"Other Public Bodies","XK"]
["RB","Conferences & Meetings (Event Management)",1,1,0,0,0,0,1,0,1,1,1,1,1,3,3,2,3,1,3,0,15,3,null,"RY","Conferences & Meetings (Event Management)",null,"RD",1,"Other Sports Science and Recreation","GZ"]
["RC","Data Information Services",1,1,1,1,1,0,1,1,1,3,3,1,1,1,1,1,3,1,3,2,20,7,null,"RZ","Data Information Services",null,"RE",1,"Other/General Estates & Buildings","WZ"]
["RD","Accountancy Services, inc. Audit Consultancy,",1,1,0,0,0,0,1,1,1,3,3,1,1,1,1,1,3,1,3,0,15,4,null,"SA","Accountancy Services, inc. Audit Consultancy,",null,"RF",1,"Other/General Facilities Operations","YZ"]
["RE","General Consultancy including IT excl Estates",2,1,0,0,0,0,1,2,1,1,1,1,1,1,1,1,3,1,3,2,16,5,null,"SB","General Consultancy including IT excl Estates",null,"RG",1,"Other/General Miscellaneous","XZ"]
["RF","Insurance Services",1,1,0,0,0,0,1,0,1,3,3,1,1,1,1,1,3,1,3,0,14,3,null,"SC","Insurance Services",null,"RH",1,"Other/General Professional & Bought-in Services","RZ"]
["RG","Legal & Tax Services",1,1,0,0,0,0,1,0,1,3,3,2,1,1,1,1,3,1,3,0,15,3,null,"SD","Legal & Tax Services",null,"RI",1,"Other/General Safety & Security","UZ"]
["RH","Banking Services",2,1,0,0,0,0,1,0,2,3,3,2,1,1,1,1,3,1,3,0,16,4,null,"SF","Banking Services",null,"RJ",1,"Other/General Travel & Transport","TZ"]
["RI","Financial Investment Services",2,1,1,0,0,0,1,0,2,1,1,1,1,1,1,1,3,1,3,0,14,5,null,"SJ","Financial Investment Services",null,"RK",1,"Other/General Utilities","JZ"]
["RJ","Patents, IPR, Trademarks, Royalties, Copyright",1,0,0,0,0,0,1,0,1,3,3,3,1,1,1,1,3,1,3,0,15,2,null,"SZ","Patents, IPR, Trademarks, Royalties, Copyright",null,"RL",1,"Other/General Vehicle Purchase & Lease Hire","VZ"]
["RK","Temporary & Recruitment Employment Agencies (Staff)",1,1,0,0,0,0,1,0,1,3,3,1,1,3,3,1,3,1,3,0,16,3,null,"TA","Temporary & Recruitment Employment Agencies (Staff)",null,"RM",1,"OtherandGeneral Printing","PZ"]
["RL","Promotions & Publicity (incl Exhibitions and Fairs)",1,1,1,0,1,0,1,0,1,3,3,1,1,3,3,1,2,1,2,0,17,5,null,"TB","Promotions & Publicity (incl Exhibitions and Fairs)",null,"RN",1,"OtherandGeneral Workshop  and Maintenance  Supplies","MZ"]
["RM","Speakers & Presenters",2,2,1,0,0,0,1,1,1,1,1,1,1,1,1,1,3,1,3,0,15,6,null,"TC","Speakers & Presenters",null,"RP",1,"Outdoor Furniture","FT"]
["RN","Subscriptions (Learned Society, Professional etc)",1,1,0,0,0,0,1,0,1,3,3,1,1,1,1,1,2,1,2,0,13,3,null,"TD","Subscriptions (Learned Society, Professional etc)",null,"RQ",1,"Package Travel, Field Trips","TT"]
["RP","Training Courses",2,2,0,0,0,0,1,0,1,3,3,1,1,1,1,1,3,1,3,2,17,4,null,"TE","Training Courses",null,"RR",1,"Papers","SF"]
["RQ","Marketing & Recruitment Services (not Advertising)",1,1,0,1,0,0,1,0,1,3,3,1,1,1,1,1,3,1,3,0,15,4,null,"TF","Marketing & Recruitment Services (not Advertising)",null,"RS",1,"Pasturage, purchase, lease and maintenance","ES"]
["RR","Debt Collection Services",1,1,0,0,0,0,1,0,1,1,1,1,1,1,1,1,3,1,3,0,12,3,null,"TG","Debt Collection Services",null,"RT",1,"Patents, IPR, Trademarks, Royalties, Copyright","RJ"]
["RS","Market Research Services",1,1,0,0,0,0,1,0,1,1,1,1,1,1,1,1,3,1,3,0,12,3,null,"TH","Market Research Services",null,"RU",1,"Personal Hygiene, Washroom Services and Vending Supplies and Services","HD"]
["RT","Auction Services",1,1,0,0,0,0,1,0,1,3,3,1,1,1,1,1,3,1,3,0,14,3,null,"TJ","Auction Services",null,"RV",1,"Pest & Vermin Control Services","YQ"]
["RU","Translation, Interpreter, Transcription & Procedural Writing Services",1,1,0,0,0,0,1,0,1,1,1,1,1,1,1,1,2,1,2,2,13,3,null,"TK","Translation, Interpreter, Transcription & Procedural Writing Services",null,"RW",1,"Pharmaceuticals - Non-veterinary","LQ"]
["RV","Archival and Storage Services inc EDM",2,2,1,0,1,0,1,0,1,3,3,1,1,1,1,1,3,1,3,2,19,6,null,"TL","Archival and Storage Services inc EDM",null,"RX",1,"Pharmaceuticals, Veterinary","LR"]
["RW","Student Placement Programmes, costs and expenses",1,1,1,0,0,0,1,0,1,1,1,1,1,1,1,1,3,1,3,0,13,4,null,"TM","Student Placement Programmes, costs and expenses",null,"RY",1,"Phone Cards, Swipe Cards, Equipment & Supplies","QM"]
["RX","Branding and Media Services",1,1,1,1,1,1,1,0,1,1,1,1,1,1,1,1,3,1,3,2,18,7,null,"TN","Branding and Media Services",null,"RZ",null,"Photographic Equipment Supplies and Services","AE"]
["RY","Artistes and Conductors",2,2,0,0,0,0,1,0,1,1,"N/A",1,1,1,1,1,2,1,2,0,11,4,null,"TP","Artistes and Conductors",{"$nulls":3},"Plant Purchase, Hire & Maintenance, inc. Lifts, Air-conditioning, Boilers, Generators etc","WN"]
["RZ","Other/General Professional & Bought-in Services",{"v":1.083333333,"d":"1"},{"v":1.083333333,"d":"1"},0,0,0,0,1,0,1,1,1,1,1,1,1,1,1,1,1,0,{"v":10.083333332999999,"d":"10"},{"v":3.0833333329999997,"d":"3"},null,"TQ","Other/General Professional & Bought-in Services",null,"SA",2,"Printing","P"]
["S","Stationery & Office Supplies",{"$nulls":21},0,null,"TR",null,null,"SB",2,"Printing - External Design and Artwork","PD"]
["SA","Envelopes",3,1,3,3,1,2,1,2,3,1,1,1,2,2,2,2,2,2,1,0,27,16,null,"TT","Envelopes",null,"SC",2,"Printing Binding and Finishing Services","PA"]
["SB","Files, Filing Folders, Binders",3,1,3,3,1,2,1,2,3,3,3,1,2,2,2,2,2,2,1,0,29,16,null,"TU","Files, Filing Folders, Binders",null,"SD",2,"Printing Consumables, Toners and Inks","PC"]
["SC","Office Equipment Purchase, Lease, Hire and Maintenance (Small Scale i.e Shredders)",3,2,2,2,1,2,3,3,3,1,1,1,2,2,2,2,3,2,1,3,32,18,null,"TZ","Office Equipment Purchase, Lease, Hire and Maintenance (Small Scale i.e Shredders)",null,"SF",2,"Printing Equipment Lease Hire inc Charges","PK"]
["SD","Diaries, Calendars",3,1,3,3,1,2,1,2,3,1,1,1,2,2,2,2,2,2,1,0,27,16,null,"UB","Diaries, Calendars",null,"SJ",2,"Printing Equipment Purchase & Maintenance","PJ"]
["SF","Papers",3,1,3,3,1,2,1,2,3,1,1,1,2,2,2,2,2,2,1,0,27,16,null,"UC","Papers",null,"SZ",null,"Professional & Bought-in Services including Consultancy","R"]
["SJ","General Stationery",3,1,2,1,1,1,1,2,3,1,0,1,2,2,2,2,2,2,1,0,22,12,null,"UD","General Stationery",{"$nulls":3},"Promotions & Publicity (incl Exhibitions and Fairs)","RL"]
["SZ","Other and General Stationery  and Office Supplies",3,{"v":1.011904762,"d":"1"},3,2,1,2,1,{"v":1.857142857,"d":"2"},3,1,1,1,2,2,2,2,2,2,1,0,{"v":25.869047619,"d":"26"},{"v":14.869047619,"d":"15"},null,"UE","Other and General Stationery  and Office Supplies",null,"TA",2,"Purchase of Plants, Crops, Trees etc","EH"]
["T","Travel & Transport (incl. Vehicle hire & Subsistence)",{"$nulls":21},0,null,"UF",null,null,"TB",2,"Rail Travel","TF"]
["TA","Accommodation & Hotels (Direct)",3,2,1,3,0,2,1,0,3,3,3,1,2,3,3,1,2,1,2,0,25,12,null,"UH","Accommodation & Hotels (Direct)",null,"TC",2,"Rates","XL"]
["TB","Air Travel",3,3,3,3,1,3,1,2,3,3,3,1,2,3,2,3,3,1,3,0,34,19,null,"UJ","Air Travel",null,"TD",2,"Raw Materials inc Lubricants and Road Salt","MK"]
["TC","Ferry Travel",3,2,3,3,1,3,1,2,3,3,3,2,2,3,2,3,3,1,3,0,34,18,null,"UK","Ferry Travel",null,"TE",2,"Re-location and household removal expenses","TR"]
["TD","Taxi Hire",3,2,2,1,1,3,1,2,3,1,1,1,2,3,3,2,1,1,1,0,26,15,null,"UL","Taxi Hire",null,"TF",2,"Renewable Energy (Fit,Rhi) Equipment","JJ"]
["TE","Mileage (Private Vehicles)",3,2,2,1,1,3,1,2,3,3,3,1,2,0,0,0,1,1,1,0,23,15,null,"UM","Mileage (Private Vehicles)",null,"TG",2,"Research Services","LI"]
["TF","Rail Travel",3,1,1,2,1,3,1,2,3,1,1,1,2,3,2,3,3,1,3,0,27,14,null,"UN","Rail Travel",null,"TH",2,"Road Tax","VD"]
["TG","Subsistence",3,1,1,3,0,2,1,1,3,3,1,3,2,2,2,2,1,1,1,0,24,12,null,"UZ","Subsistence",null,"TJ",2,"Safety & Personal Protection Equipment","UD"]
["TH","Car Hire",3,2,2,1,1,3,1,2,3,3,1,3,2,1,1,1,2,2,1,0,26,15,null,"VA","Car Hire",null,"TK",2,"Scanning Equipment","KV"]
["TJ","Van Hire",3,2,2,1,1,3,1,2,3,3,3,3,2,1,1,1,2,2,1,0,28,15,null,"VB","Van Hire",null,"TL",2,"Security Equipment & Consumables","UE"]
["TK","Coach Hire",3,2,2,1,1,3,1,2,3,3,3,1,2,2,2,2,2,2,1,0,28,15,null,"VC","Coach Hire",null,"TM",2,"Security Furniture Inc Safes","FP"]
["TL","Boat Hire & Charter",3,3,3,1,1,3,1,2,3,3,3,1,2,2,2,1,2,2,1,0,29,17,null,"VD","Boat Hire & Charter",null,"TN",2,"Security Services","UF"]
["TM","Travel Agency Services",2,2,0,0,0,1,1,2,2,3,3,1,2,1,1,1,3,1,3,2,22,8,null,"VE","Travel Agency Services",null,"TP",2,"Server and Networking Equipment Installation and Maintenance","KJ"]
["TN","Aircraft & Helicopter Hire",3,3,3,1,1,3,1,1,3,3,3,1,2,3,1,3,2,2,1,0,29,16,null,"VG","Aircraft & Helicopter Hire",null,"TQ",2,"Server, Storage and Networking Equipment Purchase","KG"]
["TP","Student Travel Arrangements",3,3,1,0,0,1,1,1,3,3,3,1,2,1,1,1,3,1,3,2,24,10,null,"VJ","Student Travel Arrangements",null,"TR",2,"Sheet Music ","BW"]
["TQ","Conferences, meetings and room bookings",2,2,0,2,0,2,1,1,2,2,1,2,2,1,1,1,3,1,3,2,23,10,null,"VP","Conferences, meetings and room bookings",null,"TT",2,"Signs & Signposting","WX"]
["TR","Re-location and household removal expenses",3,2,1,0,0,1,1,1,3,3,3,1,2,2,2,2,1,1,1,0,21,9,null,"VZ","Re-location and household removal expenses",null,"TU",2,"Soft Drinks, Hot Drinks and Non-alcoholic Drinks","CJ"]
["TT","Package Travel, Field Trips",3,3,3,0,0,1,1,1,3,3,3,1,2,{"$f":"MAX(Q259:R259)","v":3},2,3,3,1,3,0,{"$f":"SUM(D259:K259,M259:O259,Q259:R259,T259:V259)","v":27},12,null,"WA","Package Travel, Field Trips",null,"TZ",null,"Software-as-a-service inc Cloud Hosting","KN"]
["TU","Travel & Subsistence (non Employees)",{"$f":"MAX(D260:K260)","v":3},3,2,1,0,1,1,1,3,{"$f":"MAX(M260:N260)","v":1},"N/A",1,2,2,2,2,1,1,1,0,21,{"$f":"SUM(D260:K260)","v":12},null,"WB","Travel & Subsistence (non Employees)",{"$nulls":3},"Solid Fuel, Supplies and Services","JD"]
["TZ","Other/General Travel & Transport",3,{"v":2.388888889,"d":"2"},2,1,1,2,1,0,3,3,3,1,2,2,2,2,{"$f":"MAX(T261:V261)","v":1},1,1,0,{"v":24.388888889,"d":"24"},{"v":12.388888889,"d":"12"},null,"WD","Other/General Travel & Transport",null,"UB",1,"Speakers & Presenters","RM"]
["U","Health & Safety & Security",{"$nulls":21},0,null,"WH",null,null,"UC",1,"Special Needs/DDA Suppliers, Services Equipment purchase, maintenance, repair and hire","UN"]
["UB","Fire Protection/Fire Fighting Equipment & Services",3,2,2,2,3,3,3,3,3,1,1,1,1,3,3,3,3,2,1,3,36,21,null,"WJ","Fire Protection/Fire Fighting Equipment & Services",null,"UD",1,"Sports Capital Purchases","GB"]
["UC","First Aid Supplies",2,1,1,0,1,0,2,2,2,1,1,1,1,3,3,2,1,1,1,0,19,9,null,"WK","First Aid Supplies",null,"UE",1,"Sports Clothing","GF"]
["UD","Safety & Personal Protection Equipment",3,2,2,1,2,1,2,3,3,2,1,2,1,3,3,3,2,2,1,0,29,16,null,"WL","Safety & Personal Protection Equipment",null,"UF",1,"Sports Equipment - Consumables","GE"]
["UE","Security Equipment & Consumables",3,2,1,0,1,1,3,3,3,3,3,2,1,2,2,2,1,1,1,0,26,14,null,"WN","Security Equipment & Consumables",null,"UH",1,"Sports Equipment - Hire & Lease","GD"]
["UF","Security Services",1,1,0,0,0,0,1,1,1,3,3,2,1,3,3,3,3,2,3,0,21,4,null,"WO","Security Services",null,"UJ",1,"Sports Equipment - Maintenance & Repair","GC"]
["UH","Occupational Health Supplies & Services (incl. Physio)",3,1,0,0,0,0,1,2,3,1,0,1,1,1,1,1,3,1,3,0,15,7,null,"WP","Occupational Health Supplies & Services (incl. Physio)",null,"UK",1,"Sports Science and Recreation","G"]
["UJ","Surveillance Equipment, Installation & Maintenance (CCTV, Intercom)",3,2,1,2,1,3,3,3,3,1,0,1,1,2,2,2,3,1,1,3,29,18,null,"WU","Surveillance Equipment, Installation & Maintenance (CCTV, Intercom)",null,"UL",1,"Sports Science Equipment Hire maintenance and Service","GH"]
["UK","Access Control, Keys, Security Passes",2,1,1,1,1,0,1,1,2,1,0,1,1,2,2,2,3,1,1,3,19,8,null,"WX","Access Control, Keys, Security Passes",null,"UM",1,"Sports Services (incl: coaching)","GG"]
["UL","Counselling Services",1,0,0,0,0,0,1,0,1,1,0,1,1,1,1,1,3,1,3,0,10,2,null,"WY","Counselling Services",null,"UN",1,"Sports,  Recreational Equipment","GA"]
["UM","Alarms (including Fire, Smoke, Gas, Intruder) purchase, maintenance, repair and hire",3,1,1,2,1,1,2,1,3,1,0,1,1,2,2,2,3,1,1,3,23,12,null,"WZ","Alarms (including Fire, Smoke, Gas, Intruder) purchase, maintenance, repair and hire",null,"UZ",null,"Stationery & Office Supplies","S"]
["UN","Special Needs/DDA Suppliers, Services Equipment purchase, maintenance, repair and hire",3,1,1,0,1,"N/A",3,1,3,1,0,1,1,2,2,2,3,1,3,3,23,10,null,"XA","Special Needs/DDA Suppliers, Services Equipment purchase, maintenance, repair and hire",{"$nulls":3},"Steam Trading","JF"]
["UZ","Other/General Safety & Security",2,{"v":1.363636364,"d":"1"},1,1,1,1,2,{"v":1.909090909,"d":"2"},2,2,2,2,0,2,2,2,1,1,1,0,{"v":21.272727273,"d":"21"},{"v":11.272727273,"d":"11"},null,"XB","Other/General Safety & Security",null,"VA",1,"Student Placement Programmes, costs and expenses","RW"]
["V","Vehicles & Fleet Management (Purchase, Lease, Contract Hire)",{"$nulls":21},0,null,"XC",null,null,"VB",1,"Student related charges excl Fees","XS"]
["VA","Vehicle Purchase",3,3,2,2,1,3,2,3,3,1,1,1,1,2,2,2,3,3,1,0,30,19,null,"XD","Vehicle Purchase",null,"VC",1,"Student Travel Arrangements","TP"]
["VB","Motoring Association Charges (excl Road Tax)",1,0,0,0,0,0,0,0,1,1,1,1,1,1,1,1,1,1,1,0,8,1,null,"XE","Motoring Association Charges (excl Road Tax)",null,"VD",1,"Studio Hire and Running  Costs","AF"]
["VC","Vehicle Lease / Hire / Rental Long Term",3,2,2,1,1,3,1,3,3,1,1,1,1,1,1,1,2,2,1,0,24,16,null,"XG","Vehicle Lease / Hire / Rental Long Term",null,"VE",1,"Subscriptions (Learned Society, Professional etc)","RN"]
["VD","Road Tax",1,0,0,0,0,0,0,0,1,3,3,1,1,1,1,1,1,1,1,0,10,1,null,"XH","Road Tax",null,"VG",1,"Subsistence","TG"]
["VE","Vehicle Repair, Maintenance & MOT",3,1,1,1,1,1,2,2,3,2,1,2,1,3,3,2,2,2,1,0,24,12,null,"XJ","Vehicle Repair, Maintenance & MOT",null,"VJ",1,"Surveillance Equipment, Installation & Maintenance (CCTV, Intercom)","UJ"]
["VG","Fuels & Lubricants",3,3,3,1,1,0,1,1,3,1,1,1,1,3,3,3,3,3,1,0,26,13,null,"XK","Fuels & Lubricants",null,"VP",1,"Table and Room Decorations","CN"]
["VJ","Garage Equipment",3,2,1,1,1,1,2,3,2,1,0,1,1,2,2,2,2,2,1,0,22,13,null,"XL","Garage Equipment",null,"VZ",null,"Tableware, Crockery, Cutlery, Table Coverings etc inc Disposables","CK"]
["VP","Vehicle Storage",2,1,2,1,0,2,1,0,2,1,0,1,1,1,1,1,1,1,1,0,15,9,null,"XM","Vehicle Storage",{"$nulls":3},"Taxi Hire","TD"]
["VZ","Other/General Vehicle Purchase & Lease Hire",2,{"v":1.375,"d":"1"},1,1,1,1,1,2,2,1,1,1,1,2,2,2,1,1,1,0,{"v":19.375,"d":"19"},{"v":10.375,"d":"10"},null,"XN","Other/General Vehicle Purchase & Lease Hire",null,"WA",3,"Telecommunications","Q"]
["W","Estates & Buildings",{"$nulls":21},0,null,"XR",null,null,"WB",3,"Telecoms Transmission Equipment Purchase & Maintenance","QJ"]
["WA","Building, Repair and Maintenance Materials",3,3,2,3,2,3,2,3,3,3,3,3,3,3,3,2,3,3,1,0,39,21,null,"XS","Building, Repair and Maintenance Materials",null,"WD",3,"Telephony - Mobile Line rental, call charges, equipment","QS"]
["WB","Capital Projects",3,3,3,3,2,3,3,3,3,3,3,2,3,3,3,3,3,3,1,0,41,23,null,"XZ","Capital Projects",null,"WH",3,"Telephony & Switchboard Capital Purchase >£10,000","QG"]
["WD","Conservation Projects",3,2,2,1,0,1,2,3,3,3,3,3,3,3,3,3,1,1,1,0,31,14,null,"YA","Conservation Projects",null,"WJ",3,"Telephony & Switchboard Maintenance","QH"]
["WH","Building Repairs & Maintenance Services (including Signage)",3,2,2,1,0,2,2,3,2,3,1,3,3,3,3,3,3,1,3,0,31,14,null,"YB","Building Repairs & Maintenance Services (including Signage)",null,"WK",3,"Telephony, Land & Mobile, Line Rental, Call Charges, Equipment","QR"]
["WJ","Grounds Maintenance Equipment",3,2,1,2,1,1,3,3,3,3,3,3,3,2,2,2,2,2,1,0,32,16,null,"YC","Grounds Maintenance Equipment",null,"WL",2,"Temporary & Mobile Buildings, Hire & Purchase","WP"]
["WK","Ground maintenance, Supplies & Services (incl Landscaping)",3,2,3,0,0,0,2,3,3,3,3,1,3,3,3,3,2,2,1,0,29,13,null,"YD","Ground maintenance, Supplies & Services (incl Landscaping)",null,"WN",2,"Temporary & Recruitment Employment Agencies (Staff)","RK"]
["WL","Testing & Calibration Services (Non Scientific)",3,1,0,0,0,0,1,3,1,3,3,1,2,2,2,2,1,1,1,0,18,6,null,"YE","Testing & Calibration Services (Non Scientific)",null,"WO",1,"Tent & Marquee Purchase, Hire & Maintenance","WY"]
["WN","Plant Purchase, Hire & Maintenance, inc. Lifts, Air-conditioning, Boilers, Generators etc",3,3,1,2,1,1,3,3,3,2,0,2,2,3,3,3,3,3,1,3,34,17,null,"YF","Plant Purchase, Hire & Maintenance, inc. Lifts, Air-conditioning, Boilers, Generators etc",null,"WP",2,"Testing & Calibration Services (Non Scientific)","WL"]
["WO","Construction Waste Disposal",3,1,3,0,3,0,3,3,3,1,0,1,1,3,3,3,1,1,1,0,26,16,null,"YG","Construction Waste Disposal",null,"WU",3,"Textiles, Fabrics, Soft and Loose Furnishings","FE"]
["WP","Temporary & Mobile Buildings, Hire & Purchase",3,2,1,2,1,1,1,3,3,1,0,1,2,3,3,3,1,1,1,0,25,14,null,"YH","Temporary & Mobile Buildings, Hire & Purchase",null,"WX",2,"Theatre Production Costs (scenery, lighting, props, costumes)","AG"]
["WU","Building related Professional Services, Architects, Estates Agents, QS, Construction Mgt,Surveying Equip & Services",2,1,0,0,0,0,1,1,2,1,0,1,3,1,1,1,2,1,2,2,16,5,null,"YJ","Building related Professional Services, Architects, Estates Agents, QS, Construction Mgt,Surveying Equip & Services",null,"WY",1,"Tickets and Tokens (including electronic tickets and book tokens)","BM"]
["WX","Signs & Signposting",2,1,1,1,1,1,2,2,2,1,0,1,2,1,1,1,1,1,1,0,18,11,null,"YK","Signs & Signposting",null,"WZ",2,"Tissue Culture, Bacteriological Media and Insects","LX"]
["WY","Tent & Marquee Purchase, Hire & Maintenance",3,1,2,3,2,1,1,2,3,1,0,1,1,3,3,2,1,1,1,0,24,15,null,"YL","Tent & Marquee Purchase, Hire & Maintenance",{"$nulls":3},"Tobacco","CY"]
["WZ","Other/General Estates & Buildings",3,{"v":1.846153846,"d":"2"},2,1,1,1,2,{"v":2.538461538,"d":"3"},3,2,2,2,2,2,2,2,2,2,1,0,{"v":27.384615384,"d":"27"},{"v":14.384615384,"d":"14"},null,"YM","Other/General Estates & Buildings",null,"XA",1,"Training Courses","RP"]
["X","Non Infuenceable Spend",{"$nulls":21},0,null,"YN",null,null,"XB",1,"Translation, Interpreter, Transcription & Procedural Writing Services","RU"]
["XA","Fees, Lecturing, Examining, Moderating etc",1,1,0,0,0,0,0,0,1,1,1,1,1,2,2,1,3,1,3,0,12,2,null,"YP","Fees, Lecturing, Examining, Moderating etc",null,"XC",1,"Travel & Subsistence (non Employees)","TU"]
["XB","Credit Card Charges",1,0,0,0,0,0,0,0,1,1,1,1,1,1,1,1,1,1,1,0,8,1,null,"YQ","Credit Card Charges",null,"XD",1,"Travel & Transport (incl. Vehicle hire & Subsistence)","T"]
["XC","Customs & Excise - VAT",1,0,0,0,0,0,0,0,1,1,1,1,1,1,1,1,1,1,1,0,8,1,null,"YR","Customs & Excise - VAT",null,"XE",1,"Travel Agency Services","TM"]
["XD","Fees - Students",2,2,0,0,0,0,0,0,1,3,3,1,1,1,1,1,3,1,3,0,14,3,null,"YZ","Fees - Students",null,"XG",1,"Utilities","J"]
["XE","Hospitality/Entertainment/Courtesy Expenses (Non Employees)",2,2,0,1,0,0,1,0,2,1,1,1,1,2,2,1,1,1,1,0,14,6,null,null,"Hospitality/Entertainment/Courtesy Expenses (Non Employees)",null,"XH",1,"Van Hire","TJ"]
["XG","Building/Premises/Land - Rent, Lease, Hire, Feu Duties",2,2,0,0,0,0,0,0,2,3,3,1,1,1,1,1,1,1,1,0,13,4,null,null,"Building/Premises/Land - Rent, Lease, Hire, Feu Duties",null,"XJ",1,"Vehicle Lease / Hire / Rental Long Term","VC"]
["XH","Welfare",2,2,0,0,0,0,0,0,1,1,1,1,1,1,1,1,3,1,3,0,12,3,null,null,"Welfare",null,"XK",1,"Vehicle Purchase","VA"]
["XJ","Other Educational Establishments",1,1,0,0,0,0,0,0,1,1,1,1,1,1,1,1,3,1,3,0,11,2,null,null,"Other Educational Establishments",null,"XL",1,"Vehicle Repair, Maintenance & MOT","VE"]
["XK","Other Public Bodies",1,1,0,0,0,0,0,0,1,1,1,1,1,1,1,1,1,1,1,0,9,2,null,null,"Other Public Bodies",null,"XM",1,"Vehicle Storage","VP"]
["XL","Rates",1,0,0,0,0,0,0,0,1,1,1,1,1,1,1,1,1,1,1,0,8,1,null,null,"Rates",null,"XN",1,"Vehicles & Fleet Management (Purchase, Lease, Contract Hire)","V"]
["XM","Awards, Gifts, Trophies, Souvenirs",2,2,1,1,1,0,1,0,2,1,1,1,1,2,2,1,1,1,1,0,16,8,null,null,"Awards, Gifts, Trophies, Souvenirs",null,"XR",1,"Vending Equipment, Consumables and Charges","CL"]
["XN","Bursaries, Scholarships, Endowments, Donations",1,1,0,0,0,0,0,0,1,1,0,1,1,1,1,1,3,1,3,0,10,2,null,null,"Bursaries, Scholarships, Endowments, Donations",null,"XS",1,"Video Equipment Purchase hire and Maintenance and repair ","AH"]
["XR","Interdepartmental trading",1,0,0,0,0,0,0,0,1,1,0,1,1,1,1,1,1,1,1,0,7,1,null,null,"Interdepartmental trading",null,"XZ",null,"Warehouse and Storage","YF"]
["XS","Student related charges excl Fees",1,0,0,0,0,0,1,0,1,1,0,1,1,1,1,1,1,1,1,0,8,2,null,null,"Student related charges excl Fees",{"$nulls":3},"Washroom and Cleaning Consumables","HH"]
["XZ","Other/General Miscellaneous",1,1,0,0,0,0,0,0,1,1,1,1,1,2,2,2,1,1,1,0,11,2,null,null,"Other/General Miscellaneous",null,"YA",1,"Waste-Confidential Disposal","YJ"]
["Y","Facilities Operations",{"$nulls":21},0,{"$nulls":4},"YB",1,"Waste-Lab Disposal  - Clinical and Chemical","YH"]
["YA","Mail Services including Fulfilment",2,1,1,1,0,1,1,0,2,3,3,1,1,2,2,1,1,1,1,0,17,7,null,null,"Mail Services including Fulfilment",null,"YC",1,"Waste-Non-lab Hazardous Disposal & Treatment Recycling","YK"]
["YB","Mail Room Equipment Purchase Lease & Maintenance",3,1,1,1,2,1,3,3,3,1,1,1,1,2,2,2,3,1,1,3,27,15,null,null,"Mail Room Equipment Purchase Lease & Maintenance",null,"YD",1,"Waste-Refuse Disposal","YL"]
["YC","Courier Services",3,2,1,1,1,2,1,1,3,1,1,1,1,3,3,2,1,1,1,0,22,12,null,null,"Courier Services",null,"YE",1,"Water and Sewerage Services","JE"]
["YD","Freight Carriage & Haulage Services",3,3,2,1,1,2,1,1,3,3,3,1,1,3,3,3,2,2,1,0,28,14,null,null,"Freight Carriage & Haulage Services",null,"YF",1,"Watercooler Equipment Services and Consumables","YN"]
["YE","Furniture - Office Removal  and Storage",3,2,1,0,0,0,3,2,3,2,1,2,1,3,3,2,1,1,1,0,22,11,null,null,"Furniture - Office Removal  and Storage",null,"YG",1,"Website Design and Services","KO"]
["YF","Warehouse and Storage",2,2,1,1,0,1,1,2,2,1,1,1,1,3,3,2,1,1,1,0,20,10,null,null,"Warehouse and Storage",null,"YH",1,"Welfare","XH"]
["YG","Agric/Hortic Disposal Services",3,2,3,1,1,1,3,3,3,1,1,1,1,{"$f":"MAX(Q323:R323)","v":3},3,3,1,1,1,0,{"$f":"SUM(D323:K323,M323:O323,Q323:R323,T323:V323)","v":28},17,null,null,"Agric/Hortic Disposal Services",null,"YJ",1,"Window Coverings","FG"]
["YH","Waste-Lab Disposal  - Clinical and Chemical",{"$f":"MAX(D324:K324)","v":3},2,3,0,3,0,3,1,3,{"$f":"MAX(M324:N324)","v":2},1,2,1,3,3,3,2,2,1,2,30,{"$f":"SUM(D324:K324)","v":15},null,null,"Waste-Lab Disposal  - Clinical and Chemical",null,"YK",1,"Workshop & Maintenance Supplies inc Engineering","M"]
["YJ","Waste-Confidential Disposal",3,2,1,0,0,0,3,2,3,2,1,2,1,3,3,1,{"$f":"MAX(T325:V325)","v":3},2,3,2,26,11,null,null,"Waste-Confidential Disposal",null,"YL",1,"Workshop Consumables, Rags, Cleansers etc","MS"]
["YK","Waste-Non-lab Hazardous Disposal & Treatment Recycling",3,3,3,2,3,0,3,1,3,2,0,2,1,3,3,2,2,2,1,2,31,18,null,null,"Waste-Non-lab Hazardous Disposal & Treatment Recycling",null,"YM",1,"Workshop Equipment and Tool Maintenance","MG"]
["YL","Waste-Refuse Disposal",3,2,3,1,3,0,3,3,3,2,0,2,1,3,3,2,2,2,2,2,32,18,null,null,"Waste-Refuse Disposal",null,"YN",1,"Workshop Ironmongery, Door Furniture,  Locksmiths Supplies  and Services","MQ"]
["YM","Clothing and Tailoring Supplies and Services",3,2,2,2,1,1,1,3,3,2,0,2,1,3,3,1,2,1,2,0,25,15,null,null,"Clothing and Tailoring Supplies and Services",null,"YP",1,"Workshop Metals","MJ"]
["YN","Watercooler Equipment Services and Consumables",3,2,1,1,1,1,1,3,2,2,0,2,1,2,2,2,1,1,1,0,21,12,null,null,"Watercooler Equipment Services and Consumables",null,"YQ",1,"Workshop Plastics, Glass and Ceramics","ML"]
["YP","Cleaning Services Including Window Cleaning",3,1,1,1,1,1,3,2,3,2,0,2,1,3,3,3,1,1,1,0,24,13,null,null,"Cleaning Services Including Window Cleaning",null,"YR",1,"Workshop Plumbing Sundries","MP"]
["YQ","Pest & Vermin Control Services",3,1,3,0,3,1,1,1,3,2,0,2,1,3,3,3,1,1,1,0,24,13,null,null,"Pest & Vermin Control Services",null,"YZ",null,"Workshop Teaching Aids and Materials","MT"]
["YR","Catering Services Outsourced at a fixed site",3,3,2,0,0,1,1,1,3,1,0,1,1,3,3,2,1,1,1,0,20,11,null,null,"Catering Services Outsourced at a fixed site",{"$nulls":3},"Workshop Wood","MM"]
["YZ","Other/General Facilities Operations",3,2,2,1,1,1,2,{"v":1.4375,"d":"1"},3,2,1,2,1,2,2,2,1,1,1,0,{"v":23.4375,"d":"23"},{"v":13.4375,"d":"13"},null,null,"Other/General Facilities Operations"]

{"sheet":"Mapping Tool Data High Level","index":4,"n_rows":333,"n_cols":32,"rows_kept":333}
[1,2,3,4,5,6,7,8,9,10,11,null,12,14,17,null,15,16,{"$nulls":7},"AC",{"$nulls":5},"Supply Chain Code of Conduct Principle:"]
["Com Code","Commodity Code Description","Environmental Sustainability MAX","Carbon/ Climate Change ","Biodiversity "," Water ","Novel entities ","Material scarcity & security ","Waste/ Disposal ","Circular Economy Opportunities","Environmental Data Maturity Opportunities"," Social Compliance MAX"," Equality "," Modern Slavery Risk ","Social Opportunities (local)","Working Environment and Terms MAX","Wages and Terms","Health and Safety","Ethical Compliance & Economic Development MAX","Bribery & Corruption ","GDPR ","Cyber Security ","Sum",null,null,"AD",{"$nulls":4},"Commodity Code Description","Com Code"]
["A","Audio-Visual & Multimedia Supplies and Services",{"$nulls":21},{"$f":"SUM(D3:K3)","v":0},null,"AF",null,null,"AC",2,"Accommodation & Hotels (Direct)","TA"]
["AA","Audio Visual Equipment, incl video conferencing, Televisions, Videos, sound recorders",{"$f":"MAX(D4:K4)","v":3},2,2,3,2,2,3,3,3,{"$f":"MAX(M4:N4)","v":2},2,1,2,{"$f":"MAX(Q4:R4)","v":3},3,3,{"$f":"MAX(T4:V4)","v":3},3,1,3,{"$f":"SUM(D4:K4,M4:O4,Q4:R4,T4:V4)","v":38},{"$f":"SUM(D4:K4)","v":20},null,"AG","Audio Visual Equipment, incl video conferencing, Televisions, Videos, sound recorders",null,"AD",2,"Accountancy Services, inc. Audit Consultancy,","RD"]
["AC","Audio Visual Learning and Training  Packs and Pre-recorded  Media",2,1,1,2,"N/A",2,1,0,1,2,1,2,2,1,1,1,{"$f":"MAX(T5:V5)","v":2},1,1,2,19,8,null,"AH","Audio Visual Learning and Training  Packs and Pre-recorded  Media",null,"AE",2,"Advertising Services  (Course, Recruitment & Other)","RA"]
["AD","Musical Instruments, Purchase, Maintenance and Hire",2,1,1,1,1,1,1,1,2,2,1,2,2,2,2,2,1,1,1,0,20,9,null,"AJ","Musical Instruments, Purchase, Maintenance and Hire",null,"AF",2,"Agric/Hortic Disposal Services","YG"]
["AE","Photographic Equipment Supplies and Services",3,2,2,2,2,1,3,1,3,3,3,2,2,2,2,2,3,3,1,2,33,16,null,"AL","Photographic Equipment Supplies and Services",null,"AG",2,"Agricultural Equipment Hire","EG"]
["AF","Studio Hire and Running  Costs",2,1,0,0,0,0,0,1,2,3,3,2,2,2,2,2,1,1,1,0,17,4,null,"AT","Studio Hire and Running  Costs",null,"AH",2,"Agricultural Equipment Maintenance and Repair","EF"]
["AG","Theatre Production Costs (scenery, lighting, props, costumes)",3,2,2,1,2,0,1,3,2,1,1,1,2,3,3,2,2,2,1,0,25,13,null,"AU","Theatre Production Costs (scenery, lighting, props, costumes)",null,"AJ",2,"Agricultural Fencing Supplies and Associated Services","EL"]
["AH","Video Equipment Purchase hire and Maintenance and repair ",3,2,2,1,2,2,3,3,2,2,1,2,2,2,2,1,3,3,1,1,30,17,null,"BA","Video Equipment Purchase hire and Maintenance and repair ",null,"AL",2,"Agricultural, Fisheries, Forestry, Oceanographic Capital Equipment >£10k ","EC"]
["AJ","Audio Visual Consumables,  Accessories, Cassettes  etc",2,2,2,0,1,1,1,1,2,2,1,2,2,3,3,2,3,3,1,0,24,10,null,"BB","Audio Visual Consumables,  Accessories, Cassettes  etc",null,"AT",2,"Agricultural, Fisheries, Forestry, Oceanographic, Small Equipment and Tools","ED"]
["AL","Digital Imaging Equipment  Purchase, Maintenance,  Repair and Consumables",3,2,2,2,1,2,3,2,2,2,1,2,2,2,2,2,3,3,1,2,31,16,null,"BC","Digital Imaging Equipment  Purchase, Maintenance,  Repair and Consumables",null,"AU",2,"Agricultural/Fisheries/Forestry/Horticultural/Oceanographic Supplies & Services","E"]
["AT","Audio-Visual Equipment Hire",3,1,1,1,0,1,1,3,2,2,1,2,2,3,3,2,3,3,1,2,26,10,null,"BD","Audio-Visual Equipment Hire",{"$nulls":3},"Air Travel","TB"]
["AU","Audio Visual Equipment Maintenance and Services",3,1,1,1,0,1,1,3,2,2,1,2,2,3,3,2,3,3,1,3,27,10,null,"BE","Audio Visual Equipment Maintenance and Services",{"$nulls":3},"Aircraft & Helicopter Hire","TN"]
["AZ","Other and General Audio-Visual  Aids",2,{"v":1.636363636,"d":"2"},1,1,1,1,2,{"v":1.818181818,"d":"2"},2,2,1,2,2,2,2,2,2,2,2,0,{"v":24.454545453999998,"d":"24"},{"v":11.454545454,"d":"11"},null,"BF","Other and General Audio-Visual  Aids",null,"BA",1,"Alarms (including Fire, Smoke, Gas, Intruder) purchase, maintenance, repair and hire","UM"]
["B","Library & Publications",{"$nulls":21},0,null,"BG",null,null,"BB",1,"Animal Welfare Supplies and Services","EJ"]
["BA","Book Binding Services",2,1,2,1,2,1,1,1,1,2,2,1,1,3,3,1,1,1,1,0,20,10,null,"BI","Book Binding Services",null,"BC",1,"Archival and Storage Services inc EDM","RV"]
["BB","Books Hardcopy",3,1,3,2,2,3,1,1,2,1,1,1,1,2,2,2,1,1,1,0,24,15,null,"BJ","Books Hardcopy",null,"BD",1,"Archiving Equipment  and Consumables  (Microfiche etc)","BJ"]
["BC","Inter-Library Loans",2,1,0,0,0,2,1,1,1,1,1,1,1,1,1,1,1,1,1,0,13,6,null,"BK","Inter-Library Loans",null,"BE",1,"Art Exhibits and Museum Collections","NA"]
["BD","Journals Hardcopy",3,1,3,2,1,3,1,1,2,1,1,1,1,2,2,2,1,1,1,0,23,14,null,"BL","Journals Hardcopy",null,"BF",1,"Artistes and Conductors","RY"]
["BE","Library Subscriptions",1,1,0,0,0,0,1,1,1,1,1,1,1,1,1,1,1,1,1,0,11,4,null,"BM","Library Subscriptions",null,"BG",1,"Arts Equipment Purchase and Maintenance and Consumables","NF"]
["BF","Manuscripts Hardcopy",3,1,3,2,1,3,1,1,2,2,2,1,1,2,2,2,1,1,1,0,24,14,null,"BN","Manuscripts Hardcopy",null,"BI",1,"Auction Services","RT"]
["BG","Newspapers and Periodicals Hardcopy",3,1,3,2,1,3,1,1,2,1,1,1,1,2,2,2,1,1,1,0,23,14,null,"BP","Newspapers and Periodicals Hardcopy",null,"BJ",1,"Audio Visual Consumables,  Accessories, Cassettes  etc","AJ"]
["BI","Manuscripts Electronic",2,2,1,1,0,2,0,0,1,1,1,1,1,2,2,1,2,1,1,2,17,7,null,"BQ","Manuscripts Electronic",null,"BK",1,"Audio Visual Equipment Maintenance and Services","AU"]
["BJ","Archiving Equipment  and Consumables  (Microfiche etc)",2,2,1,0,"N/A",1,2,0,2,1,1,1,1,2,2,2,1,1,1,0,17,8,null,"BR","Archiving Equipment  and Consumables  (Microfiche etc)",null,"BL",1,"Audio Visual Equipment, incl video conferencing, Televisions, Videos, sound recorders","AA"]
["BK","Electronic Publications, Media and Music",2,1,1,1,0,2,0,0,1,1,1,1,1,2,2,2,2,1,1,2,17,6,null,"BS","Electronic Publications, Media and Music",null,"BM",1,"Audio Visual Learning and Training  Packs and Pre-recorded  Media","AC"]
["BL","Manuals; Computer,  Workshop, Training",2,1,1,1,"N/A",2,0,1,1,1,1,1,1,1,1,1,1,1,1,0,14,7,null,"BT","Manuals; Computer,  Workshop, Training",null,"BN",1,"Audio-Visual & Multimedia Supplies and Services","A"]
["BM","Tickets and Tokens (including electronic tickets and book tokens)",1,1,1,0,"N/A",0,0,1,1,1,1,1,1,1,1,1,1,1,1,0,11,4,null,"BV","Tickets and Tokens (including electronic tickets and book tokens)",null,"BP",1,"Audio-Visual Equipment Hire","AT"]
["BN","Library Equipment and Services (e.g. book tagging) including maintenance, repair and hire",2,2,1,1,1,2,2,2,2,2,2,1,1,1,1,1,2,2,1,0,22,13,null,"BW","Library Equipment and Services (e.g. book tagging) including maintenance, repair and hire",null,"BQ",1,"Awards, Gifts, Trophies, Souvenirs","XM"]
["BP","Books Electronic",2,2,1,1,0,1,0,0,1,1,1,1,1,1,1,1,2,1,1,2,15,6,null,"CA","Books Electronic",null,"BR",1,"Bakery Products","CB"]
["BQ","Journals Electronic",2,2,1,1,0,1,0,0,1,2,2,1,1,1,1,1,2,1,1,2,16,6,null,"CB","Journals Electronic",null,"BS",1,"Banking Services","RH"]
["BR","Newspapers and Periodicals Electronic",2,2,1,1,0,1,0,0,1,1,1,1,1,1,1,1,2,1,1,2,15,6,null,"CC","Newspapers and Periodicals Electronic",null,"BT",1,"Beers, Wines, Spirits  and Alcoholic drinks","CA"]
["BS","Library Licences and Royalties",1,0,0,0,0,1,0,0,0,1,1,1,1,1,1,1,1,1,1,0,8,1,null,"CD","Library Licences and Royalties",null,"BV",1,"Bespoke IT Solutions","KW"]
["BT","Library Materials Restoration",2,1,1,"N/A",1,1,1,1,2,1,1,1,1,1,1,1,1,1,1,0,15,8,null,"CE","Library Materials Restoration",null,"BW",1,"Boat Hire & Charter","TL"]
["BV","Maps Electronic or Hardcopy",3,1,1,2,1,3,1,1,1,1,1,1,1,1,1,1,3,1,1,3,21,11,null,"CF","Maps Electronic or Hardcopy",{"$nulls":3},"Book Binding Services","BA"]
["BW","Sheet Music ",3,1,3,2,1,3,1,1,1,1,1,1,1,1,1,1,1,1,1,0,20,13,null,"CG","Sheet Music ",{"$nulls":3},"Books Electronic","BP"]
["BZ","Other and General Library",2,{"v":1.25,"d":"1"},1,1,1,2,1,{"v":0.4375,"d":"0"},1,1,1,1,1,2,2,2,1,1,1,0,{"v":17.6875,"d":"18"},{"v":8.6875,"d":"9"},null,"CH","Other and General Library",null,"CA",1,"Books Hardcopy","BB"]
["C","Catering Supplies & Services",{"$nulls":21},0,null,"CJ",null,null,"CB",1,"Branding and Media Services","RX"]
["CA","Beers, Wines, Spirits  and Alcoholic drinks",3,2,3,3,1,1,1,0,2,2,1,2,1,2,2,2,2,2,1,0,24,13,null,"CK","Beers, Wines, Spirits  and Alcoholic drinks",null,"CC",1,"Building related Professional Services, Architects, Estates Agents, QS, Construction Mgt,Surveying Equip & Services","WU"]
["CB","Bakery Products",2,2,2,2,1,1,1,2,2,2,1,2,1,3,3,3,2,2,1,0,26,13,null,"CL","Bakery Products",null,"CD",1,"Building Repairs & Maintenance Services (including Signage)","WH"]
["CC","Dairy Produce",3,3,3,3,2,2,1,2,3,2,1,2,1,3,3,3,1,1,1,0,31,19,null,"CM","Dairy Produce",null,"CE",1,"Building, Repair and Maintenance Materials","WA"]
["CD","Frozen Foods",3,3,2,2,1,1,1,2,2,3,2,3,1,2,2,2,1,1,1,0,26,14,null,"CN","Frozen Foods",null,"CF",1,"Building/Premises/Land - Rent, Lease, Hire, Feu Duties","XG"]
["CE","Groceries",2,1,2,2,1,1,1,2,2,1,1,1,1,2,2,2,1,1,1,0,21,12,null,"CP","Groceries",null,"CG",2,"Bursaries, Scholarships, Endowments, Donations","XN"]
["CF","Catering, Bar Equipment and Accessories Purchases",3,1,1,1,1,0,3,2,1,1,1,1,1,2,2,2,2,2,1,0,20,10,null,"CQ","Catering, Bar Equipment and Accessories Purchases",null,"CH",1,"Capital Projects","WB"]
["CG","Catering Equipment Maintenance and Repair",3,1,1,0,0,0,3,2,1,2,2,2,2,2,2,2,2,2,1,0,21,8,null,"CS","Catering Equipment Maintenance and Repair",null,"CJ",1,"Car Hire","TH"]
["CH","Meat, Poultry, Offal",3,3,3,3,2,2,1,1,3,1,1,1,1,3,3,3,1,1,1,0,29,18,null,"CU","Meat, Poultry, Offal",null,"CK",1,"Carbon Emissions Trading","JG"]
["CJ","Soft Drinks, Hot Drinks and Non-alcoholic Drinks",3,2,2,2,0,1,1,1,3,1,1,1,1,2,2,2,1,1,1,0,21,12,null,"CV","Soft Drinks, Hot Drinks and Non-alcoholic Drinks",null,"CL",1,"Catering Entertainments","CS"]
["CK","Tableware, Crockery, Cutlery, Table Coverings etc inc Disposables",3,2,2,2,1,1,1,1,3,3,3,1,1,2,2,2,2,2,1,0,25,13,null,"CY","Tableware, Crockery, Cutlery, Table Coverings etc inc Disposables",null,"CM",1,"Catering Equipment Maintenance and Repair","CG"]
["CL","Vending Equipment, Consumables and Charges",3,1,1,1,1,1,3,2,2,3,1,3,1,2,2,2,2,2,1,0,24,12,null,"CZ","Vending Equipment, Consumables and Charges",null,"CN",1,"Catering Hospitality Services","CU"]
["CM","Fruit and Vegetables, Frozen, Fresh, Dried, Tinned",3,2,3,3,1,1,1,1,3,3,3,1,1,3,3,2,1,1,1,0,27,15,null,"DA","Fruit and Vegetables, Frozen, Fresh, Dried, Tinned",null,"CP",1,"Catering Services Outsourced at a fixed site","YR"]
["CN","Table and Room Decorations",1,1,1,"N/A",0,0,1,1,1,3,1,3,1,2,2,2,1,1,1,0,16,5,null,"DB","Table and Room Decorations",null,"CQ",1,"Catering Supplies & Services","C"]
["CP","Fish and Seafood",3,2,3,"N/A","N/A",2,1,1,3,1,1,1,1,3,3,3,1,1,1,0,23,12,null,"DC","Fish and Seafood",null,"CS",1,"Catering, Bar Equipment and Accessories Purchases","CF"]
["CQ","Confectionery, Sweet and Savoury",2,1,2,1,1,1,1,2,2,3,3,1,1,2,2,2,1,1,1,0,22,11,null,"DE","Confectionery, Sweet and Savoury",null,"CU",1,"CHP Plant Maintenance","JH"]
["CS","Catering Entertainments",1,1,1,0,0,0,1,0,1,3,3,2,1,1,1,1,1,1,1,0,14,4,null,"DF","Catering Entertainments",null,"CV",1,"Cleaning Machines and Maintenance ","HB"]
["CU","Catering Hospitality Services",1,1,1,0,0,0,1,1,1,1,1,1,1,2,2,1,1,1,1,0,13,5,null,"DH","Catering Hospitality Services",null,"CY",1,"Cleaning Services Including Window Cleaning","YP"]
["CV","Liquor Licences",1,1,0,0,0,0,1,0,1,3,1,3,1,1,1,1,1,1,1,0,12,3,null,"DJ","Liquor Licences",null,"CZ",null,"Clothing and Tailoring Supplies and Services","YM"]
["CY","Tobacco",3,2,3,1,1,2,1,0,3,1,0,1,1,3,3,3,2,2,1,0,24,13,null,"DL","Tobacco",{"$nulls":3},"Coach Hire","TK"]
["CZ","Other and General Catering",2,{"v":1.368421053,"d":"1"},2,2,1,1,1,0,2,2,2,2,1,2,2,2,1,1,1,0,{"v":21.368421053,"d":"21"},{"v":10.368421053,"d":"10"},null,"DZ","Other and General Catering",null,"DA",1,"Commercial and Graphic  Art Equipment Purchase  and Maintenance  and Consumables","NE"]
["D","Medical, Surgical, Nursing, Dentistry Supplies & Services",{"$nulls":21},0,null,"EA",null,null,"DB",1,"Communications Equipment & Accessories (Hubs, Modems, Routers)","QN"]
["DA","Medical, Surgical, Nursing Supplies & Services Capital Equipment >£10k",3,3,3,3,1,2,3,3,3,2,1,2,1,3,3,3,3,3,1,3,38,21,null,"EB","Medical, Surgical, Nursing Supplies & Services Capital Equipment >£10k",null,"DC",1,"Computer Consumables, Peripherals, Upgrades and Add-ons","KM"]
["DB","Medical, Surgical, Nursing Supplies & Services Small Apparatus, Equipment  and Instruments",3,2,2,3,1,2,3,3,3,2,1,2,1,3,3,3,3,3,1,0,33,19,null,"EC","Medical, Surgical, Nursing Supplies & Services Small Apparatus, Equipment  and Instruments",null,"DE",1,"Computer Supplies & Services","K"]
["DC","Medical, Surgical, Nursing Supplies & Services Consumables and Disposables",3,2,3,3,2,2,2,3,3,3,3,2,1,3,3,3,3,3,1,0,36,20,null,"ED","Medical, Surgical, Nursing Supplies & Services Consumables and Disposables",null,"DF",2,"Confectionery, Sweet and Savoury","CQ"]
["DE","Medical, Surgical, Nursing Supplies & Services, Specialist Clothing",3,2,3,3,1,1,2,3,3,1,1,1,1,3,3,2,1,1,1,0,28,18,null,"EF","Medical, Surgical, Nursing Supplies & Services, Specialist Clothing",null,"DH",1,"Conferences & Meetings (Event Management)","RB"]
["DF","Medical, Surgical, Nursing Equipment Maintenance and Repair",3,1,1,1,0,0,2,3,2,1,1,1,2,3,3,3,3,2,1,3,26,10,null,"EG","Medical, Surgical, Nursing Equipment Maintenance and Repair",null,"DJ",1,"Conferences, meetings and room bookings","TQ"]
["DH","Medical, Surgical, Nursing Diagnostic Services and Clinical Trials",2,1,1,1,0,0,1,1,2,1,1,1,1,3,3,3,1,1,1,0,18,7,null,"EH","Medical, Surgical, Nursing Diagnostic Services and Clinical Trials",null,"DL",1,"Conservation & Restoration Materials","NC"]
["DJ","Medical, Surgical, Nursing Teaching materials and aids",3,1,1,0,0,1,3,1,2,2,1,2,1,2,2,1,1,1,1,0,18,9,null,"EJ","Medical, Surgical, Nursing Teaching materials and aids",null,"DZ",null,"Conservation & Restoration Services","ND"]
["DL","Medicinal Drugs - Non Veterinary",3,3,3,2,2,2,3,1,3,1,"N/A",1,1,3,3,3,2,2,1,0,30,19,null,"EK","Medicinal Drugs - Non Veterinary",{"$nulls":3},"Conservation Projects","WD"]
["DZ","Medical, Surgical, Nursing Supplies & Services  Other and General",{"$f":"MAX(D68:K68)","v":3},{"v":1.875,"d":"2"},2,2,1,1,2,{"v":2.125,"d":"2"},3,{"$f":"MAX(M68:N68)","v":2},1,2,1,{"$f":"MAX(Q68:R68)","v":2},2,2,2,2,1,0,{"$f":"SUM(D68:K68,M68:O68,Q68:R68,T68:V68)","v":26},{"$f":"SUM(D68:K68)","v":15},null,"EL","Medical, Surgical, Nursing Supplies & Services  Other and General",null,"EA",1,"Construction Waste Disposal","WO"]
["E","Agricultural/Fisheries/Forestry/Horticultural/Oceanographic Supplies & Services",{"$nulls":21},0,null,"EM",null,null,"EB",1,"Consumables","NG"]
["EA","Livestock and Animal Purchases, Services and Supplies",3,3,3,3,1,2,1,0,3,2,1,2,1,2,2,2,{"$f":"MAX(T70:V70)","v":1},1,1,0,26,16,null,"EN","Livestock and Animal Purchases, Services and Supplies",null,"EC",1,"Counselling Services","UL"]
["EB","Livestock, Animal and Farm Feeds",3,2,3,2,0,2,1,1,3,2,1,2,1,2,2,2,1,1,1,0,24,14,null,"EP","Livestock, Animal and Farm Feeds",null,"ED",1,"Courier Services","YC"]
["EC","Agricultural, Fisheries, Forestry, Oceanographic Capital Equipment >£10k ",3,3,3,3,1,1,3,3,3,2,1,2,1,3,2,3,3,3,1,3,36,20,null,"ES","Agricultural, Fisheries, Forestry, Oceanographic Capital Equipment >£10k ",null,"EF",2,"Credit Card Charges","XB"]
["ED","Agricultural, Fisheries, Forestry, Oceanographic, Small Equipment and Tools",3,2,2,2,1,1,1,2,3,1,1,1,1,2,2,2,3,3,1,0,25,14,null,"ET","Agricultural, Fisheries, Forestry, Oceanographic, Small Equipment and Tools",null,"EG",1,"Customs & Excise - VAT","XC"]
["EF","Agricultural Equipment Maintenance and Repair",3,1,1,1,0,0,0,3,2,1,1,1,2,3,2,3,3,2,1,3,23,8,null,"EZ","Agricultural Equipment Maintenance and Repair",null,"EH",1,"Dairy Produce","CC"]
["EG","Agricultural Equipment Hire",3,1,1,2,0,1,0,3,2,1,1,1,1,3,2,3,2,2,1,0,21,10,null,"FA","Agricultural Equipment Hire",null,"EJ",1,"Data Information Services","RC"]
["EH","Purchase of Plants, Crops, Trees etc",3,1,3,"N/A",0,1,1,1,3,3,3,2,1,2,2,1,1,1,1,0,21,10,null,"FB","Purchase of Plants, Crops, Trees etc",null,"EK",1,"Data Telecommunications, internet services - e.g. Eduroam or VOIP","QT"]
["EJ","Animal Welfare Supplies and Services",2,1,1,2,0,1,1,1,2,2,1,2,1,2,2,2,1,1,1,0,19,9,null,"FC","Animal Welfare Supplies and Services",null,"EL",1,"Debt Collection Services","RR"]
["EK","Fertilisers, Pesticides, Composts, Soils etc",3,3,3,1,1,2,3,1,3,1,1,1,1,3,2,3,3,3,1,0,29,17,null,"FD","Fertilisers, Pesticides, Composts, Soils etc",null,"EM",1,"Desktop, Laptop, Tablet, Computer Purchase inc Apple","KH"]
["EL","Agricultural Fencing Supplies and Associated Services",2,2,2,1,0,2,1,2,1,1,1,1,1,2,2,2,1,1,1,0,20,11,null,"FE","Agricultural Fencing Supplies and Associated Services",null,"EN",1,"Diaries, Calendars","SD"]
["EM","Horticultural Consumables  (Pots, Seed Trays  etc)",2,2,2,1,2,1,1,2,2,1,1,1,1,2,2,1,1,1,1,0,21,13,null,"FF","Horticultural Consumables  (Pots, Seed Trays  etc)",null,"EP",1,"Digital Imaging Equipment  Purchase, Maintenance,  Repair and Consumables","AL"]
["EN","Oceanographic Supplies and Services",2,2,1,1,"N/A",1,2,2,2,1,1,1,1,2,2,2,2,2,1,0,21,11,null,"FG","Oceanographic Supplies and Services",null,"ES",1,"Electrical Sundries and Components","MB"]
["EP","Housing - Kennels, Catteries, Stabling, bedding and tackle Supplies and Services",2,2,1,1,0,1,1,2,2,1,1,1,1,2,2,2,1,1,1,0,19,10,null,"FK","Housing - Kennels, Catteries, Stabling, bedding and tackle Supplies and Services",null,"ET",1,"Electrical White Goods and Domestic Kitchen Equipment","FA"]
["ES","Pasturage, purchase, lease and maintenance",3,1,3,0,0,0,1,2,3,2,1,2,1,2,2,1,1,1,1,0,19,10,null,"FL","Pasturage, purchase, lease and maintenance",null,"EZ",null,"Electricity Supply and Services","JA"]
["ET","Medicinal Products - Drugs Veterinary",3,3,3,2,2,2,3,1,3,1,"N/A",1,1,3,2,3,2,2,1,0,29,19,null,"FN","Medicinal Products - Drugs Veterinary",{"$nulls":3},"Electronic Components and Test Equipment, Purchase, Maintenance, Repair and Hire","MN"]
["EZ","Other and General",2,{"v":1.933333333,"d":"2"},2,2,1,1,1,{"v":1.666666667,"d":"2"},2,2,1,2,1,2,2,2,2,2,1,0,{"v":23.6,"d":"24"},{"v":12.6,"d":"13"},null,"FP","Other and General",null,"FA",1,"Electronic Publications, Media and Music","BK"]
["F","Furniture, Furnishings & Textiles",{"$nulls":21},0,null,"FT",null,null,"FB",1,"Envelopes","SA"]
["FA","Electrical White Goods and Domestic Kitchen Equipment",3,2,2,2,2,2,3,3,3,3,3,3,1,2,2,2,3,3,1,2,36,19,null,"FU","Electrical White Goods and Domestic Kitchen Equipment",null,"FC",1,"EPOS and PDQ Machines","KI"]
["FB","Laboratory Furniture - Fixed and Free-standing",3,2,2,3,2,1,1,3,3,3,3,3,1,2,2,2,1,1,1,0,30,17,null,"FZ","Laboratory Furniture - Fixed and Free-standing",null,"FD",1,"Estates & Buildings","W"]
["FC","Furniture - Office",3,2,2,3,2,1,3,3,3,3,3,3,1,2,2,2,1,1,1,0,32,19,null,"GA","Furniture - Office",null,"FE",1,"Facilities Operations","Y"]
["FD","Floor Coverings",3,2,3,3,3,1,1,3,3,3,1,3,1,2,2,2,2,2,1,0,31,19,null,"GB","Floor Coverings",null,"FF",1,"Fees - Students","XD"]
["FE","Textiles, Fabrics, Soft and Loose Furnishings",3,2,3,3,2,1,3,3,3,3,3,2,1,2,2,2,1,1,1,0,32,20,null,"GC","Textiles, Fabrics, Soft and Loose Furnishings",null,"FG",1,"Fees, Lecturing, Examining, Moderating etc","XA"]
["FF","Furniture - Residential",3,2,2,3,2,1,3,3,3,2,1,2,1,2,2,2,1,1,1,0,29,19,null,"GD","Furniture - Residential",null,"FK",1,"Ferry Travel","TC"]
["FG","Window Coverings",3,2,3,3,1,1,1,3,3,3,3,2,1,2,2,2,1,1,1,0,29,17,null,"GE","Window Coverings",null,"FL",1,"Fertilisers, Pesticides, Composts, Soils etc","EK"]
["FK","Furniture - Repairs",3,1,1,1,0,0,1,3,1,3,3,2,1,2,2,2,1,1,1,0,20,8,null,"GF","Furniture - Repairs",null,"FN",1,"Files, Filing Folders, Binders","SB"]
["FL","Furniture - Classroom and Lecture Theatre",3,2,2,3,2,1,3,3,3,3,3,2,1,2,2,2,1,1,1,0,31,19,null,"GG","Furniture - Classroom and Lecture Theatre",null,"FP",1,"Financial Investment Services","RI"]
["FN","General Storage, Racking,  Shelving (incl.  Library)",3,2,2,1,0,1,1,3,2,2,0,2,1,2,2,2,1,1,1,0,21,12,null,"GH","General Storage, Racking,  Shelving (incl.  Library)",null,"FT",1,"Fire Protection/Fire Fighting Equipment & Services","UB"]
["FP","Security Furniture Inc Safes",2,2,2,2,"N/A",1,1,2,1,2,0,2,1,2,2,2,2,2,1,0,21,11,null,"GZ","Security Furniture Inc Safes",null,"FU",1,"First Aid Supplies","UC"]
["FT","Outdoor Furniture",3,2,2,3,0,2,1,3,3,2,0,2,1,2,2,2,1,1,1,0,25,16,null,"HB","Outdoor Furniture",null,"FZ",null,"Fish and Seafood","CP"]
["FU","Furniture and Furnishing Purchase - Specialist",3,2,1,"N/A","N/A",2,3,2,3,2,0,2,1,2,2,2,1,1,1,0,22,13,null,"HD","Furniture and Furnishing Purchase - Specialist",{"$nulls":3},"Floor Coverings","FD"]
["FZ","Other and General Furniture,  Furnishings and  Textiles",3,{"v":1.769230769,"d":"2"},2,3,1,1,2,{"v":2.916666667,"d":"3"},3,2,2,2,1,2,2,2,1,1,1,0,{"v":27.685897435999998,"d":"28"},{"v":16.685897435999998,"d":"17"},null,"HG","Other and General Furniture,  Furnishings and  Textiles",null,"GA",1,"Freight Carriage & Haulage Services","YD"]
["G","Sports Science and Recreation",{"$nulls":21},0,null,"HH",null,null,"GB",1,"Frozen Foods","CD"]
["GA","Sports,  Recreational Equipment",3,1,1,1,2,2,3,3,2,2,1,2,1,3,3,2,3,2,1,3,30,15,null,"HR","Sports,  Recreational Equipment",null,"GC",3,"Fruit and Vegetables, Frozen, Fresh, Dried, Tinned","CM"]
["GB","Sports Capital Purchases",3,3,2,2,2,2,3,3,2,1,1,1,1,3,3,2,3,3,1,0,31,19,null,"HZ","Sports Capital Purchases",null,"GD",1,"Fuels & Lubricants","VG"]
["GC","Sports Equipment - Maintenance & Repair",3,1,1,0,0,0,1,3,2,1,1,1,3,3,3,2,3,2,1,3,24,8,null,"JA","Sports Equipment - Maintenance & Repair",null,"GE",1,"Furniture - Classroom and Lecture Theatre","FL"]
["GD","Sports Equipment - Hire & Lease",2,1,1,0,0,1,1,2,2,2,1,2,1,1,1,1,2,2,1,0,17,8,null,"JB","Sports Equipment - Hire & Lease",null,"GF",1,"Furniture - Office","FC"]
["GE","Sports Equipment - Consumables",2,1,1,0,"N/A",0,1,2,1,3,3,3,1,3,3,2,2,2,1,0,21,6,null,"JC","Sports Equipment - Consumables",null,"GG",1,"Furniture - Office Removal  and Storage","YE"]
["GF","Sports Clothing",3,2,3,2,2,0,1,3,3,1,1,1,1,3,3,2,3,1,3,0,28,16,null,"JD","Sports Clothing",null,"GH",1,"Furniture - Repairs","FK"]
["GG","Sports Services (incl: coaching)",1,1,0,0,0,0,0,0,1,2,1,2,1,1,1,1,2,1,2,0,11,2,null,"JE","Sports Services (incl: coaching)",null,"GZ",null,"Furniture - Residential","FF"]
["GH","Sports Science Equipment Hire maintenance and Service",3,1,1,0,0,1,1,3,2,1,1,1,1,1,1,1,3,2,1,3,20,9,null,"JF","Sports Science Equipment Hire maintenance and Service",{"$nulls":3},"Furniture and Furnishing Purchase - Specialist","FU"]
["GZ","Other Sports Science and Recreation",{"v":2.625,"d":"3"},{"v":1.5,"d":"2"},1,1,1,1,1,{"v":2.625,"d":"3"},2,1,1,1,1,2,2,2,2,2,1,0,{"v":21.125,"d":"21"},{"v":11.125,"d":"11"},null,"JG","Other Sports Science and Recreation",null,"HB",1,"Furniture, Furnishings & Textiles","F"]
["H","Janitorial & Domestic Supplies & Services",{"$nulls":21},0,null,"JH",null,null,"HD",1,"Garage Equipment","VJ"]
["HB","Cleaning Machines and Maintenance ",3,2,1,1,1,2,3,3,3,3,3,3,1,3,2,3,3,3,1,0,32,16,null,"JJ","Cleaning Machines and Maintenance ",null,"HG",1,"General Consultancy including IT excl Estates","RE"]
["HD","Personal Hygiene, Washroom Services and Vending Supplies and Services",3,1,2,1,2,0,1,3,3,3,3,2,1,3,3,1,1,1,1,0,25,13,null,"JZ","Personal Hygiene, Washroom Services and Vending Supplies and Services",null,"HH",1,"General Stationery","SJ"]
["HG","Laundry and Dry Cleaning  Services and Equipment",3,2,2,2,2,0,3,3,3,2,1,2,1,3,3,2,3,3,1,0,30,17,null,"KE","Laundry and Dry Cleaning  Services and Equipment",null,"HR",1,"General Storage, Racking,  Shelving (incl.  Library)","FN"]
["HH","Washroom and Cleaning Consumables",3,2,3,1,1,1,1,3,3,2,0,2,1,3,3,1,3,3,1,0,26,15,null,"KG","Washroom and Cleaning Consumables",null,"HZ",null,"Groceries","CE"]
["HR","Janitoral Clothing (Uniforms, Corporate, Security, Academic Gowns), Tailoring Supplies and Services",3,2,3,3,1,1,3,3,3,1,0,1,1,3,3,2,2,1,2,0,29,19,null,"KH","Janitoral Clothing (Uniforms, Corporate, Security, Academic Gowns), Tailoring Supplies and Services",{"$nulls":3},"Ground maintenance, Supplies & Services (incl Landscaping)","WK"]
["HZ","Other and General Cleaning  and Janitorial",3,{"v":1.6,"d":"2"},2,2,1,1,2,{"v":2.6,"d":"3"},3,2,2,2,1,2,2,2,2,2,1,0,{"v":27.2,"d":"27"},{"v":15.2,"d":"15"},null,"KI","Other and General Cleaning  and Janitorial",null,"JA",1,"Grounds Maintenance Equipment","WJ"]
["J","Utilities",{"$nulls":21},0,null,"KJ",null,null,"JB",1,"Hand & Power Tools and Accessories","MF"]
["JA","Electricity Supply and Services",3,3,2,1,1,3,0,0,3,1,1,1,1,2,2,2,3,3,1,0,24,13,null,"KM","Electricity Supply and Services",null,"JC",1,"Handling and Storage Equipment, Purchase, Maintenance, Repair and Hire","ME"]
["JB","Mains Gas Supply and Services",3,3,3,1,1,1,0,1,3,1,1,1,1,2,2,2,3,3,1,0,24,13,null,"KN","Mains Gas Supply and Services",null,"JD",1,"Health & Safety & Security","U"]
["JC","Oil Supply and Services",3,3,3,1,3,1,0,1,3,1,1,1,1,2,2,2,3,3,1,0,26,15,null,"KO","Oil Supply and Services",null,"JE",1,"Hire & Rental of Art Exhibits and Museum Collections","NB"]
["JD","Solid Fuel, Supplies and Services",3,3,3,2,3,1,0,1,3,1,1,1,1,2,2,2,3,3,1,0,27,16,null,"KS","Solid Fuel, Supplies and Services",null,"JF",1,"Horticultural Consumables  (Pots, Seed Trays  etc)","EM"]
["JE","Water and Sewerage Services",3,1,2,0,1,2,0,1,3,1,1,1,1,2,2,2,3,3,1,0,21,10,null,"KT","Water and Sewerage Services",null,"JG",1,"Hospitality/Entertainment/Courtesy Expenses (Non Employees)","XE"]
["JF","Steam Trading",3,0,0,0,0,"N/A",0,1,3,1,1,1,1,2,2,2,3,3,1,0,15,4,null,"KU","Steam Trading",null,"JH",2,"Housing - Kennels, Catteries, Stabling, bedding and tackle Supplies and Services","EP"]
["JG","Carbon Emissions Trading",3,0,0,0,0,0,0,0,3,1,1,1,1,1,1,1,1,1,1,0,10,3,null,"KV","Carbon Emissions Trading",null,"JJ",1,"Insurance Services","RF"]
["JH","CHP Plant Maintenance",3,1,2,1,1,1,0,2,3,1,1,1,2,2,2,2,1,1,1,0,21,11,null,"KW","CHP Plant Maintenance",null,"JZ",null,"Interdepartmental trading","XR"]
["JJ","Renewable Energy (Fit,Rhi) Equipment",3,2,2,3,1,3,0,0,3,1,"N/A",1,1,3,3,2,1,1,1,0,23,14,null,"KZ","Renewable Energy (Fit,Rhi) Equipment",{"$nulls":3},"Inter-Library Loans","BC"]
["JZ","Other/General Utilities",3,{"v":1.777777778,"d":"2"},2,1,1,2,0,0,3,1,1,1,1,2,2,2,2,2,1,0,{"v":20.777777778,"d":"21"},{"v":10.777777778,"d":"11"},null,"LA","Other/General Utilities",null,"KE",2,"IT Hardware support & maintenance","KT"]
["K","Computer Supplies & Services",{"$nulls":21},0,null,"LB",null,null,"KG",2,"IT Hire & Rental","KU"]
["KE","IT Software inc Bespoke Licences Maintenance",2,2,1,2,1,2,0,0,2,3,3,3,2,1,1,1,3,1,3,2,26,10,null,"LC","IT Software inc Bespoke Licences Maintenance",null,"KH",0,"IT Managed Services","KS"]
["KG","Server, Storage and Networking Equipment Purchase",3,3,2,3,2,2,3,3,3,3,3,3,2,3,3,3,3,3,1,3,42,21,null,"LE","Server, Storage and Networking Equipment Purchase",null,"KI",2,"IT Software inc Bespoke Licences Maintenance","KE"]
["KH","Desktop, Laptop, Tablet, Computer Purchase inc Apple",{"$f":"MAX(D132:K132)","v":3},3,3,3,2,3,3,3,3,{"$f":"MAX(M132:N132)","v":3},3,3,0,{"$f":"MAX(Q132:R132)","v":3},3,3,3,3,1,3,{"$f":"SUM(D132:K132,M132:O132,Q132:R132,T132:V132)","v":42},{"$f":"SUM(D132:K132)","v":23},null,"LF","Desktop, Laptop, Tablet, Computer Purchase inc Apple",null,"KJ",2,"Janitoral Clothing (Uniforms, Corporate, Security, Academic Gowns), Tailoring Supplies and Services","HR"]
["KI","EPOS and PDQ Machines",3,2,3,3,2,2,2,3,3,3,3,3,2,3,3,3,3,3,2,3,42,20,null,"LG","EPOS and PDQ Machines",null,"KM",2,"Janitorial & Domestic Supplies & Services","H"]
["KJ","Server and Networking Equipment Installation and Maintenance",3,1,1,1,1,3,0,1,3,3,1,3,2,3,3,2,{"$f":"MAX(T134:V134)","v":3},2,1,3,28,11,null,"LH","Server and Networking Equipment Installation and Maintenance",null,"KN",2,"Journals Electronic","BQ"]
["KM","Computer Consumables, Peripherals, Upgrades and Add-ons",3,2,2,3,2,3,2,3,3,3,3,1,2,1,1,1,3,3,1,0,32,20,null,"LI","Computer Consumables, Peripherals, Upgrades and Add-ons",null,"KO",2,"Journals Hardcopy","BD"]
["KN","Software-as-a-service inc Cloud Hosting",3,3,1,2,1,2,0,2,3,1,1,1,2,1,1,1,3,2,3,2,27,14,null,"LJ","Software-as-a-service inc Cloud Hosting",null,"KS",2,"Lab Support Equipment,  Accommodation and Accessories","LA"]
["KO","Website Design and Services",2,1,1,1,0,1,0,2,1,2,1,2,2,1,1,1,2,1,2,2,19,7,null,"LK","Website Design and Services",null,"KT",2,"Laboratory Animals","LB"]
["KS","IT Managed Services",1,1,1,1,0,1,0,1,1,2,0,2,2,1,1,1,3,1,2,3,18,6,null,"LL","IT Managed Services",null,"KU",2,"Laboratory Blood Products Human Organs, Tissue, Body Parts and Cadavers","LE"]
["KT","IT Hardware support & maintenance",3,1,1,1,1,1,0,3,2,1,0,1,2,1,1,1,3,2,1,3,21,10,null,"LM","IT Hardware support & maintenance",null,"KV",2,"Laboratory Bonded Alcohol","LF"]
["KU","IT Hire & Rental",3,1,1,1,1,1,1,3,2,3,0,3,2,1,1,1,3,2,1,3,24,11,null,"LN","IT Hire & Rental",null,"KW",2,"Laboratory Chemicals ","LH"]
["KV","Scanning Equipment",3,2,2,3,2,2,3,3,3,2,0,2,2,2,2,2,3,3,1,3,35,20,null,"LP","Scanning Equipment",null,"KZ",null,"Laboratory Clothing","LJ"]
["KW","Bespoke IT Solutions",3,3,1,"N/A","N/A",3,3,1,2,1,0,1,2,1,1,1,3,2,3,3,26,13,null,"LQ","Bespoke IT Solutions",{"$nulls":3},"Laboratory Consumables and Sundries, incl. Disposables","LK"]
["KZ","Other and General Computer",2,{"v":1.923076923,"d":"2"},2,2,1,2,1,{"v":1.461538462,"d":"1"},2,2,2,2,2,2,2,2,2,2,1,0,{"v":26.384615385,"d":"26"},{"v":13.384615385,"d":"13"},null,"LR","Other and General Computer",null,"LA",1,"Laboratory Controlled Chemicals & Drugs","LT"]
["L","Laboratory/Animal House Supplies & Services",{"$nulls":21},0,null,"LS",null,null,"LB",1,"Laboratory Diagnostic Testing and Analysis Services","LL"]
["LA","Lab Support Equipment,  Accommodation and Accessories",3,2,2,2,2,1,2,3,2,2,1,2,1,1,1,1,3,1,1,3,27,16,null,"LT","Lab Support Equipment,  Accommodation and Accessories",null,"LC",1,"Laboratory Equipment Maintenance and  Repair","LM"]
["LB","Laboratory Animals",3,3,3,3,0,2,0,0,3,2,1,2,1,3,3,3,1,1,1,0,26,14,null,"LX","Laboratory Animals",null,"LE",1,"Laboratory Furniture - Fixed and Free-standing","FB"]
["LC","Laboratory Small Apparatus and Equipment Purchase and Hire",3,2,2,2,2,1,3,3,3,1,1,1,1,3,3,3,3,3,1,0,31,18,null,"LZ","Laboratory Small Apparatus and Equipment Purchase and Hire",null,"LF",1,"Laboratory Gases Purchase and Associated Rentals","LN"]
["LE","Laboratory Blood Products Human Organs, Tissue, Body Parts and Cadavers",3,3,3,3,0,1,2,0,3,1,1,1,1,1,1,1,1,1,1,0,22,15,null,"MB","Laboratory Blood Products Human Organs, Tissue, Body Parts and Cadavers",null,"LG",3,"Laboratory Glassware","LP"]
["LF","Laboratory Bonded Alcohol",3,3,2,"N/A",2,2,2,0,3,3,1,3,1,3,2,3,3,3,1,0,28,14,null,"ME","Laboratory Bonded Alcohol",null,"LH",1,"Laboratory Plasticware","LS"]
["LG","Laboratory, Capital Equipment ",3,3,2,3,2,2,3,3,3,3,1,3,3,3,2,3,3,3,1,3,40,21,null,"MF","Laboratory, Capital Equipment ",null,"LI",1,"Laboratory Small Apparatus and Equipment Purchase and Hire","LC"]
["LH","Laboratory Chemicals ",3,3,3,2,2,3,3,3,3,1,1,1,1,3,2,3,3,3,1,0,34,22,null,"MG","Laboratory Chemicals ",null,"LJ",1,"Laboratory, Capital Equipment ","LG"]
["LI","Research Services",3,2,2,0,0,0,3,2,2,3,3,3,1,2,2,1,2,1,1,2,25,11,null,"MH","Research Services",null,"LK",1,"Laboratory/Animal House Supplies & Services","L"]
["LJ","Laboratory Clothing",3,2,3,3,1,1,1,3,3,2,1,2,1,3,3,2,2,1,2,0,29,17,null,"MJ","Laboratory Clothing",null,"LL",1,"Laundry and Dry Cleaning  Services and Equipment","HG"]
["LK","Laboratory Consumables and Sundries, incl. Disposables",3,3,2,3,2,2,2,3,3,1,1,1,1,3,3,3,3,3,1,0,33,20,null,"MK","Laboratory Consumables and Sundries, incl. Disposables",null,"LM",1,"Legal & Tax Services","RG"]
["LL","Laboratory Diagnostic Testing and Analysis Services",3,1,1,0,0,1,1,3,1,3,3,1,1,2,1,2,2,1,1,2,20,8,null,"ML","Laboratory Diagnostic Testing and Analysis Services",null,"LN",1,"Library & Publications","B"]
["LM","Laboratory Equipment Maintenance and  Repair",3,2,1,1,0,1,1,3,2,1,1,1,1,3,3,2,3,2,1,3,25,11,null,"MM","Laboratory Equipment Maintenance and  Repair",null,"LP",1,"Library Equipment and Services (e.g. book tagging) including maintenance, repair and hire","BN"]
["LN","Laboratory Gases Purchase and Associated Rentals",3,3,3,1,1,2,1,3,3,1,1,1,1,3,2,3,3,3,1,0,29,17,null,"MN","Laboratory Gases Purchase and Associated Rentals",null,"LQ",1,"Library Licences and Royalties","BS"]
["LP","Laboratory Glassware",3,2,3,3,0,2,1,3,3,2,1,2,1,3,3,3,3,3,1,0,31,17,null,"MP","Laboratory Glassware",null,"LR",1,"Library Materials Restoration","BT"]
["LQ","Pharmaceuticals - Non-veterinary",3,3,3,2,2,2,1,2,3,2,1,2,1,3,3,3,3,3,1,0,32,18,null,"MQ","Pharmaceuticals - Non-veterinary",null,"LS",1,"Library Subscriptions","BE"]
["LR","Pharmaceuticals, Veterinary",3,3,3,2,2,2,1,2,3,2,1,2,1,3,3,3,3,3,1,0,32,18,null,"MS","Pharmaceuticals, Veterinary",null,"LT",1,"Liquor Licences","CV"]
["LS","Laboratory Plasticware",3,2,2,3,2,0,1,3,3,2,0,2,1,3,3,2,2,2,1,0,27,16,null,"MT","Laboratory Plasticware",null,"LX",1,"Livestock and Animal Purchases, Services and Supplies","EA"]
["LT","Laboratory Controlled Chemicals & Drugs",3,3,3,2,2,1,3,2,3,2,0,2,1,3,3,3,3,3,1,0,32,19,null,"MZ","Laboratory Controlled Chemicals & Drugs",null,"LZ",null,"Livestock, Animal and Farm Feeds","EB"]
["LX","Tissue Culture, Bacteriological Media and Insects",3,3,3,"N/A",0,0,2,2,3,1,0,1,1,3,3,3,1,1,1,0,23,13,null,"NA","Tissue Culture, Bacteriological Media and Insects",{"$nulls":3},"Mail Room Equipment Purchase Lease & Maintenance","YB"]
["LZ","Other and General Laboratory",3,{"v":2.578947368,"d":"3"},2,2,1,1,2,{"v":1.421052632,"d":"1"},3,2,1,2,1,3,3,3,2,2,1,0,28,15,null,"NB","Other and General Laboratory",null,"MB",1,"Mail Services including Fulfilment","YA"]
["M","Workshop & Maintenance Supplies inc Engineering",{"$nulls":21},0,null,"NC",null,null,"ME",2,"Mains Gas Supply and Services","JB"]
["MB","Electrical Sundries and Components",3,2,2,3,2,3,3,2,3,2,1,2,1,3,3,3,3,3,1,0,34,20,null,"ND","Electrical Sundries and Components",null,"MF",1,"Manuals; Computer,  Workshop, Training","BL"]
["ME","Handling and Storage Equipment, Purchase, Maintenance, Repair and Hire",2,2,1,1,0,2,1,2,2,1,1,1,2,3,3,3,2,2,1,0,24,11,null,"NE","Handling and Storage Equipment, Purchase, Maintenance, Repair and Hire",null,"MG",1,"Manuscripts Electronic","BI"]
["MF","Hand & Power Tools and Accessories",3,2,2,2,1,1,3,3,3,3,3,1,1,3,3,3,3,3,1,0,32,17,null,"NF","Hand & Power Tools and Accessories",null,"MH",1,"Manuscripts Hardcopy","BF"]
["MG","Workshop Equipment and Tool Maintenance",3,1,1,1,1,2,3,3,2,1,1,1,1,3,3,3,3,2,1,3,29,14,null,"NG","Workshop Equipment and Tool Maintenance",null,"MJ",1,"Maps Electronic or Hardcopy","BV"]
["MH","Mechanical Components and Spare Parts",3,1,2,1,0,1,3,2,3,3,1,3,1,3,3,3,3,3,1,0,28,13,null,"NH","Mechanical Components and Spare Parts",null,"MK",1,"Market Research Services","RS"]
["MJ","Workshop Metals",3,3,3,3,1,2,1,2,3,3,1,3,1,3,3,3,3,3,1,0,33,18,null,"NZ","Workshop Metals",null,"ML",1,"Marketing & Recruitment Services (not Advertising)","RQ"]
["MK","Raw Materials inc Lubricants and Road Salt",3,2,2,1,2,0,1,1,3,2,1,2,1,3,3,3,3,3,1,0,26,12,null,"PA","Raw Materials inc Lubricants and Road Salt",null,"MM",1,"Meat, Poultry, Offal","CH"]
["ML","Workshop Plastics, Glass and Ceramics",3,2,3,3,2,2,1,2,3,2,1,2,1,3,3,2,3,3,1,0,31,18,null,"PC","Workshop Plastics, Glass and Ceramics",null,"MN",1,"Mechanical Components and Spare Parts","MH"]
["MM","Workshop Wood",3,1,3,2,0,3,1,2,3,3,1,3,1,3,3,2,3,3,1,0,29,15,null,"PD","Workshop Wood",null,"MP",1,"Medical, Surgical, Nursing Diagnostic Services and Clinical Trials","DH"]
["MN","Electronic Components and Test Equipment, Purchase, Maintenance, Repair and Hire",3,2,2,1,2,2,3,3,2,1,0,1,1,3,3,3,3,3,1,0,29,17,null,"PJ","Electronic Components and Test Equipment, Purchase, Maintenance, Repair and Hire",null,"MQ",1,"Medical, Surgical, Nursing Equipment Maintenance and Repair","DF"]
["MP","Workshop Plumbing Sundries",2,1,1,1,1,0,2,2,2,1,0,1,1,2,2,2,3,3,1,0,20,10,null,"PK","Workshop Plumbing Sundries",null,"MS",1,"Medical, Surgical, Nursing Supplies & Services  Other and General","DZ"]
["MQ","Workshop Ironmongery, Door Furniture,  Locksmiths Supplies  and Services",2,2,2,2,0,1,1,2,2,1,0,1,1,2,2,2,3,3,1,0,22,12,null,"PZ","Workshop Ironmongery, Door Furniture,  Locksmiths Supplies  and Services",null,"MT",1,"Medical, Surgical, Nursing Supplies & Services Capital Equipment >£10k","DA"]
["MS","Workshop Consumables, Rags, Cleansers etc",2,2,1,0,1,0,2,2,2,1,0,1,1,2,2,2,2,2,1,0,19,10,null,"QG","Workshop Consumables, Rags, Cleansers etc",null,"MZ",null,"Medical, Surgical, Nursing Supplies & Services Consumables and Disposables","DC"]
["MT","Workshop Teaching Aids and Materials",2,1,0,0,0,0,1,2,1,1,0,1,1,1,1,1,1,1,1,0,11,5,null,"QH","Workshop Teaching Aids and Materials",{"$nulls":3},"Medical, Surgical, Nursing Supplies & Services Small Apparatus, Equipment  and Instruments","DB"]
["MZ","OtherandGeneral Workshop  and Maintenance  Supplies",{"v":2.071428571,"d":"2"},{"v":1.714285714,"d":"2"},2,2,1,1,2,{"v":2.071428571,"d":"2"},2,1,1,1,1,2,2,2,2,2,1,0,{"v":23.785714284999997,"d":"24"},{"v":13.785714285,"d":"14"},null,"QJ","OtherandGeneral Workshop  and Maintenance  Supplies",null,"NA",1,"Medical, Surgical, Nursing Supplies & Services, Specialist Clothing","DE"]
["N","Museums and Art",{"$nulls":21},0,null,"QM",null,null,"NB",1,"Medical, Surgical, Nursing Teaching materials and aids","DJ"]
["NA","Art Exhibits and Museum Collections",3,2,2,1,1,3,1,0,2,1,1,1,1,2,2,2,1,1,1,0,21,12,null,"QN","Art Exhibits and Museum Collections",null,"NC",1,"Medical, Surgical, Nursing, Dentistry Supplies & Services","D"]
["NB","Hire & Rental of Art Exhibits and Museum Collections",3,1,1,0,0,3,1,0,2,1,1,1,1,2,2,2,2,1,2,0,18,8,null,"QR","Hire & Rental of Art Exhibits and Museum Collections",null,"ND",1,"Medicinal Drugs - Non Veterinary","DL"]
["NC","Conservation & Restoration Materials",2,2,2,1,1,1,1,0,2,1,1,1,1,2,2,2,1,1,1,0,19,10,null,"QS","Conservation & Restoration Materials",null,"NE",1,"Medicinal Products - Drugs Veterinary","ET"]
["ND","Conservation & Restoration Services",1,1,1,0,0,0,1,0,1,2,1,2,1,1,1,1,1,1,1,0,12,4,null,"QT","Conservation & Restoration Services",null,"NF",1,"Mileage (Private Vehicles)","TE"]
["NE","Commercial and Graphic  Art Equipment Purchase  and Maintenance  and Consumables",3,2,2,1,1,1,3,3,2,1,1,1,1,3,3,2,1,1,1,0,25,15,null,"QZ","Commercial and Graphic  Art Equipment Purchase  and Maintenance  and Consumables",null,"NG",1,"Motoring Association Charges (excl Road Tax)","VB"]
["NF","Arts Equipment Purchase and Maintenance and Consumables",2,2,2,0,1,1,1,1,2,1,1,1,1,3,3,2,1,1,1,0,20,10,null,"RA","Arts Equipment Purchase and Maintenance and Consumables",null,"NH",1,"Museum Specalist Furniture","NH"]
["NG","Consumables",3,2,2,1,1,1,1,1,3,2,2,1,1,3,3,2,1,1,1,0,23,12,null,"RB","Consumables",null,"NZ",null,"Museums and Art","N"]
["NH","Museum Specalist Furniture",3,2,2,2,1,2,3,3,2,1,"N/A",1,1,1,1,1,1,1,1,0,23,17,null,"RC","Museum Specalist Furniture",{"$nulls":3},"Musical Instruments, Purchase, Maintenance and Hire","AD"]
["NZ","Other and General Musems and Art",2,2,2,1,1,2,2,1,2,1,1,1,1,2,2,2,1,1,1,0,22,13,null,"RD","Other and General Musems and Art",null,"PA",1,"Newspapers and Periodicals Electronic","BR"]
["P","Printing",{"$nulls":21},0,null,"RE",null,null,"PC",1,"Newspapers and Periodicals Hardcopy","BG"]
["PA","Printing Binding and Finishing Services",3,1,3,3,1,2,1,2,3,3,1,3,1,3,3,2,2,2,1,0,29,16,null,"RF","Printing Binding and Finishing Services",null,"PD",1,"Non Infuenceable Spend","X"]
["PC","Printing Consumables, Toners and Inks",3,2,3,3,2,2,2,3,3,3,3,1,1,2,2,2,2,2,1,0,32,20,null,"RG","Printing Consumables, Toners and Inks",null,"PJ",1,"Occupational Health Supplies & Services (incl. Physio)","UH"]
["PD","Printing - External Design and Artwork",2,1,1,0,0,0,1,2,1,3,3,1,1,1,1,1,2,1,1,2,17,6,null,"RH","Printing - External Design and Artwork",null,"PK",1,"Oceanographic Supplies and Services","EN"]
["PJ","Printing Equipment Purchase & Maintenance",3,2,2,2,2,3,3,3,3,1,0,1,1,3,3,3,3,2,1,3,34,20,null,"RI","Printing Equipment Purchase & Maintenance",null,"PZ",null,"Office Equipment Purchase, Lease, Hire and Maintenance (Small Scale i.e Shredders)","SC"]
["PK","Printing Equipment Lease Hire inc Charges",{"$f":"MAX(D196:K196)","v":3},2,1,1,0,3,3,3,3,{"$f":"MAX(M196:N196)","v":1},0,1,1,{"$f":"MAX(Q196:R196)","v":3},3,3,3,1,1,3,{"$f":"SUM(D196:K196,M196:O196,Q196:R196,T196:V196)","v":29},{"$f":"SUM(D196:K196)","v":16},null,"RJ","Printing Equipment Lease Hire inc Charges",{"$nulls":3},"Oil Supply and Services","JC"]
["PZ","OtherandGeneral Printing",3,{"v":1.6,"d":"2"},2,2,1,2,2,{"v":2.4,"d":"2"},3,2,2,1,1,2,2,2,2,2,1,0,27,16,null,"RK","OtherandGeneral Printing",null,"QG",1,"Other and General","EZ"]
["Q","Telecommunications",{"$nulls":21},0,null,"RL",null,null,"QH",1,"Other and General Audio-Visual  Aids","AZ"]
["QG","Telephony & Switchboard Capital Purchase >£10,000",3,2,2,3,1,3,3,3,3,2,1,2,1,3,3,3,{"$f":"MAX(T199:V199)","v":3},3,1,3,37,20,null,"RM","Telephony & Switchboard Capital Purchase >£10,000",null,"QJ",2,"Other and General Catering","CZ"]
["QH","Telephony & Switchboard Maintenance",3,1,1,3,0,1,2,2,3,3,3,2,1,3,3,3,3,1,1,3,30,13,null,"RN","Telephony & Switchboard Maintenance",null,"QM",null,"Other and General Cleaning  and Janitorial","HZ"]
["QJ","Telecoms Transmission Equipment Purchase & Maintenance",3,2,2,2,1,3,3,3,3,2,1,2,2,3,3,3,3,3,1,3,37,19,null,"RP","Telecoms Transmission Equipment Purchase & Maintenance",null,"QN",1,"Other and General Computer","KZ"]
["QM","Phone Cards, Swipe Cards, Equipment & Supplies",2,1,1,1,1,2,1,1,2,2,1,2,0,3,3,3,2,1,2,1,23,10,null,"RQ","Phone Cards, Swipe Cards, Equipment & Supplies",null,"QR",1,"Other and General Furniture,  Furnishings and  Textiles","FZ"]
["QN","Communications Equipment & Accessories (Hubs, Modems, Routers)",3,2,2,3,1,3,3,3,3,2,1,2,1,3,3,3,3,3,1,3,37,20,null,"RR","Communications Equipment & Accessories (Hubs, Modems, Routers)",null,"QS",1,"Other and General Laboratory","LZ"]
["QR","Telephony, Land & Mobile, Line Rental, Call Charges, Equipment",3,1,0,3,0,3,3,2,3,2,1,2,1,1,1,1,2,2,1,1,25,15,null,"RS","Telephony, Land & Mobile, Line Rental, Call Charges, Equipment",null,"QT",1,"Other and General Library","BZ"]
["QS","Telephony - Mobile Line rental, call charges, equipment",3,1,0,0,0,1,3,1,3,2,1,2,1,1,1,1,2,2,1,1,19,9,null,"RT","Telephony - Mobile Line rental, call charges, equipment",null,"QZ",null,"Other and General Musems and Art","NZ"]
["QT","Data Telecommunications, internet services - e.g. Eduroam or VOIP",3,1,1,1,0,1,3,0,3,1,0,1,1,1,1,1,3,2,1,3,20,10,null,"RU","Data Telecommunications, internet services - e.g. Eduroam or VOIP",{"$nulls":3},"Other and General Stationery  and Office Supplies","SZ"]
["QZ","Other Postal & Telecommunications",3,1,1,2,1,2,3,{"v":1.875,"d":"2"},3,2,1,2,1,2,2,2,2,2,1,0,{"v":25.875,"d":"26"},{"v":14.875,"d":"15"},null,"RV","Other Postal & Telecommunications",null,"RA",1,"Other Educational Establishments","XJ"]
["R","Professional & Bought-in Services including Consultancy",{"$nulls":21},0,null,"RW",null,null,"RB",1,"Other Postal & Telecommunications","QZ"]
["RA","Advertising Services  (Course, Recruitment & Other)",2,2,1,1,0,0,1,0,1,3,3,1,1,1,1,1,3,1,3,0,17,6,null,"RX","Advertising Services  (Course, Recruitment & Other)",null,"RC",1,"Other Public Bodies","XK"]
["RB","Conferences & Meetings (Event Management)",1,1,0,0,0,0,1,0,1,1,1,1,1,3,3,2,3,1,3,0,15,3,null,"RY","Conferences & Meetings (Event Management)",null,"RD",1,"Other Sports Science and Recreation","GZ"]
["RC","Data Information Services",1,1,1,1,1,0,1,1,1,3,3,1,1,1,1,1,3,1,3,2,20,7,null,"RZ","Data Information Services",null,"RE",1,"Other/General Estates & Buildings","WZ"]
["RD","Accountancy Services, inc. Audit Consultancy,",1,1,0,0,0,0,1,1,1,3,3,1,1,1,1,1,3,1,3,0,15,4,null,"SA","Accountancy Services, inc. Audit Consultancy,",null,"RF",1,"Other/General Facilities Operations","YZ"]
["RE","General Consultancy including IT excl Estates",2,1,0,0,0,0,1,2,1,1,1,1,1,1,1,1,3,1,3,2,16,5,null,"SB","General Consultancy including IT excl Estates",null,"RG",1,"Other/General Miscellaneous","XZ"]
["RF","Insurance Services",1,1,0,0,0,0,1,0,1,3,3,1,1,1,1,1,3,1,3,0,14,3,null,"SC","Insurance Services",null,"RH",1,"Other/General Professional & Bought-in Services","RZ"]
["RG","Legal & Tax Services",1,1,0,0,0,0,1,0,1,3,3,2,1,1,1,1,3,1,3,0,15,3,null,"SD","Legal & Tax Services",null,"RI",1,"Other/General Safety & Security","UZ"]
["RH","Banking Services",2,1,0,0,0,0,1,0,2,3,3,2,1,1,1,1,3,1,3,0,16,4,null,"SF","Banking Services",null,"RJ",1,"Other/General Travel & Transport","TZ"]
["RI","Financial Investment Services",2,1,1,0,0,0,1,0,2,1,1,1,1,1,1,1,3,1,3,0,14,5,null,"SJ","Financial Investment Services",null,"RK",1,"Other/General Utilities","JZ"]
["RJ","Patents, IPR, Trademarks, Royalties, Copyright",1,0,0,0,0,0,1,0,1,3,3,3,1,1,1,1,3,1,3,0,15,2,null,"SZ","Patents, IPR, Trademarks, Royalties, Copyright",null,"RL",1,"Other/General Vehicle Purchase & Lease Hire","VZ"]
["RK","Temporary & Recruitment Employment Agencies (Staff)",1,1,0,0,0,0,1,0,1,3,3,1,1,3,3,1,3,1,3,0,16,3,null,"TA","Temporary & Recruitment Employment Agencies (Staff)",null,"RM",1,"OtherandGeneral Printing","PZ"]
["RL","Promotions & Publicity (incl Exhibitions and Fairs)",1,1,1,0,1,0,1,0,1,3,3,1,1,3,3,1,2,1,2,0,17,5,null,"TB","Promotions & Publicity (incl Exhibitions and Fairs)",null,"RN",1,"OtherandGeneral Workshop  and Maintenance  Supplies","MZ"]
["RM","Speakers & Presenters",2,2,1,0,0,0,1,1,1,1,1,1,1,1,1,1,3,1,3,0,15,6,null,"TC","Speakers & Presenters",null,"RP",1,"Outdoor Furniture","FT"]
["RN","Subscriptions (Learned Society, Professional etc)",1,1,0,0,0,0,1,0,1,3,3,1,1,1,1,1,2,1,2,0,13,3,null,"TD","Subscriptions (Learned Society, Professional etc)",null,"RQ",1,"Package Travel, Field Trips","TT"]
["RP","Training Courses",2,2,0,0,0,0,1,0,1,3,3,1,1,1,1,1,3,1,3,2,17,4,null,"TE","Training Courses",null,"RR",1,"Papers","SF"]
["RQ","Marketing & Recruitment Services (not Advertising)",1,1,0,1,0,0,1,0,1,3,3,1,1,1,1,1,3,1,3,0,15,4,null,"TF","Marketing & Recruitment Services (not Advertising)",null,"RS",1,"Pasturage, purchase, lease and maintenance","ES"]
["RR","Debt Collection Services",1,1,0,0,0,0,1,0,1,1,1,1,1,1,1,1,3,1,3,0,12,3,null,"TG","Debt Collection Services",null,"RT",1,"Patents, IPR, Trademarks, Royalties, Copyright","RJ"]
["RS","Market Research Services",1,1,0,0,0,0,1,0,1,1,1,1,1,1,1,1,3,1,3,0,12,3,null,"TH","Market Research Services",null,"RU",1,"Personal Hygiene, Washroom Services and Vending Supplies and Services","HD"]
["RT","Auction Services",1,1,0,0,0,0,1,0,1,3,3,1,1,1,1,1,3,1,3,0,14,3,null,"TJ","Auction Services",null,"RV",1,"Pest & Vermin Control Services","YQ"]
["RU","Translation, Interpreter, Transcription & Procedural Writing Services",1,1,0,0,0,0,1,0,1,1,1,1,1,1,1,1,2,1,2,2,13,3,null,"TK","Translation, Interpreter, Transcription & Procedural Writing Services",null,"RW",1,"Pharmaceuticals - Non-veterinary","LQ"]
["RV","Archival and Storage Services inc EDM",2,2,1,0,1,0,1,0,1,3,3,1,1,1,1,1,3,1,3,2,19,6,null,"TL","Archival and Storage Services inc EDM",null,"RX",1,"Pharmaceuticals, Veterinary","LR"]
["RW","Student Placement Programmes, costs and expenses",1,1,1,0,0,0,1,0,1,1,1,1,1,1,1,1,3,1,3,0,13,4,null,"TM","Student Placement Programmes, costs and expenses",null,"RY",1,"Phone Cards, Swipe Cards, Equipment & Supplies","QM"]
["RX","Branding and Media Services",1,1,1,1,1,1,1,0,1,1,1,1,1,1,1,1,3,1,3,2,18,7,null,"TN","Branding and Media Services",null,"RZ",null,"Photographic Equipment Supplies and Services","AE"]
["RY","Artistes and Conductors",2,2,0,0,0,0,1,0,1,1,"N/A",1,1,1,1,1,2,1,2,0,11,4,null,"TP","Artistes and Conductors",{"$nulls":3},"Plant Purchase, Hire & Maintenance, inc. Lifts, Air-conditioning, Boilers, Generators etc","WN"]
["RZ","Other/General Professional & Bought-in Services",{"v":1.083333333,"d":"1"},{"v":1.083333333,"d":"1"},0,0,0,0,1,0,1,1,1,1,1,1,1,1,1,1,1,0,{"v":10.083333332999999,"d":"10"},{"v":3.0833333329999997,"d":"3"},null,"TQ","Other/General Professional & Bought-in Services",null,"SA",2,"Printing","P"]
["S","Stationery & Office Supplies",{"$nulls":21},0,null,"TR",null,null,"SB",2,"Printing - External Design and Artwork","PD"]
["SA","Envelopes",3,1,3,3,1,2,1,2,3,1,1,1,2,2,2,2,2,2,1,0,27,16,null,"TT","Envelopes",null,"SC",2,"Printing Binding and Finishing Services","PA"]
["SB","Files, Filing Folders, Binders",3,1,3,3,1,2,1,2,3,3,3,1,2,2,2,2,2,2,1,0,29,16,null,"TU","Files, Filing Folders, Binders",null,"SD",2,"Printing Consumables, Toners and Inks","PC"]
["SC","Office Equipment Purchase, Lease, Hire and Maintenance (Small Scale i.e Shredders)",3,2,2,2,1,2,3,3,3,1,1,1,2,2,2,2,3,2,1,3,32,18,null,"TZ","Office Equipment Purchase, Lease, Hire and Maintenance (Small Scale i.e Shredders)",null,"SF",2,"Printing Equipment Lease Hire inc Charges","PK"]
["SD","Diaries, Calendars",3,1,3,3,1,2,1,2,3,1,1,1,2,2,2,2,2,2,1,0,27,16,null,"UB","Diaries, Calendars",null,"SJ",2,"Printing Equipment Purchase & Maintenance","PJ"]
["SF","Papers",3,1,3,3,1,2,1,2,3,1,1,1,2,2,2,2,2,2,1,0,27,16,null,"UC","Papers",null,"SZ",null,"Professional & Bought-in Services including Consultancy","R"]
["SJ","General Stationery",3,1,2,1,1,1,1,2,3,1,0,1,2,2,2,2,2,2,1,0,22,12,null,"UD","General Stationery",{"$nulls":3},"Promotions & Publicity (incl Exhibitions and Fairs)","RL"]
["SZ","Other and General Stationery  and Office Supplies",3,{"v":1.011904762,"d":"1"},3,2,1,2,1,{"v":1.857142857,"d":"2"},3,1,1,1,2,2,2,2,2,2,1,0,{"v":25.869047619,"d":"26"},{"v":14.869047619,"d":"15"},null,"UE","Other and General Stationery  and Office Supplies",null,"TA",2,"Purchase of Plants, Crops, Trees etc","EH"]
["T","Travel & Transport (incl. Vehicle hire & Subsistence)",{"$nulls":21},0,null,"UF",null,null,"TB",2,"Rail Travel","TF"]
["TA","Accommodation & Hotels (Direct)",3,2,1,3,0,2,1,0,3,3,3,1,2,3,3,1,2,1,2,0,25,12,null,"UH","Accommodation & Hotels (Direct)",null,"TC",2,"Rates","XL"]
["TB","Air Travel",3,3,3,3,1,3,1,2,3,3,3,1,2,3,2,3,3,1,3,0,34,19,null,"UJ","Air Travel",null,"TD",2,"Raw Materials inc Lubricants and Road Salt","MK"]
["TC","Ferry Travel",3,2,3,3,1,3,1,2,3,3,3,2,2,3,2,3,3,1,3,0,34,18,null,"UK","Ferry Travel",null,"TE",2,"Re-location and household removal expenses","TR"]
["TD","Taxi Hire",3,2,2,1,1,3,1,2,3,1,1,1,2,3,3,2,1,1,1,0,26,15,null,"UL","Taxi Hire",null,"TF",2,"Renewable Energy (Fit,Rhi) Equipment","JJ"]
["TE","Mileage (Private Vehicles)",3,2,2,1,1,3,1,2,3,3,3,1,2,0,0,0,1,1,1,0,23,15,null,"UM","Mileage (Private Vehicles)",null,"TG",2,"Research Services","LI"]
["TF","Rail Travel",3,1,1,2,1,3,1,2,3,1,1,1,2,3,2,3,3,1,3,0,27,14,null,"UN","Rail Travel",null,"TH",2,"Road Tax","VD"]
["TG","Subsistence",3,1,1,3,0,2,1,1,3,3,1,3,2,2,2,2,1,1,1,0,24,12,null,"UZ","Subsistence",null,"TJ",2,"Safety & Personal Protection Equipment","UD"]
["TH","Car Hire",3,2,2,1,1,3,1,2,3,3,1,3,2,1,1,1,2,2,1,0,26,15,null,"VA","Car Hire",null,"TK",2,"Scanning Equipment","KV"]
["TJ","Van Hire",3,2,2,1,1,3,1,2,3,3,3,3,2,1,1,1,2,2,1,0,28,15,null,"VB","Van Hire",null,"TL",2,"Security Equipment & Consumables","UE"]
["TK","Coach Hire",3,2,2,1,1,3,1,2,3,3,3,1,2,2,2,2,2,2,1,0,28,15,null,"VC","Coach Hire",null,"TM",2,"Security Furniture Inc Safes","FP"]
["TL","Boat Hire & Charter",3,3,3,1,1,3,1,2,3,3,3,1,2,2,2,1,2,2,1,0,29,17,null,"VD","Boat Hire & Charter",null,"TN",2,"Security Services","UF"]
["TM","Travel Agency Services",2,2,0,0,0,1,1,2,2,3,3,1,2,1,1,1,3,1,3,2,22,8,null,"VE","Travel Agency Services",null,"TP",2,"Server and Networking Equipment Installation and Maintenance","KJ"]
["TN","Aircraft & Helicopter Hire",3,3,3,1,1,3,1,1,3,3,3,1,2,3,1,3,2,2,1,0,29,16,null,"VG","Aircraft & Helicopter Hire",null,"TQ",2,"Server, Storage and Networking Equipment Purchase","KG"]
["TP","Student Travel Arrangements",3,3,1,0,0,1,1,1,3,3,3,1,2,1,1,1,3,1,3,2,24,10,null,"VJ","Student Travel Arrangements",null,"TR",2,"Sheet Music ","BW"]
["TQ","Conferences, meetings and room bookings",2,2,0,2,0,2,1,1,2,2,1,2,2,1,1,1,3,1,3,2,23,10,null,"VP","Conferences, meetings and room bookings",null,"TT",2,"Signs & Signposting","WX"]
["TR","Re-location and household removal expenses",3,2,1,0,0,1,1,1,3,3,3,1,2,2,2,2,1,1,1,0,21,9,null,"VZ","Re-location and household removal expenses",null,"TU",2,"Soft Drinks, Hot Drinks and Non-alcoholic Drinks","CJ"]
["TT","Package Travel, Field Trips",3,3,3,0,0,1,1,1,3,3,3,1,2,3,2,3,3,1,3,0,27,12,null,"WA","Package Travel, Field Trips",null,"TZ",null,"Software-as-a-service inc Cloud Hosting","KN"]
["TU","Travel & Subsistence (non Employees)",{"$f":"MAX(D260:K260)","v":3},3,2,1,0,1,1,1,3,{"$f":"MAX(M260:N260)","v":1},"N/A",1,2,{"$f":"MAX(Q260:R260)","v":2},2,2,1,1,1,0,{"$f":"SUM(D260:K260,M260:O260,Q260:R260,T260:V260)","v":21},{"$f":"SUM(D260:K260)","v":12},null,"WB","Travel & Subsistence (non Employees)",{"$nulls":3},"Solid Fuel, Supplies and Services","JD"]
["TZ","Other/General Travel & Transport",3,{"v":2.388888889,"d":"2"},2,1,1,2,1,0,3,3,3,1,2,2,2,2,1,1,1,0,{"v":24.388888889,"d":"24"},{"v":12.388888889,"d":"12"},null,"WD","Other/General Travel & Transport",null,"UB",1,"Speakers & Presenters","RM"]
["U","Health & Safety & Security",{"$nulls":21},0,null,"WH",null,null,"UC",1,"Special Needs/DDA Suppliers, Services Equipment purchase, maintenance, repair and hire","UN"]
["UB","Fire Protection/Fire Fighting Equipment & Services",3,2,2,2,3,3,3,3,3,1,1,1,1,3,3,3,{"$f":"MAX(T263:V263)","v":3},2,1,3,36,21,null,"WJ","Fire Protection/Fire Fighting Equipment & Services",null,"UD",1,"Sports Capital Purchases","GB"]
["UC","First Aid Supplies",2,1,1,0,1,0,2,2,2,1,1,1,1,3,3,2,1,1,1,0,19,9,null,"WK","First Aid Supplies",null,"UE",1,"Sports Clothing","GF"]
["UD","Safety & Personal Protection Equipment",3,2,2,1,2,1,2,3,3,2,1,2,1,3,3,3,2,2,1,0,29,16,null,"WL","Safety & Personal Protection Equipment",null,"UF",1,"Sports Equipment - Consumables","GE"]
["UE","Security Equipment & Consumables",3,2,1,0,1,1,3,3,3,3,3,2,1,2,2,2,1,1,1,0,26,14,null,"WN","Security Equipment & Consumables",null,"UH",1,"Sports Equipment - Hire & Lease","GD"]
["UF","Security Services",1,1,0,0,0,0,1,1,1,3,3,2,1,3,3,3,3,2,3,0,21,4,null,"WO","Security Services",null,"UJ",1,"Sports Equipment - Maintenance & Repair","GC"]
["UH","Occupational Health Supplies & Services (incl. Physio)",3,1,0,0,0,0,1,2,3,1,0,1,1,1,1,1,3,1,3,0,15,7,null,"WP","Occupational Health Supplies & Services (incl. Physio)",null,"UK",1,"Sports Science and Recreation","G"]
["UJ","Surveillance Equipment, Installation & Maintenance (CCTV, Intercom)",3,2,1,2,1,3,3,3,3,1,0,1,1,2,2,2,3,1,1,3,29,18,null,"WU","Surveillance Equipment, Installation & Maintenance (CCTV, Intercom)",null,"UL",1,"Sports Science Equipment Hire maintenance and Service","GH"]
["UK","Access Control, Keys, Security Passes",2,1,1,1,1,0,1,1,2,1,0,1,1,2,2,2,3,1,1,3,19,8,null,"WX","Access Control, Keys, Security Passes",null,"UM",1,"Sports Services (incl: coaching)","GG"]
["UL","Counselling Services",1,0,0,0,0,0,1,0,1,1,0,1,1,1,1,1,3,1,3,0,10,2,null,"WY","Counselling Services",null,"UN",1,"Sports,  Recreational Equipment","GA"]
["UM","Alarms (including Fire, Smoke, Gas, Intruder) purchase, maintenance, repair and hire",3,1,1,2,1,1,2,1,3,1,0,1,1,2,2,2,3,1,1,3,23,12,null,"WZ","Alarms (including Fire, Smoke, Gas, Intruder) purchase, maintenance, repair and hire",null,"UZ",null,"Stationery & Office Supplies","S"]
["UN","Special Needs/DDA Suppliers, Services Equipment purchase, maintenance, repair and hire",3,1,1,0,1,"N/A",3,1,3,1,0,1,1,2,2,2,3,1,3,3,23,10,null,"XA","Special Needs/DDA Suppliers, Services Equipment purchase, maintenance, repair and hire",{"$nulls":3},"Steam Trading","JF"]
["UZ","Other/General Safety & Security",2,{"v":1.363636364,"d":"1"},1,1,1,1,2,{"v":1.909090909,"d":"2"},2,2,2,2,0,2,2,2,1,1,1,0,{"v":21.272727273,"d":"21"},{"v":11.272727273,"d":"11"},null,"XB","Other/General Safety & Security",null,"VA",1,"Student Placement Programmes, costs and expenses","RW"]
["V","Vehicles & Fleet Management (Purchase, Lease, Contract Hire)",{"$nulls":21},0,null,"XC",null,null,"VB",1,"Student related charges excl Fees","XS"]
["VA","Vehicle Purchase",3,3,2,2,1,3,2,3,3,1,1,1,1,2,2,2,3,3,1,0,30,19,null,"XD","Vehicle Purchase",null,"VC",1,"Student Travel Arrangements","TP"]
["VB","Motoring Association Charges (excl Road Tax)",1,0,0,0,0,0,0,0,1,1,1,1,1,1,1,1,1,1,1,0,8,1,null,"XE","Motoring Association Charges (excl Road Tax)",null,"VD",1,"Studio Hire and Running  Costs","AF"]
["VC","Vehicle Lease / Hire / Rental Long Term",3,2,2,1,1,3,1,3,3,1,1,1,1,1,1,1,2,2,1,0,24,16,null,"XG","Vehicle Lease / Hire / Rental Long Term",null,"VE",1,"Subscriptions (Learned Society, Professional etc)","RN"]
["VD","Road Tax",1,0,0,0,0,0,0,0,1,3,3,1,1,1,1,1,1,1,1,0,10,1,null,"XH","Road Tax",null,"VG",1,"Subsistence","TG"]
["VE","Vehicle Repair, Maintenance & MOT",3,1,1,1,1,1,2,2,3,2,1,2,1,3,3,2,2,2,1,0,24,12,null,"XJ","Vehicle Repair, Maintenance & MOT",null,"VJ",1,"Surveillance Equipment, Installation & Maintenance (CCTV, Intercom)","UJ"]
["VG","Fuels & Lubricants",3,3,3,1,1,0,1,1,3,1,1,1,1,3,3,3,3,3,1,0,26,13,null,"XK","Fuels & Lubricants",null,"VP",1,"Table and Room Decorations","CN"]
["VJ","Garage Equipment",3,2,1,1,1,1,2,3,2,1,0,1,1,2,2,2,2,2,1,0,22,13,null,"XL","Garage Equipment",null,"VZ",null,"Tableware, Crockery, Cutlery, Table Coverings etc inc Disposables","CK"]
["VP","Vehicle Storage",2,1,2,1,0,2,1,0,2,1,0,1,1,1,1,1,1,1,1,0,15,9,null,"XM","Vehicle Storage",{"$nulls":3},"Taxi Hire","TD"]
["VZ","Other/General Vehicle Purchase & Lease Hire",2,{"v":1.375,"d":"1"},1,1,1,1,1,2,2,1,1,1,1,2,2,2,1,1,1,0,{"v":19.375,"d":"19"},{"v":10.375,"d":"10"},null,"XN","Other/General Vehicle Purchase & Lease Hire",null,"WA",3,"Telecommunications","Q"]
["W","Estates & Buildings",{"$nulls":21},0,null,"XR",null,null,"WB",3,"Telecoms Transmission Equipment Purchase & Maintenance","QJ"]
["WA","Building, Repair and Maintenance Materials",3,3,2,3,2,3,2,3,3,3,3,3,3,3,3,2,3,3,1,0,39,21,null,"XS","Building, Repair and Maintenance Materials",null,"WD",3,"Telephony - Mobile Line rental, call charges, equipment","QS"]
["WB","Capital Projects",3,3,3,3,2,3,3,3,3,3,3,2,3,3,3,3,3,3,1,0,41,23,null,"XZ","Capital Projects",null,"WH",3,"Telephony & Switchboard Capital Purchase >£10,000","QG"]
["WD","Conservation Projects",3,2,2,1,0,1,2,3,3,3,3,3,3,3,3,3,1,1,1,0,31,14,null,"YA","Conservation Projects",null,"WJ",3,"Telephony & Switchboard Maintenance","QH"]
["WH","Building Repairs & Maintenance Services (including Signage)",3,2,2,1,0,2,2,3,2,3,1,3,3,3,3,3,3,1,3,0,31,14,null,"YB","Building Repairs & Maintenance Services (including Signage)",null,"WK",3,"Telephony, Land & Mobile, Line Rental, Call Charges, Equipment","QR"]
["WJ","Grounds Maintenance Equipment",3,2,1,2,1,1,3,3,3,3,3,3,3,2,2,2,2,2,1,0,32,16,null,"YC","Grounds Maintenance Equipment",null,"WL",2,"Temporary & Mobile Buildings, Hire & Purchase","WP"]
["WK","Ground maintenance, Supplies & Services (incl Landscaping)",3,2,3,0,0,0,2,3,3,3,3,1,3,3,3,3,2,2,1,0,29,13,null,"YD","Ground maintenance, Supplies & Services (incl Landscaping)",null,"WN",2,"Temporary & Recruitment Employment Agencies (Staff)","RK"]
["WL","Testing & Calibration Services (Non Scientific)",3,1,0,0,0,0,1,3,1,3,3,1,2,2,2,2,1,1,1,0,18,6,null,"YE","Testing & Calibration Services (Non Scientific)",null,"WO",1,"Tent & Marquee Purchase, Hire & Maintenance","WY"]
["WN","Plant Purchase, Hire & Maintenance, inc. Lifts, Air-conditioning, Boilers, Generators etc",3,3,1,2,1,1,3,3,3,2,0,2,2,3,3,3,3,3,1,3,34,17,null,"YF","Plant Purchase, Hire & Maintenance, inc. Lifts, Air-conditioning, Boilers, Generators etc",null,"WP",2,"Testing & Calibration Services (Non Scientific)","WL"]
["WO","Construction Waste Disposal",3,1,3,0,3,0,3,3,3,1,0,1,1,3,3,3,1,1,1,0,26,16,null,"YG","Construction Waste Disposal",null,"WU",3,"Textiles, Fabrics, Soft and Loose Furnishings","FE"]
["WP","Temporary & Mobile Buildings, Hire & Purchase",3,2,1,2,1,1,1,3,3,1,0,1,2,3,3,3,1,1,1,0,25,14,null,"YH","Temporary & Mobile Buildings, Hire & Purchase",null,"WX",2,"Theatre Production Costs (scenery, lighting, props, costumes)","AG"]
["WU","Building related Professional Services, Architects, Estates Agents, QS, Construction Mgt,Surveying Equip & Services",2,1,0,0,0,0,1,1,2,1,0,1,3,1,1,1,2,1,2,2,16,5,null,"YJ","Building related Professional Services, Architects, Estates Agents, QS, Construction Mgt,Surveying Equip & Services",null,"WY",1,"Tickets and Tokens (including electronic tickets and book tokens)","BM"]
["WX","Signs & Signposting",2,1,1,1,1,1,2,2,2,1,0,1,2,1,1,1,1,1,1,0,18,11,null,"YK","Signs & Signposting",null,"WZ",2,"Tissue Culture, Bacteriological Media and Insects","LX"]
["WY","Tent & Marquee Purchase, Hire & Maintenance",3,1,2,3,2,1,1,2,3,1,0,1,1,3,3,2,1,1,1,0,24,15,null,"YL","Tent & Marquee Purchase, Hire & Maintenance",{"$nulls":3},"Tobacco","CY"]
["WZ","Other/General Estates & Buildings",3,{"v":1.846153846,"d":"2"},2,1,1,1,2,{"v":2.538461538,"d":"3"},3,2,2,2,2,2,2,2,2,2,1,0,{"v":27.384615384,"d":"27"},{"v":14.384615384,"d":"14"},null,"YM","Other/General Estates & Buildings",null,"XA",1,"Training Courses","RP"]
["X","Non Infuenceable Spend",{"$nulls":21},0,null,"YN",null,null,"XB",1,"Translation, Interpreter, Transcription & Procedural Writing Services","RU"]
["XA","Fees, Lecturing, Examining, Moderating etc",1,1,0,0,0,0,0,0,1,1,1,1,1,2,2,1,3,1,3,0,12,2,null,"YP","Fees, Lecturing, Examining, Moderating etc",null,"XC",1,"Travel & Subsistence (non Employees)","TU"]
["XB","Credit Card Charges",1,0,0,0,0,0,0,0,1,1,1,1,1,1,1,1,1,1,1,0,8,1,null,"YQ","Credit Card Charges",null,"XD",1,"Travel & Transport (incl. Vehicle hire & Subsistence)","T"]
["XC","Customs & Excise - VAT",1,0,0,0,0,0,0,0,1,1,1,1,1,1,1,1,1,1,1,0,8,1,null,"YR","Customs & Excise - VAT",null,"XE",1,"Travel Agency Services","TM"]
["XD","Fees - Students",2,2,0,0,0,0,0,0,1,3,3,1,1,1,1,1,3,1,3,0,14,3,null,"YZ","Fees - Students",null,"XG",1,"Utilities","J"]
["XE","Hospitality/Entertainment/Courtesy Expenses (Non Employees)",2,2,0,1,0,0,1,0,2,1,1,1,1,2,2,1,1,1,1,0,14,6,null,null,"Hospitality/Entertainment/Courtesy Expenses (Non Employees)",null,"XH",1,"Van Hire","TJ"]
["XG","Building/Premises/Land - Rent, Lease, Hire, Feu Duties",2,2,0,0,0,0,0,0,2,3,3,1,1,1,1,1,1,1,1,0,13,4,null,null,"Building/Premises/Land - Rent, Lease, Hire, Feu Duties",null,"XJ",1,"Vehicle Lease / Hire / Rental Long Term","VC"]
["XH","Welfare",2,2,0,0,0,0,0,0,1,1,1,1,1,1,1,1,3,1,3,0,12,3,null,null,"Welfare",null,"XK",1,"Vehicle Purchase","VA"]
["XJ","Other Educational Establishments",1,1,0,0,0,0,0,0,1,1,1,1,1,1,1,1,3,1,3,0,11,2,null,null,"Other Educational Establishments",null,"XL",1,"Vehicle Repair, Maintenance & MOT","VE"]
["XK","Other Public Bodies",1,1,0,0,0,0,0,0,1,1,1,1,1,1,1,1,1,1,1,0,9,2,null,null,"Other Public Bodies",null,"XM",1,"Vehicle Storage","VP"]
["XL","Rates",1,0,0,0,0,0,0,0,1,1,1,1,1,1,1,1,1,1,1,0,8,1,null,null,"Rates",null,"XN",1,"Vehicles & Fleet Management (Purchase, Lease, Contract Hire)","V"]
["XM","Awards, Gifts, Trophies, Souvenirs",2,2,1,1,1,0,1,0,2,1,1,1,1,2,2,1,1,1,1,0,16,8,null,null,"Awards, Gifts, Trophies, Souvenirs",null,"XR",1,"Vending Equipment, Consumables and Charges","CL"]
["XN","Bursaries, Scholarships, Endowments, Donations",1,1,0,0,0,0,0,0,1,1,0,1,1,1,1,1,3,1,3,0,10,2,null,null,"Bursaries, Scholarships, Endowments, Donations",null,"XS",1,"Video Equipment Purchase hire and Maintenance and repair ","AH"]
["XR","Interdepartmental trading",1,0,0,0,0,0,0,0,1,1,0,1,1,1,1,1,1,1,1,0,7,1,null,null,"Interdepartmental trading",null,"XZ",null,"Warehouse and Storage","YF"]
["XS","Student related charges excl Fees",1,0,0,0,0,0,1,0,1,1,0,1,1,1,1,1,1,1,1,0,8,2,null,null,"Student related charges excl Fees",{"$nulls":3},"Washroom and Cleaning Consumables","HH"]
["XZ","Other/General Miscellaneous",1,1,0,0,0,0,0,0,1,1,1,1,1,2,2,2,1,1,1,0,11,2,null,null,"Other/General Miscellaneous",null,"YA",1,"Waste-Confidential Disposal","YJ"]
["Y","Facilities Operations",{"$nulls":21},0,{"$nulls":4},"YB",1,"Waste-Lab Disposal  - Clinical and Chemical","YH"]
["YA","Mail Services including Fulfilment",2,1,1,1,0,1,1,0,2,3,3,1,1,2,2,1,1,1,1,0,17,7,null,null,"Mail Services including Fulfilment",null,"YC",1,"Waste-Non-lab Hazardous Disposal & Treatment Recycling","YK"]
["YB","Mail Room Equipment Purchase Lease & Maintenance",3,1,1,1,2,1,3,3,3,1,1,1,1,2,2,2,3,1,1,3,27,15,null,null,"Mail Room Equipment Purchase Lease & Maintenance",null,"YD",1,"Waste-Refuse Disposal","YL"]
["YC","Courier Services",3,2,1,1,1,2,1,1,3,1,1,1,1,3,3,2,1,1,1,0,22,12,null,null,"Courier Services",null,"YE",1,"Water and Sewerage Services","JE"]
["YD","Freight Carriage & Haulage Services",3,3,2,1,1,2,1,1,3,3,3,1,1,3,3,3,2,2,1,0,28,14,null,null,"Freight Carriage & Haulage Services",null,"YF",1,"Watercooler Equipment Services and Consumables","YN"]
["YE","Furniture - Office Removal  and Storage",3,2,1,0,0,0,3,2,3,2,1,2,1,3,3,2,1,1,1,0,22,11,null,null,"Furniture - Office Removal  and Storage",null,"YG",1,"Website Design and Services","KO"]
["YF","Warehouse and Storage",2,2,1,1,0,1,1,2,2,1,1,1,1,3,3,2,1,1,1,0,20,10,null,null,"Warehouse and Storage",null,"YH",1,"Welfare","XH"]
["YG","Agric/Hortic Disposal Services",3,2,3,1,1,1,3,3,3,1,1,1,1,3,3,3,1,1,1,0,28,17,null,null,"Agric/Hortic Disposal Services",null,"YJ",1,"Window Coverings","FG"]
["YH","Waste-Lab Disposal  - Clinical and Chemical",{"$f":"MAX(D324:K324)","v":3},2,3,0,3,0,3,1,3,{"$f":"MAX(M324:N324)","v":2},1,2,1,{"$f":"MAX(Q324:R324)","v":3},3,3,2,2,1,2,{"$f":"SUM(D324:K324,M324:O324,Q324:R324,T324:V324)","v":30},{"$f":"SUM(D324:K324)","v":15},null,null,"Waste-Lab Disposal  - Clinical and Chemical",null,"YK",1,"Workshop & Maintenance Supplies inc Engineering","M"]
["YJ","Waste-Confidential Disposal",3,2,1,0,0,0,3,2,3,2,1,2,1,3,3,1,3,2,3,2,26,11,null,null,"Waste-Confidential Disposal",null,"YL",1,"Workshop Consumables, Rags, Cleansers etc","MS"]
["YK","Waste-Non-lab Hazardous Disposal & Treatment Recycling",3,3,3,2,3,0,3,1,3,2,0,2,1,3,3,2,2,2,1,2,31,18,null,null,"Waste-Non-lab Hazardous Disposal & Treatment Recycling",null,"YM",1,"Workshop Equipment and Tool Maintenance","MG"]
["YL","Waste-Refuse Disposal",3,2,3,1,3,0,3,3,3,2,0,2,1,3,3,2,{"$f":"MAX(T327:V327)","v":2},2,2,2,32,18,null,null,"Waste-Refuse Disposal",null,"YN",1,"Workshop Ironmongery, Door Furniture,  Locksmiths Supplies  and Services","MQ"]
["YM","Clothing and Tailoring Supplies and Services",3,2,2,2,1,1,1,3,3,2,0,2,1,3,3,1,2,1,2,0,25,15,null,null,"Clothing and Tailoring Supplies and Services",null,"YP",1,"Workshop Metals","MJ"]
["YN","Watercooler Equipment Services and Consumables",3,2,1,1,1,1,1,3,2,2,0,2,1,2,2,2,1,1,1,0,21,12,null,null,"Watercooler Equipment Services and Consumables",null,"YQ",1,"Workshop Plastics, Glass and Ceramics","ML"]
["YP","Cleaning Services Including Window Cleaning",3,1,1,1,1,1,3,2,3,2,0,2,1,3,3,3,1,1,1,0,24,13,null,null,"Cleaning Services Including Window Cleaning",null,"YR",1,"Workshop Plumbing Sundries","MP"]
["YQ","Pest & Vermin Control Services",3,1,3,0,3,1,1,1,3,2,0,2,1,3,3,3,1,1,1,0,24,13,null,null,"Pest & Vermin Control Services",null,"YZ",null,"Workshop Teaching Aids and Materials","MT"]
["YR","Catering Services Outsourced at a fixed site",3,3,2,0,0,1,1,1,3,1,0,1,1,3,3,2,1,1,1,0,20,11,null,null,"Catering Services Outsourced at a fixed site",{"$nulls":3},"Workshop Wood","MM"]
["YZ","Other/General Facilities Operations",3,2,2,1,1,1,2,{"v":1.4375,"d":"1"},3,2,1,2,1,2,2,2,1,1,1,0,{"v":23.4375,"d":"23"},{"v":13.4375,"d":"13"},null,null,"Other/General Facilities Operations"]

{"sheet":"Factors & Assumptions","index":5,"n_rows":21,"n_cols":3,"rows_kept":21,"merged":[[2,2,9,2]]}
[null,"Factors Taken into Consideration in Classification","Approach/Assumptions"]
["Environmental Sustainability "]
["Carbon/ Climate Change ","▪Impacts of Production\n▪Impacts of transportation\n▪Impacts of product use/ service delivery","Step 1:\tConsider the key materials that make up the commodity (or are required to deliver the service).\n\nStep 2:\tConsider the impact on the sustainability theme across the lifecycle, up to \"in use\" phase (as waste / CE are included as thematic areas).\n\nStep 3:\tAllocate risk based on the most likely scenario for how these goods are produced & transported to the end user (could also be the worst case scenario).\nN/A used where there isn't suitable research on the topic at present."]
["Biodiversity ","▪Land/sea use change\n▪Habitat loss, fragmentation, destruction\n▪Species loss/collapse & Invasive species\n▪Over harvesting, over fishing, over hunting"]
["Water ","▪Water use \n▪Water pollution"]
["Novel entities ","“Things created and introduced into the environment by human beings that could have disruptive effects on the earth system” (Environmental Law Institute)\n▪Synthetic organic pollutants e.g. microplastics, endocrine disruptors, organic pollutants\n▪Radioactive materials e.g. nuclear waste, nuclear weapons\n▪Genetically modified organisms, \n▪Nanomaterials\n▪Micro-plastics."]
["Material Scarcity & Security ","▪ Finite or renewable resource\n▪Current geopolitical tensions\n▪ Anticipated future geopolitical tensions \n▪  Vulnerability of supply chain (i.e. reliant on materials from a small number of sources)\n▪ Transportation vulnerability (i.e. long supply lines, including pinch-points such as Straits of Hormuz, Straits of Malacca, Suez Canal, Panama Canal or other areas where a localised problem could have global consequences)\""]
["Waste/ Disposal ","▪Legislative requirements\n▪End of life reuasbility/ recyclability/ disposal\n▪Packaging materials and volume\n▪Consumption and production"]
["Circular Economy Opportunities","▪known Circular Initiatives within the sectors associated to this product\n▪known Circular Initiatives that could be transferred to the product (e.g. packaging used in a similar product)\n▪Expected inovation within the sectors associated to the product that are being discussed as viable."]
["Environmental Data Maturity Opportunities","▪Legislative requirements\n▪What opportunities are available to improve environmental data \n▪What benefits would improved environmental data provide"]
["Social Compliance "]
["Equality ","No discrimination on the grounds of education, social class/caste, nationality, trade union membership, age, disability, gender reassignment, marriage and civil partnership, pregnancy and maternity, race, culture, religion or belief, sex, or sexual orientation.","Known or perceived inequalities within sectoral supply chains."]
["Modern Slavery Risk ","▪Forced labour\n▪Child labour\n▪Human trafficking\n▪Bonded labour\n▪Servitude\n▪Criminal exploitation\n▪Compliance with modern slavery legislation","3= Product/service has risk of modern slavery within a tier of the supply chain based on the below considerations.\n\n2= Product/service has the potential for a risk of modern slavery within a tier of the supply chain based on the below considerations.\n\nIndustry/ Commodity risk (Agriculture, Mining, Logging, Fishing and fisheries, Construction, Manufacturing and electronics, Garment/ textile production, including footwear, Food processing, Services (including the hospitality, security services, cleaning and catering), Logistics, including warehousing, transport; Healthcare, social care. Workforce risk (Reliance upon low-skilled or unskilled labour, typically work that is low-paying, High numbers of temporary, seasonal, or agency workers, High level of subcontracting, Dangerous or physically demanding work, Isolation of workers due to working in rural locations, being home-based or in unmonitored and unregulated environments, absence of grievance mechanisms for workers and rights to freedom of association. Location risk see the United States' Bureau of International Labor Affairs (ILAB) List of Goods Produced by Child Labor or Forced Labor and  Global Slavery Index."]
["Social Opportunities (Local)","▪Sectors are known for delivering social opportunities\n▪Sectors require local workforce to deliver their goods or services\n▪Workforces where FHE courses are available to suppliment these vocations\nSectors with local manufacturing or distribution","Step 1: Consider the key goods or services that make up the commodity (or are required to deliver the service) and any potenial opportunities\n\nStep 2: Consider the impact on the social opportunities across the contract\n\nStep 3: Allocate score based on potential for suppliers to deliver community benifits locally. "]
["Working Environment and Terms "]
["Wages and Terms","▪Freedom of association and the right to collective bargaining\n▪Social protection\n▪Working hours including living hours & forced overtime\n▪Job Security including zero hour contracts, employment contracts & outsourcing & unfair dismissal\n▪Wages - minimum wage/living wage, wage theft\n▪Benefits, sick pay & family responsibility","3 = working environments or work type typically characterised by insecure work arrangements and no/low benefits often due to lack of worker voice, monitoring mechanisms or informality in working contracts\n2 = working environments or work type potentially characterised by insecure work arrangements and no/low benefits often due to lack of worker voice, monitoring mechanisms or informality in working contracts\n1 = working environments or work type with a low likelihood of being characterised by insecure work arrangements and no/low benefits often due to lack of worker voice, monitoring mechanisms or informality in working contracts\n0 = working environments or work type not typically characterised by insecure work arrangements and no/low benefits often due to lack of worker voice, monitoring mechanisms or informality in working contracts"]
["Health and Safety","▪Safe, healthy and hygienic working environment\n▪Toxic, corrosive, flammable, explosive materials","3 = working environments or work type that is typically dangerous or involving dangerous equipment/tools/materials\n2= working environments or work type that is potentially dangerous or involving dangerous equipment/tools/materials\n1 = working environments or work type with a low likelihood of being dangerous or involving dangerous equipment/tools/materials\n0 = working environments or work type not typically dangerous"]
["Ethical Compliance & Economic Development "]
["Bribery & Corruption ","▪Corruption or bribery\n▪Anti-competition practices/cartels ","3= Product/service has risk of bribery/corruption within a tier of the supply chain based on country risk (determined using Transparency International Corruption Perceptions Index); sectoral risk (operations based in high risk countries, high degrees of government interaction/ regulation, high value/ complex/ long term contracts) including public works contracts, utilities, mining, pharmaceutical and health, heavy manufacturing; Transaction risk(high value projects, projects with many intermediaries, critical services/products).\n\n2= Product/service has the potential for bribery/corruption within a tier of the supply chain based on country risk (determined using Transparency International Corruption Perceptions Index); sectoral risk (operations based in high risk countries, high degrees of government interaction/ regulation, high value/ complex/ long term contracts) including public works contracts, utilities, mining, pharmaceutical and health, heavy manufacturing; Transaction risk(high value projects, projects with many intermediaries, critical services/products).\n\nNote: based on the main exports from high risk countries and products requiring widely mined minerals the following product categories were deemed to carry a higher risk: Vehicles, electrical, machinery, ICT, plumbing, ceramics, batteries, construction, plastics, renewable energy products, glass, paper, electronics, detergents, medications, medical devices."]
["GDPR ","▪Personal data relevance\n▪Access to systems containing personal data\n▪Access to premises holding personal data","3 = Contracts likely to involve personal data and one or more of the following types of processing: \nProcessing that involves innovative technology or novel application of existing technology (e.g. AI)\nLarge-scale profiling of individuals e.g. social-media networks\nBiometric data for uniquely identifying an individual e.g. access systems \nData matching\te.g. monitoring personal use of benefits\nTracking an individual’s behaviour\nSource: https://ico.org.uk/for-organisations/uk-gdpr-guidance-and-resources/accountability-and-governance/data-protection-impact-assessments-dpias/examples-of-processing-likely-to-result-in-high-risk/\n\n2= Contracts with the potential to involve personal data."]
["Cyber Security ","The loss of confidentiality, integrity, or availability of information, data, or information (or control) systems. ","3 = Likely to require hardware connection to IT network: possibility of remote access for maintenance / monitoring / updates - advise cyber essentails cert considered/checked.\n\n2 = Possible file transfer/downloads, access to cloud based supplier systems.  eg risk of embedded viruses etc.\n\n1  = Hardware not directly connected to network (ie using mobile comms network, but not wifi or bluetooth) - advise/clarify with market.\n"]